Workbook

Sheet Main
B10: 2021-04-06
B12: Sheet No. | C12: Template Name | D12: Summary
B13: 1 | C13: Future Intra | D13: For Intraday trading in F&O segment
B14: 2 | C14: Cash Intra | D14: For Intraday trading in cash market segment
B15: 3 | C15: Mid-cap Intra | D15: For Intraday trading in Mid-cap stocks
B16: 4 | C16: Bulk Deals | D16: Reveals Bulk Deals carried on NSE & BSE
B17: 5 | C17: Call Tracker
K27: `

Sheet Future Intra
M5: Back to Main Page
A6: FOR INTRA DAY TRADING | L6: =Main!B10 -> 2021-04-06
A9: Sr.no | B9: Sector | C9: Scrip | D9: Expiry Date | E9: CLOSE RATE | F9: Pivot Point | G9: Supports | J9: Resistances
B10: Sector | E10: Point | F10: Point | G10: S1 | H10: S2 | I10: S3 | J10: R1 | K10: R2 | L10: R3 | M10: HIGH | N10: LOW | O10: OI | P10: % Change in OI
A11: 1 | B11: Index | C11: BANKNIFTY | D11: 2021-04-29 | E11: 32817.15 | F11: 33076.05 | G11: 32153.10 | H11: 31489.05 | I11: 30566.10 | J11: 33740.10 | K11: 34663.05 | L11: 35327.10 | M11: 33999 | N11: 32412 | O11: 2306000 | P11: -3.79%
A12: 2 | B12: Index | C12: NIFTY | D12: 2021-04-29 | E12: 14698.45 | F12: 14696.10 | G12: 14492.35 | H12: 14286.25 | I12: 14082.50 | J12: 14902.20 | K12: 15105.95 | L12: 15312.05 | M12: 14899.85 | N12: 14490 | O12: 11697750 | P12: -0.88%
A13: 3 | B13: Index | C13: FINNIFTY | D13: 2021-04-29 | E13: 15475.60 | F13: 15586.65 | G13: 15173.30 | H13: 14871.00 | I13: 14457.65 | J13: 15888.95 | K13: 16302.30 | L13: 16604.60 | M13: 16000 | N13: 15284.35 | O13: 15680 | P13: 32.88%
A14: 4 | B14: Chemical | C14: AARTIIND | D14: 2021-04-29 | E14: 1338.40 | F14: 1355.62 | G14: 1316.23 | H14: 1294.07 | I14: 1254.68 | J14: 1377.78 | K14: 1417.17 | L14: 1439.33 | M14: 1395 | N14: 1333.45 | O14: 507450 | P14: 9.64%
A15: 5 | B15: Cement | C15: ACC | D15: 2021-04-29 | E15: 1901.00 | F15: 1908.68 | G15: 1870.37 | H15: 1839.73 | I15: 1801.42 | J15: 1939.32 | K15: 1977.63 | L15: 2008.27 | M15: 1947 | N15: 1878.05 | O15: 3161500 | P15: -4.75%
A16: 6 | B16: Others | C16: ADANIENT | D16: 2021-04-29 | E16: 1142.35 | F16: 1133.15 | G16: 1111.80 | H16: 1081.25 | I16: 1059.90 | J16: 1163.70 | K16: 1185.05 | L16: 1215.60 | M16: 1154.5 | N16: 1102.6 | O16: 17490000 | P16: 3.88%
A17: 7 | B17: Others | C17: ADANIPORTS | D17: 2021-04-29 | E17: 746.15 | F17: 737.23 | G17: 725.47 | H17: 704.78 | I17: 693.02 | J17: 757.92 | K17: 769.68 | L17: 790.37 | M17: 749 | N17: 716.55 | O17: 60272500 | P17: 1.89%
A18: 8 | B18: Pharma | C18: ALKEM | D18: 2021-04-29 | E18: 2722.50 | F18: 2730.95 | G18: 2667.85 | H18: 2613.20 | I18: 2550.10 | J18: 2785.60 | K18: 2848.70 | L18: 2903.35 | M18: 2794.05 | N18: 2676.3 | O18: 195800 | P18: -2.97%
A19: 9 | B19: Automobile | C19: AMARAJABAT | D19: 2021-04-29 | E19: 853.45 | F19: 854.80 | G19: 837.90 | H19: 822.35 | I19: 805.45 | J19: 870.35 | K19: 887.25 | L19: 902.80 | M19: 871.7 | N19: 839.25 | O19: 2498000 | P19: 5.94%
A20: 10 | B20: Cement | C20: AMBUJACEM | D20: 2021-04-29 | E20: 308.15 | F20: 309.10 | G20: 302.40 | H20: 296.65 | I20: 289.95 | J20: 314.85 | K20: 321.55 | L20: 327.30 | M20: 315.8 | N20: 303.35 | O20: 15690000 | P20: -3.00%
A21: 11 | B21: Pharma | C21: APLLTD | D21: 2021-04-29 | E21: 975.30 | F21: 970.05 | G21: 951.35 | H21: 927.40 | I21: 908.70 | J21: 994.00 | K21: 1012.70 | L21: 1036.65 | M21: 988.75 | N21: 946.1 | O21: 741950 | P21: -1.82%
A22: 12 | B22: Others | C22: APOLLOHOSP | D22: 2021-04-29 | E22: 2935.75 | F22: 2955.15 | G22: 2882.90 | H22: 2830.05 | I22: 2757.80 | J22: 3008.00 | K22: 3080.25 | L22: 3133.10 | M22: 3027.4 | N22: 2902.3 | O22: 1923500 | P22: -0.77%
A23: 13 | B23: Automobile | C23: APOLLOTYRE | D23: 2021-04-29 | E23: 223.10 | F23: 227.12 | G23: 217.98 | H23: 212.87 | I23: 203.73 | J23: 232.23 | K23: 241.37 | L23: 246.48 | M23: 236.25 | N23: 222 | O23: 10595000 | P23: 6.54%
A24: 14 | B24: Automobile | C24: ASHOKLEY | D24: 2021-04-29 | E24: 113.95 | F24: 114.45 | G24: 110.55 | H24: 107.15 | I24: 103.25 | J24: 117.85 | K24: 121.75 | L24: 125.15 | M24: 118.35 | N24: 111.05 | O24: 43218000 | P24: -0.81%
A25: 15 | B25: FMCG | C25: ASIANPAINT | D25: 2021-04-29 | E25: 2518.30 | F25: 2525.48 | G25: 2484.72 | H25: 2451.13 | I25: 2410.37 | J25: 2559.07 | K25: 2599.83 | L25: 2633.42 | M25: 2566.25 | N25: 2491.9 | O25: 5679600 | P25: -1.36%
A26: 16 | B26: Banking | C26: AUBANK | D26: 2021-04-29 | E26: 1227.35 | F26: 1232.73 | G26: 1204.67 | H26: 1181.98 | I26: 1153.92 | J26: 1255.42 | K26: 1283.48 | L26: 1306.17 | M26: 1260.8 | N26: 1210.05 | O26: 2415500 | P26: 1.73%
A27: 17 | B27: Pharma | C27: AUROPHARMA | D27: 2021-04-29 | E27: 886.40 | F27: 886.52 | G27: 873.88 | H27: 861.37 | I27: 848.73 | J27: 899.03 | K27: 911.67 | L27: 924.18 | M27: 899.15 | N27: 874 | O27: 8579350 | P27: -0.86%
A28: 18 | B28: Banking | C28: AXISBANK | D28: 2021-04-29 | E28: 688.35 | F28: 693.50 | G28: 674.30 | H28: 660.25 | I28: 641.05 | J28: 707.55 | K28: 726.75 | L28: 740.80 | M28: 712.7 | N28: 679.45 | O28: 43417200 | P28: 2.28%
A29: 19 | B29: Automobile | C29: BAJAJ-AUTO | D29: 2021-04-29 | E29: 3611.55 | F29: 3648.70 | G29: 3559.30 | H29: 3507.05 | I29: 3417.65 | J29: 3700.95 | K29: 3790.35 | L29: 3842.60 | M29: 3738.1 | N29: 3596.45 | O29: 2065250 | P29: -1.35%
A30: 20 | B30: Finance | C30: BAJAJFINSV | D30: 2021-04-29 | E30: 9506.85 | F30: 9510.57 | G30: 9199.73 | H30: 8892.62 | I30: 8581.78 | J30: 9817.68 | K30: 10128.52 | L30: 10435.63 | M30: 9821.4 | N30: 9203.45 | O30: 600125 | P30: -0.02%
A31: 21 | B31: Finance | C31: BAJFINANCE | D31: 2021-04-29 | E31: 4994.15 | F31: 5068.97 | G31: 4859.18 | H31: 4724.22 | I31: 4514.43 | J31: 5203.93 | K31: 5413.72 | L31: 5548.68 | M31: 5278.75 | N31: 4934 | O31: 3930250 | P31: 9.24%
A32: 22 | B32: Automobile | C32: BALKRISIND | D32: 2021-04-29 | E32: 1660.20 | F32: 1662.40 | G32: 1631.15 | H32: 1602.10 | I32: 1570.85 | J32: 1691.45 | K32: 1722.70 | L32: 1751.75 | M32: 1693.65 | N32: 1633.35 | O32: 1668400 | P32: -1.58%
A33: 23 | B33: Banking | C33: BANDHANBNK | D33: 2021-04-29 | E33: 336.75 | F33: 339.07 | G33: 327.18 | H33: 317.62 | I33: 305.73 | J33: 348.63 | K33: 360.52 | L33: 370.08 | M33: 350.95 | N33: 329.5 | O33: 16993800 | P33: 4.42%
A34: 24 | B34: Banking | C34: BANKBARODA | D34: 2021-04-29 | E34: 73.20 | F34: 73.53 | G34: 70.77 | H34: 68.33 | I34: 65.57 | J34: 75.97 | K34: 78.73 | L34: 81.17 | M34: 76.3 | N34: 71.1 | O34: 125084700 | P34: -0.12%
A35: 25 | B35: FMCG | C35: BATAINDIA | D35: 2021-04-29 | E35: 1402.35 | F35: 1408.23 | G35: 1380.47 | H35: 1358.58 | I35: 1330.82 | J35: 1430.12 | K35: 1457.88 | L35: 1479.77 | M35: 1436 | N35: 1386.35 | O35: 1474000 | P35: -0.33%
A36: 26 | B36: Capital_Goods | C36: BEL | D36: 2021-04-29 | E36: 132.10 | F36: 130.02 | G36: 127.38 | H36: 122.67 | I36: 120.03 | J36: 134.73 | K36: 137.37 | L36: 142.08 | M36: 132.65 | N36: 125.3 | O36: 42628400 | P36: 0.66%
A37: 27 | B37: FMCG | C37: BERGEPAINT | D37: 2021-04-29 | E37: 750.75 | F37: 755.53 | G37: 741.67 | H37: 732.58 | I37: 718.72 | J37: 764.62 | K37: 778.48 | L37: 787.57 | M37: 769.4 | N37: 746.45 | O37: 3020600 | P37: -4.12%
A38: 28 | B38: Automobile | C38: BHARATFORG | D38: 2021-04-29 | E38: 612.25 | F38: 607.52 | G38: 595.78 | H38: 579.32 | I38: 567.58 | J38: 623.98 | K38: 635.72 | L38: 652.18 | M38: 619.25 | N38: 591.05 | O38: 5065500 | P38: -3.98%
A39: 29 | B39: Telecom | C39: BHARTIARTL | D39: 2021-04-29 | E39: 530.65 | F39: 526.57 | G39: 521.23 | H39: 511.82 | I39: 506.48 | J39: 535.98 | K39: 541.32 | L39: 550.73 | M39: 531.9 | N39: 517.15 | O39: 98386203 | P39: -1.07%
A40: 30 | B40: Capital_Goods | C40: BHEL | D40: 2021-04-29 | E40: 49.10 | F40: 49.75 | G40: 47.95 | H40: 46.80 | I40: 45.00 | J40: 50.90 | K40: 52.70 | L40: 53.85 | M40: 51.55 | N40: 48.6 | O40: 100863000 | P40: 0.29%
A41: 31 | B41: Pharma | C41: BIOCON | D41: 2021-04-29 | E41: 408.55 | F41: 408.12 | G41: 403.53 | H41: 398.52 | I41: 393.93 | J41: 413.13 | K41: 417.72 | L41: 422.73 | M41: 412.7 | N41: 403.1 | O41: 14255400 | P41: -1.23%
A42: 32 | B42: Automobile | C42: BOSCHLTD | D42: 2021-04-29 | E42: 14115.15 | F42: 14074.88 | G42: 13899.77 | H42: 13684.38 | I42: 13509.27 | J42: 14290.27 | K42: 14465.38 | L42: 14680.77 | M42: 14250 | N42: 13859.5 | O42: 104200 | P42: -0.05%
A43: 33 | B43: Oil_Gas | C43: BPCL | D43: 2021-04-29 | E43: 430.35 | F43: 430.63 | G43: 421.72 | H43: 413.08 | I43: 404.17 | J43: 439.27 | K43: 448.18 | L43: 456.82 | M43: 439.55 | N43: 422 | O43: 47539800 | P43: 0.63%
A44: 34 | B44: FMCG | C44: BRITANNIA | D44: 2021-04-29 | E44: 3653.90 | F44: 3640.45 | G44: 3608.45 | H44: 3563.00 | I44: 3531.00 | J44: 3685.90 | K44: 3717.90 | L44: 3763.35 | M44: 3672.45 | N44: 3595 | O44: 1918000 | P44: 3.01%
A45: 35 | B45: Pharma | C45: CADILAHC | D45: 2021-04-29 | E45: 442.75 | F45: 443.48 | G45: 436.17 | H45: 429.58 | I45: 422.27 | J45: 450.07 | K45: 457.38 | L45: 463.97 | M45: 450.8 | N45: 436.9 | O45: 10540200 | P45: 3.79%
A46: 36 | B46: Banking | C46: CANBK | D46: 2021-04-29 | E46: 147.50 | F46: 149.75 | G46: 143.05 | H46: 138.60 | I46: 131.90 | J46: 154.20 | K46: 160.90 | L46: 165.35 | M46: 156.45 | N46: 145.3 | O46: 57672000 | P46: -1.82%
A47: 37 | B47: Finance | C47: CHOLAFIN | D47: 2021-04-29 | E47: 546.80 | F47: 548.62 | G47: 533.18 | H47: 519.57 | I47: 504.13 | J47: 562.23 | K47: 577.67 | L47: 591.28 | M47: 564.05 | N47: 535 | O47: 4997500 | P47: -2.73%
A48: 38 | B48: Pharma | C48: CIPLA | D48: 2021-04-29 | E48: 823.85 | F48: 822.10 | G48: 812.40 | H48: 800.95 | I48: 791.25 | J48: 833.55 | K48: 843.25 | L48: 854.70 | M48: 831.8 | N48: 810.65 | O48: 10676900 | P48: -0.73%
A49: 39 | B49: Others | C49: COALINDIA | D49: 2021-04-29 | E49: 130.20 | F49: 131.22 | G49: 127.28 | H49: 124.37 | I49: 120.43 | J49: 134.13 | K49: 138.07 | L49: 140.98 | M49: 135.15 | N49: 128.3 | O49: 47724600 | P49: 3.23%
A50: 40 | B50: Technology | C50: COFORGE | D50: 2021-04-29 | E50: 3054.30 | F50: 3013.80 | G50: 2951.90 | H50: 2849.50 | I50: 2787.60 | J50: 3116.20 | K50: 3178.10 | L50: 3280.50 | M50: 3075.7 | N50: 2911.4 | O50: 622125 | P50: 1.16%
A51: 41 | B51: FMCG | C51: COLPAL | D51: 2021-04-29 | E51: 1564.90 | F51: 1561.50 | G51: 1545.45 | H51: 1526.00 | I51: 1509.95 | J51: 1580.95 | K51: 1597.00 | L51: 1616.45 | M51: 1577.55 | N51: 1542.05 | O51: 3578400 | P51: -1.52%
A52: 42 | B52: Others | C52: CONCOR | D52: 2021-04-29 | E52: 581.50 | F52: 588.60 | G52: 569.20 | H52: 556.90 | I52: 537.50 | J52: 600.90 | K52: 620.30 | L52: 632.60 | M52: 608 | N52: 576.3 | O52: 5792478 | P52: -8.63%
A53: 43 | B53: Banking | C53: CUB | D53: 2021-04-29 | E53: 157.10 | F53: 158.07 | G53: 155.03 | H53: 152.97 | I53: 149.93 | J53: 160.13 | K53: 163.17 | L53: 165.23 | M53: 161.1 | N53: 156 | O53: 8264600 | P53: -3.02%
A54: 44 | B54: Capital_Goods | C54: CUMMINSIND | D54: 2021-04-29 | E54: 882.50 | F54: 882.62 | G54: 864.33 | H54: 846.17 | I54: 827.88 | J54: 900.78 | K54: 919.07 | L54: 937.23 | M54: 900.9 | N54: 864.45 | O54: 2064000 | P54: -3.70%
A55: 45 | B55: FMCG | C55: DABUR | D55: 2021-04-29 | E55: 538.55 | F55: 540.08 | G55: 535.47 | H55: 532.38 | I55: 527.77 | J55: 543.17 | K55: 547.78 | L55: 550.87 | M55: 544.7 | N55: 537 | O55: 8436250 | P55: -2.12%
A56: 46 | B56: Chemical | C56: DEEPAKNTR | D56: 2021-04-29 | E56: 1624.50 | F56: 1635.85 | G56: 1594.70 | H56: 1564.90 | I56: 1523.75 | J56: 1665.65 | K56: 1706.80 | L56: 1736.60 | M56: 1677 | N56: 1606.05 | O56: 867000 | P56: -5.40%
A57: 47 | B57: Pharma | C57: DIVISLAB | D57: 2021-04-29 | E57: 3633.15 | F57: 3633.75 | G57: 3573.40 | H57: 3513.65 | I57: 3453.30 | J57: 3693.50 | K57: 3753.85 | L57: 3813.60 | M57: 3694.1 | N57: 3574 | O57: 2604200 | P57: 2.87%
A58: 48 | B58: Realty | C58: DLF | D58: 2021-04-29 | E58: 278.00 | F58: 280.78 | G58: 270.22 | H58: 262.43 | I58: 251.87 | J58: 288.57 | K58: 299.13 | L58: 306.92 | M58: 291.35 | N58: 273 | O58: 28017000 | P58: 2.59%
A59: 49 | B59: Pharma | C59: DRREDDY | D59: 2021-04-29 | E59: 4570.65 | F59: 4536.20 | G59: 4474.45 | H59: 4378.25 | I59: 4316.50 | J59: 4632.40 | K59: 4694.15 | L59: 4790.35 | M59: 4597.95 | N59: 4440 | O59: 3220750 | P59: -2.27%
A60: 50 | B60: Automobile | C60: EICHERMOT | D60: 2021-04-29 | E60: 2523.95 | F60: 2552.38 | G60: 2487.77 | H60: 2451.58 | I60: 2386.97 | J60: 2588.57 | K60: 2653.18 | L60: 2689.37 | M60: 2617 | N60: 2516.2 | O60: 2648100 | P60: 6.97%
A61: 51 | B61: Automobile | C61: ESCORTS | D61: 2021-04-29 | E61: 1243.65 | F61: 1253.27 | G61: 1223.53 | H61: 1203.42 | I61: 1173.68 | J61: 1273.38 | K61: 1303.12 | L61: 1323.23 | M61: 1283 | N61: 1233.15 | O61: 2283050 | P61: 4.40%
A62: 52 | B62: Automobile | C62: EXIDEIND | D62: 2021-04-29 | E62: 183.55 | F62: 184.32 | G62: 180.73 | H62: 177.92 | I62: 174.33 | J62: 187.13 | K62: 190.72 | L62: 193.53 | M62: 187.9 | N62: 181.5 | O62: 13975200 | P62: 2.32%
A63: 53 | B63: Banking | C63: FEDERALBNK | D63: 2021-04-29 | E63: 76.70 | F63: 76.82 | G63: 74.43 | H63: 72.17 | I63: 69.78 | J63: 79.08 | K63: 81.47 | L63: 83.73 | M63: 79.2 | N63: 74.55 | O63: 73800000 | P63: 1.81%
A64: 54 | B64: Oil_Gas | C64: GAIL | D64: 2021-04-29 | E64: 135.90 | F64: 137.57 | G64: 133.63 | H64: 131.37 | I64: 127.43 | J64: 139.83 | K64: 143.77 | L64: 146.03 | M64: 141.5 | N64: 135.3 | O64: 47641000 | P64: -1.60%
A65: 55 | B65: Pharma | C65: GLENMARK | D65: 2021-04-29 | E65: 481.50 | F65: 484.18 | G65: 472.52 | H65: 463.53 | I65: 451.87 | J65: 493.17 | K65: 504.83 | L65: 513.82 | M65: 495.85 | N65: 475.2 | O65: 6157100 | P65: -0.82%
A66: 56 | B66: Infrastructure | C66: GMRINFRA | D66: 2021-04-29 | E66: 24.05 | F66: 24.35 | G66: 23.50 | H66: 22.95 | I66: 22.10 | J66: 24.90 | K66: 25.75 | L66: 26.30 | M66: 25.2 | N66: 23.8 | O66: 160852500 | P66: 1.22%
A67: 57 | B67: FMCG | C67: GODREJCP | D67: 2021-04-29 | E67: 724.70 | F67: 722.75 | G67: 709.25 | H67: 693.80 | I67: 680.30 | J67: 738.20 | K67: 751.70 | L67: 767.15 | M67: 736.25 | N67: 707.3 | O67: 5327000 | P67: -0.62%
A68: 58 | B68: Realty | C68: GODREJPROP | D68: 2021-04-29 | E68: 1353.75 | F68: 1354.60 | G68: 1314.20 | H68: 1274.65 | I68: 1234.25 | J68: 1394.15 | K68: 1434.55 | L68: 1474.10 | M68: 1395 | N68: 1315.05 | O68: 1728350 | P68: -0.23%
A69: 59 | B69: Pharma | C69: GRANULES | D69: 2021-04-29 | E69: 311.45 | F69: 312.17 | G69: 306.03 | H69: 300.62 | I69: 294.48 | J69: 317.58 | K69: 323.72 | L69: 329.13 | M69: 318.3 | N69: 306.75 | O69: 5976800 | P69: -1.88%
A70: 60 | B70: Cement | C70: GRASIM | D70: 2021-04-29 | E70: 1451.65 | F70: 1454.43 | G70: 1427.22 | H70: 1402.78 | I70: 1375.57 | J70: 1478.87 | K70: 1506.08 | L70: 1530.52 | M70: 1481.65 | N70: 1430 | O70: 15941950 | P70: -1.24%
A71: 61 | B71: Oil_Gas | C71: GUJGASLTD | D71: 2021-04-29 | E71: 550.80 | F71: 548.42 | G71: 539.38 | H71: 527.97 | I71: 518.93 | J71: 559.83 | K71: 568.87 | L71: 580.28 | M71: 557.45 | N71: 537 | O71: 1050000 | P71: -8.99%
A72: 62 | B72: Capital_Goods | C72: HAVELLS | D72: 2021-04-29 | E72: 1032.45 | F72: 1037.50 | G72: 1013.05 | H72: 993.65 | I72: 969.20 | J72: 1056.90 | K72: 1081.35 | L72: 1100.75 | M72: 1061.95 | N72: 1018.1 | O72: 4839000 | P72: -2.18%
A73: 63 | B73: Technology | C73: HCLTECH | D73: 2021-04-29 | E73: 1040.05 | F73: 1030.85 | G73: 1014.80 | H73: 989.55 | I73: 973.50 | J73: 1056.10 | K73: 1072.15 | L73: 1097.40 | M73: 1046.9 | N73: 1005.6 | O73: 17345300 | P73: -0.80%
A74: 64 | B74: Finance | C74: HDFC | D74: 2021-04-29 | E74: 2461.45 | F74: 2478.18 | G74: 2407.37 | H74: 2353.28 | I74: 2282.47 | J74: 2532.27 | K74: 2603.08 | L74: 2657.17 | M74: 2549 | N74: 2424.1 | O74: 16015500 | P74: 3.21%
A75: 65 | B75: Finance | C75: HDFCAMC | D75: 2021-04-29 | E75: 2913.65 | F75: 2911.58 | G75: 2867.72 | H75: 2821.78 | I75: 2777.92 | J75: 2957.52 | K75: 3001.38 | L75: 3047.32 | M75: 2955.45 | N75: 2865.65 | O75: 516200 | P75: -0.96%
A76: 66 | B76: Banking | C76: HDFCBANK | D76: 2021-04-29 | E76: 1454.45 | F76: 1459.67 | G76: 1428.78 | H76: 1403.12 | I76: 1372.23 | J76: 1485.33 | K76: 1516.22 | L76: 1541.88 | M76: 1490.55 | N76: 1434 | O76: 31215800 | P76: 2.11%
A77: 67 | B77: Finance | C77: HDFCLIFE | D77: 2021-04-29 | E77: 686.50 | F77: 688.13 | G77: 677.52 | H77: 668.53 | I77: 657.92 | J77: 697.12 | K77: 707.73 | L77: 716.72 | M77: 698.75 | N77: 679.15 | O77: 8497500 | P77: 1.38%
A78: 68 | B78: Automobile | C78: HEROMOTOCO | D78: 2021-04-29 | E78: 2904.05 | F78: 2919.60 | G78: 2862.80 | H78: 2821.55 | I78: 2764.75 | J78: 2960.85 | K78: 3017.65 | L78: 3058.90 | M78: 2976.4 | N78: 2878.35 | O78: 4433700 | P78: -0.36%
A79: 69 | B79: Metals | C79: HINDALCO | D79: 2021-04-29 | E79: 351.95 | F79: 348.67 | G79: 342.48 | H79: 333.02 | I79: 326.83 | J79: 358.13 | K79: 364.32 | L79: 373.78 | M79: 354.85 | N79: 339.2 | O79: 31626500 | P79: -7.16%
A80: 70 | B80: Oil_Gas | C80: HINDPETRO | D80: 2021-04-29 | E80: 235.80 | F80: 234.40 | G80: 231.70 | H80: 227.60 | I80: 224.90 | J80: 238.50 | K80: 241.20 | L80: 245.30 | M80: 237.1 | N80: 230.3 | O80: 25177500 | P80: -2.85%
A81: 71 | B81: FMCG | C81: HINDUNILVR | D81: 2021-04-29 | E81: 2388.30 | F81: 2394.45 | G81: 2355.65 | H81: 2323.00 | I81: 2284.20 | J81: 2427.10 | K81: 2465.90 | L81: 2498.55 | M81: 2433.25 | N81: 2361.8 | O81: 6305700 | P81: -0.21%
A82: 72 | B82: Finance | C82: IBULHSGFIN | D82: 2021-04-29 | E82: 194.00 | F82: 197.03 | G82: 187.57 | H82: 181.13 | I82: 171.67 | J82: 203.47 | K82: 212.93 | L82: 219.37 | M82: 206.5 | N82: 190.6 | O82: 32326800 | P82: 0.70%
A83: 73 | B83: Banking | C83: ICICIBANK | D83: 2021-04-29 | E83: 574.30 | F83: 578.02 | G83: 561.53 | H83: 548.77 | I83: 532.28 | J83: 590.78 | K83: 607.27 | L83: 620.03 | M83: 594.5 | N83: 565.25 | O83: 97703375 | P83: 1.10%
A84: 74 | B84: Finance | C84: ICICIGI | D84: 2021-04-29 | E84: 1415.90 | F84: 1425.48 | G84: 1394.47 | H84: 1373.03 | I84: 1342.02 | J84: 1446.92 | K84: 1477.93 | L84: 1499.37 | M84: 1456.5 | N84: 1404.05 | O84: 984300 | P84: 0.74%
A85: 75 | B85: Finance | C85: ICICIPRULI | D85: 2021-04-29 | E85: 439.25 | F85: 440.73 | G85: 433.47 | H85: 427.68 | I85: 420.42 | J85: 446.52 | K85: 453.78 | L85: 459.57 | M85: 448 | N85: 434.95 | O85: 8002500 | P85: 1.85%
A86: 76 | B86: Telecom | C86: IDEA | D86: 2021-04-29 | E86: 9.65 | F86: 9.68 | G86: 9.32 | H86: 8.98 | I86: 8.62 | J86: 10.02 | K86: 10.38 | L86: 10.72 | M86: 10.05 | N86: 9.35 | O86: 669830000 | P86: 0.86%
A87: 77 | B87: Banking | C87: IDFCFIRSTB | D87: 2021-04-29 | E87: 53.95 | F87: 54.52 | G87: 52.53 | H87: 51.12 | I87: 49.13 | J87: 55.93 | K87: 57.92 | L87: 59.33 | M87: 56.5 | N87: 53.1 | O87: 216315000 | P87: 6.24%
A88: 78 | B88: Oil_Gas | C88: IGL | D88: 2021-04-29 | E88: 508.15 | F88: 514.00 | G88: 499.00 | H88: 489.85 | I88: 474.85 | J88: 523.15 | K88: 538.15 | L88: 547.30 | M88: 529 | N88: 504.85 | O88: 5951000 | P88: 1.50%
A89: 79 | B89: Others | C89: INDIGO | D89: 2021-04-29 | E89: 1545.65 | F89: 1556.23 | G89: 1507.42 | H89: 1469.18 | I89: 1420.37 | J89: 1594.47 | K89: 1643.28 | L89: 1681.52 | M89: 1605.05 | N89: 1518 | O89: 3724000 | P89: 4.77%
A90: 80 | B90: Banking | C90: INDUSINDBK | D90: 2021-04-29 | E90: 940.30 | F90: 952.38 | G90: 909.92 | H90: 879.53 | I90: 837.07 | J90: 982.77 | K90: 1025.23 | L90: 1055.62 | M90: 994.85 | N90: 922 | O90: 22816800 | P90: -2.75%
A91: 81 | B91: Telecom | C91: INDUSTOWER | D91: 2021-04-29 | E91: 253.20 | F91: 252.38 | G91: 247.77 | H91: 242.33 | I91: 237.72 | J91: 257.82 | K91: 262.43 | L91: 267.87 | M91: 257 | N91: 246.95 | O91: 11642400 | P91: -0.81%
A92: 82 | B92: Technology | C92: INFY | D92: 2021-04-29 | E92: 1419.80 | F92: 1414.93 | G92: 1397.52 | H92: 1375.23 | I92: 1357.82 | J92: 1437.22 | K92: 1454.63 | L92: 1476.92 | M92: 1432.35 | N92: 1392.65 | O92: 32090400 | P92: 2.83%
A93: 83 | B93: Oil_Gas | C93: IOC | D93: 2021-04-29 | E93: 91.35 | F93: 91.70 | G93: 89.95 | H93: 88.55 | I93: 86.80 | J93: 93.10 | K93: 94.85 | L93: 96.25 | M93: 93.45 | N93: 90.3 | O93: 68562000 | P93: 1.29%
A94: 84 | B94: Others | C94: IRCTC | D94: 2021-04-29 | E94: 1708.30 | F94: 1714.25 | G94: 1678.00 | H94: 1647.70 | I94: 1611.45 | J94: 1744.55 | K94: 1780.80 | L94: 1811.10 | M94: 1750.5 | N94: 1683.95 | O94: 1805375 | P94: -3.59%
A95: 85 | B95: FMCG | C95: ITC | D95: 2021-04-29 | E95: 213.90 | F95: 215.30 | G95: 210.25 | H95: 206.60 | I95: 201.55 | J95: 218.95 | K95: 224.00 | L95: 227.65 | M95: 220.35 | N95: 211.65 | O95: 118476800 | P95: 6.67%
A96: 86 | B96: Metals | C96: JINDALSTEL | D96: 2021-04-29 | E96: 384.95 | F96: 377.77 | G96: 368.08 | H96: 351.22 | I96: 341.53 | J96: 394.63 | K96: 404.32 | L96: 421.18 | M96: 387.45 | N96: 360.9 | O96: 30205000 | P96: 1.21%
A97: 87 | B97: Metals | C97: JSWSTEEL | D97: 2021-04-29 | E97: 521.10 | F97: 517.08 | G97: 509.47 | H97: 497.83 | I97: 490.22 | J97: 528.72 | K97: 536.33 | L97: 547.97 | M97: 524.7 | N97: 505.45 | O97: 34327800 | P97: -0.10%
A98: 88 | B98: Others | C98: JUBLFOOD | D98: 2021-04-29 | E98: 2855.75 | F98: 2886.32 | G98: 2791.13 | H98: 2726.52 | I98: 2631.33 | J98: 2950.93 | K98: 3046.12 | L98: 3110.73 | M98: 2981.5 | N98: 2821.7 | O98: 1375250 | P98: 5.36%
A99: 89 | B99: Banking | C99: KOTAKBANK | D99: 2021-04-29 | E99: 1766.05 | F99: 1772.50 | G99: 1732.20 | H99: 1698.35 | I99: 1658.05 | J99: 1806.35 | K99: 1846.65 | L99: 1880.50 | M99: 1812.8 | N99: 1738.65 | O99: 13094800 | P99: 0.26%
A100: 90 | B100: Finance | C100: L&TFH | D100: 2021-04-29 | E100: 95.80 | F100: 96.52 | G100: 93.48 | H100: 91.17 | I100: 88.13 | J100: 98.83 | K100: 101.87 | L100: 104.18 | M100: 99.55 | N100: 94.2 | O100: 28922684 | P100: -0.77%
A101: 91 | B101: Others | C101: LALPATHLAB | D101: 2021-04-29 | E101: 2885.25 | F101: 2833.42 | G101: 2756.83 | H101: 2628.42 | I101: 2551.83 | J101: 2961.83 | K101: 3038.42 | L101: 3166.83 | M101: 2910 | N101: 2705 | O101: 255000 | P101: 32.12%
A102: 92 | B102: Finance | C102: LICHSGFIN | D102: 2021-04-29 | E102: 420.20 | F102: 421.42 | G102: 411.18 | H102: 402.17 | I102: 391.93 | J102: 430.43 | K102: 440.67 | L102: 449.68 | M102: 431.65 | N102: 412.4 | O102: 6478000 | P102: -5.57%
A103: 93 | B103: Capital_Goods | C103: LT | D103: 2021-04-29 | E103: 1410.15 | F103: 1414.50 | G103: 1381.10 | H103: 1352.05 | I103: 1318.65 | J103: 1443.55 | K103: 1476.95 | L103: 1506.00 | M103: 1447.9 | N103: 1385.45 | O103: 13302050 | P103: -1.17%
A104: 94 | B104: Technology | C104: LTI | D104: 2021-04-29 | E104: 4297.10 | F104: 4241.70 | G104: 4161.45 | H104: 4025.80 | I104: 3945.55 | J104: 4377.35 | K104: 4457.60 | L104: 4593.25 | M104: 4321.95 | N104: 4106.05 | O104: 346800 | P104: 17.84%
A105: 95 | B105: Technology | C105: LTTS | D105: 2021-04-29 | E105: 2772.90 | F105: 2761.93 | G105: 2713.97 | H105: 2655.03 | I105: 2607.07 | J105: 2820.87 | K105: 2868.83 | L105: 2927.77 | M105: 2809.9 | N105: 2703 | O105: 455000 | P105: 2.20%
A106: 96 | B106: Pharma | C106: LUPIN | D106: 2021-04-29 | E106: 1033.45 | F106: 1027.03 | G106: 1016.67 | H106: 999.88 | I106: 989.52 | J106: 1043.82 | K106: 1054.18 | L106: 1070.97 | M106: 1037.4 | N106: 1010.25 | O106: 6482100 | P106: 0.18%
A107: 97 | B107: Automobile | C107: M&M | D107: 2021-04-29 | E107: 779.60 | F107: 788.43 | G107: 764.57 | H107: 749.53 | I107: 725.67 | J107: 803.47 | K107: 827.33 | L107: 842.37 | M107: 812.3 | N107: 773.4 | O107: 10025400 | P107: 2.37%
A108: 98 | B108: Finance | C108: M&MFIN | D108: 2021-04-29 | E108: 193.00 | F108: 195.00 | G108: 187.00 | H108: 181.00 | I108: 173.00 | J108: 201.00 | K108: 209.00 | L108: 215.00 | M108: 203 | N108: 189 | O108: 17684000 | P108: 6.63%
A109: 99 | B109: Finance | C109: MANAPPURAM | D109: 2021-04-29 | E109: 155.35 | F109: 154.33 | G109: 151.27 | H109: 147.18 | I109: 144.12 | J109: 158.42 | K109: 161.48 | L109: 165.57 | M109: 157.4 | N109: 150.25 | O109: 22710000 | P109: -3.17%
A110: 100 | B110: FMCG | C110: MARICO | D110: 2021-04-29 | E110: 403.80 | F110: 408.08 | G110: 396.72 | H110: 389.63 | I110: 378.27 | J110: 415.17 | K110: 426.53 | L110: 433.62 | M110: 419.45 | N110: 401 | O110: 8098000 | P110: 5.91%
A111: 101 | B111: Automobile | C111: MARUTI | D111: 2021-04-29 | E111: 6805.00 | F111: 6828.90 | G111: 6717.80 | H111: 6630.60 | I111: 6519.50 | J111: 6916.10 | K111: 7027.20 | L111: 7114.40 | M111: 6940 | N111: 6741.7 | O111: 2544600 | P111: 1.29%
A112: 102 | B112: FMCG | C112: MCDOWELL-N | D112: 2021-04-29 | E112: 541.80 | F112: 544.10 | G112: 530.55 | H112: 519.30 | I112: 505.75 | J112: 555.35 | K112: 568.90 | L112: 580.15 | M112: 557.65 | N112: 532.85 | O112: 13460000 | P112: -0.21%
A113: 103 | B113: Finance | C113: MFSL | D113: 2021-04-29 | E113: 872.10 | F113: 868.32 | G113: 857.68 | H113: 843.27 | I113: 832.63 | J113: 882.73 | K113: 893.37 | L113: 907.78 | M113: 878.95 | N113: 853.9 | O113: 2362100 | P113: -1.68%
A114: 104 | B114: Oil_Gas | C114: MGL | D114: 2021-04-29 | E114: 1137.00 | F114: 1145.95 | G114: 1110.95 | H114: 1084.90 | I114: 1049.90 | J114: 1172.00 | K114: 1207.00 | L114: 1233.05 | M114: 1180.95 | N114: 1119.9 | O114: 1341000 | P114: 11.08%
A115: 105 | B115: Technology | C115: MINDTREE | D115: 2021-04-29 | E115: 2101.70 | F115: 2091.32 | G115: 2065.83 | H115: 2029.97 | I115: 2004.48 | J115: 2127.18 | K115: 2152.67 | L115: 2188.53 | M115: 2116.8 | N115: 2055.45 | O115: 1801600 | P115: -3.43%
A116: 106 | B116: Automobile | C116: MOTHERSUMI | D116: 2021-04-29 | E116: 209.95 | F116: 207.75 | G116: 203.20 | H116: 196.45 | I116: 191.90 | J116: 214.50 | K116: 219.05 | L116: 225.80 | M116: 212.3 | N116: 201 | O116: 28245000 | P116: -5.33%
A117: 107 | B117: Technology | C117: MPHASIS | D117: 2021-04-29 | E117: 1765.75 | F117: 1760.05 | G117: 1730.70 | H117: 1695.65 | I117: 1666.30 | J117: 1795.10 | K117: 1824.45 | L117: 1859.50 | M117: 1789.4 | N117: 1725 | O117: 523250 | P117: 9.75%
A118: 108 | B118: Automobile | C118: MRF | D118: 2021-04-29 | E118: 81952.40 | F118: 82451.37 | G118: 81256.23 | H118: 80560.07 | I118: 79364.93 | J118: 83147.53 | K118: 84342.67 | L118: 85038.83 | M118: 83646.5 | N118: 81755.2 | O118: 44690 | P118: 1.80%
A119: 109 | B119: Finance | C119: MUTHOOTFIN | D119: 2021-04-29 | E119: 1185.10 | F119: 1190.37 | G119: 1161.73 | H119: 1138.37 | I119: 1109.73 | J119: 1213.73 | K119: 1242.37 | L119: 1265.73 | M119: 1219 | N119: 1167 | O119: 2782500 | P119: 0.49%
A120: 110 | B120: Others | C120: NAM-INDIA | D120: 2021-04-29 | E120: 337.05 | F120: 338.32 | G120: 330.98 | H120: 324.92 | I120: 317.58 | J120: 344.38 | K120: 351.72 | L120: 357.78 | M120: 345.65 | N120: 332.25 | O120: 876800 | P120: -5.19%
A121: 111 | B121: Metals | C121: NATIONALUM | D121: 2021-04-29 | E121: 58.10 | F121: 57.92 | G121: 56.08 | H121: 54.07 | I121: 52.23 | J121: 59.93 | K121: 61.77 | L121: 63.78 | M121: 59.75 | N121: 55.9 | O121: 71723000 | P121: -3.54%
A122: 112 | B122: Others | C122: NAUKRI | D122: 2021-04-29 | E122: 4442.85 | F122: 4381.27 | G122: 4280.43 | H122: 4118.02 | I122: 4017.18 | J122: 4543.68 | K122: 4644.52 | L122: 4806.93 | M122: 4482.1 | N122: 4218.85 | O122: 1382000 | P122: -4.21%
A123: 113 | B123: Chemical | C123: NAVINFLUOR | D123: 2021-04-29 | E123: 2755.10 | F123: 2755.08 | G123: 2720.17 | H123: 2685.23 | I123: 2650.32 | J123: 2790.02 | K123: 2824.93 | L123: 2859.87 | M123: 2790 | N123: 2720.15 | O123: 202050 | P123: -3.34%
A124: 114 | B124: FMCG | C124: NESTLEIND | D124: 2021-04-29 | E124: 16909.00 | F124: 16946.70 | G124: 16712.85 | H124: 16516.70 | I124: 16282.85 | J124: 17142.85 | K124: 17376.70 | L124: 17572.85 | M124: 17180.55 | N124: 16750.55 | O124: 309300 | P124: 1.63%
A125: 115 | B125: Metals | C125: NMDC | D125: 2021-04-29 | E125: 141.95 | F125: 141.15 | G125: 137.70 | H125: 133.45 | I125: 130.00 | J125: 145.40 | K125: 148.85 | L125: 153.10 | M125: 144.6 | N125: 136.9 | O125: 47054100 | P125: 4.38%
A126: 116 | B126: Power | C126: NTPC | D126: 2021-04-29 | E126: 106.60 | F126: 106.43 | G126: 104.32 | H126: 102.03 | I126: 99.92 | J126: 108.72 | K126: 110.83 | L126: 113.12 | M126: 108.55 | N126: 104.15 | O126: 80370000 | P126: -2.36%
A127: 117 | B127: Oil_Gas | C127: ONGC | D127: 2021-04-29 | E127: 103.70 | F127: 102.92 | G127: 100.68 | H127: 97.67 | I127: 95.43 | J127: 105.93 | K127: 108.17 | L127: 111.18 | M127: 105.15 | N127: 99.9 | O127: 45661000 | P127: 0.36%
A128: 118 | B128: Textile | C128: PAGEIND | D128: 2021-04-29 | E128: 29787.65 | F128: 29857.00 | G128: 29388.00 | H128: 28988.35 | I128: 28519.35 | J128: 30256.65 | K128: 30725.65 | L128: 31125.30 | M128: 30326 | N128: 29457.35 | O128: 54540 | P128: -4.72%
A129: 119 | B129: Pharma | C129: PEL | D129: 2021-04-29 | E129: 1749.40 | F129: 1745.37 | G129: 1697.73 | H129: 1646.07 | I129: 1598.43 | J129: 1797.03 | K129: 1844.67 | L129: 1896.33 | M129: 1793 | N129: 1693.7 | O129: 3933600 | P129: -2.21%
A130: 120 | B130: Oil_Gas | C130: PETRONET | D130: 2021-04-29 | E130: 228.00 | F130: 226.83 | G130: 224.47 | H130: 220.93 | I130: 218.57 | J130: 230.37 | K130: 232.73 | L130: 236.27 | M130: 229.2 | N130: 223.3 | O130: 18087000 | P130: -3.95%
A131: 121 | B131: Finance | C131: PFC | D131: 2021-04-29 | E131: 111.90 | F131: 112.37 | G131: 109.58 | H131: 107.27 | I131: 104.48 | J131: 114.68 | K131: 117.47 | L131: 119.78 | M131: 115.15 | N131: 110.05 | O131: 37900600 | P131: 1.01%
A132: 122 | B132: Pharma | C132: PFIZER | D132: 2021-04-29 | E132: 4623.55 | F132: 4619.35 | G132: 4582.70 | H132: 4541.85 | I132: 4505.20 | J132: 4660.20 | K132: 4696.85 | L132: 4737.70 | M132: 4656 | N132: 4578.5 | O132: 77875 | P132: 10.07%
A133: 123 | B133: FMCG | C133: PIDILITIND | D133: 2021-04-29 | E133: 1807.20 | F133: 1818.10 | G133: 1782.20 | H133: 1757.20 | I133: 1721.30 | J133: 1843.10 | K133: 1879.00 | L133: 1904.00 | M133: 1854 | N133: 1793.1 | O133: 1964500 | P133: -0.98%
A134: 124 | B134: Chemical | C134: PIIND | D134: 2021-04-29 | E134: 2222.90 | F134: 2235.32 | G134: 2203.63 | H134: 2184.37 | I134: 2152.68 | J134: 2254.58 | K134: 2286.27 | L134: 2305.53 | M134: 2267 | N134: 2216.05 | O134: 320750 | P134: -1.00%
A135: 125 | B135: Banking | C135: PNB | D135: 2021-04-29 | E135: 36.75 | F135: 37.07 | G135: 35.58 | H135: 34.42 | I135: 32.93 | J135: 38.23 | K135: 39.72 | L135: 40.88 | M135: 38.55 | N135: 35.9 | O135: 221280000 | P135: 3.18%
A136: 126 | B136: Power | C136: POWERGRID | D136: 2021-04-29 | E136: 215.40 | F136: 216.60 | G136: 213.05 | H136: 210.70 | I136: 207.15 | J136: 218.95 | K136: 222.50 | L136: 224.85 | M136: 220.15 | N136: 214.25 | O136: 18724000 | P136: 2.14%
A137: 127 | B137: Media | C137: PVR | D137: 2021-04-29 | E137: 1151.60 | F137: 1153.27 | G137: 1108.58 | H137: 1065.57 | I137: 1020.88 | J137: 1196.28 | K137: 1240.97 | L137: 1283.98 | M137: 1197.95 | N137: 1110.25 | O137: 1755391 | P137: 10.42%
A138: 128 | B138: Cement | C138: RAMCOCEM | D138: 2021-04-29 | E138: 1015.95 | F138: 1013.10 | G138: 990.55 | H138: 965.15 | I138: 942.60 | J138: 1038.50 | K138: 1061.05 | L138: 1086.45 | M138: 1035.65 | N138: 987.7 | O138: 1643050 | P138: -6.26%
A139: 129 | B139: Banking | C139: RBLBANK | D139: 2021-04-29 | E139: 206.90 | F139: 208.90 | G139: 201.20 | H139: 195.50 | I139: 187.80 | J139: 214.60 | K139: 222.30 | L139: 228.00 | M139: 216.6 | N139: 203.2 | O139: 23110100 | P139: 6.44%
A140: 130 | B140: Power | C140: RECLTD | D140: 2021-04-29 | E140: 130.80 | F140: 130.82 | G140: 128.63 | H140: 126.47 | I140: 124.28 | J140: 132.98 | K140: 135.17 | L140: 137.33 | M140: 133 | N140: 128.65 | O140: 18096000 | P140: -1.60%
A141: 131 | B141: Oil_Gas | C141: RELIANCE | D141: 2021-04-29 | E141: 2000.45 | F141: 2001.85 | G141: 1965.65 | H141: 1930.85 | I141: 1894.65 | J141: 2036.65 | K141: 2072.85 | L141: 2107.65 | M141: 2038.05 | N141: 1967.05 | O141: 28284750 | P141: -0.27%
A142: 132 | B142: Metals | C142: SAIL | D142: 2021-04-29 | E142: 89.80 | F142: 88.02 | G142: 85.78 | H142: 81.77 | I142: 79.53 | J142: 92.03 | K142: 94.27 | L142: 98.28 | M142: 90.25 | N142: 84 | O142: 132886000 | P142: -8.18%
A143: 133 | B143: Finance | C143: SBILIFE | D143: 2021-04-29 | E143: 877.30 | F143: 878.62 | G143: 867.23 | H143: 857.17 | I143: 845.78 | J143: 888.68 | K143: 900.07 | L143: 910.13 | M143: 890 | N143: 868.55 | O143: 5348250 | P143: 1.12%
A144: 134 | B144: Banking | C144: SBIN | D144: 2021-04-29 | E144: 354.80 | F144: 358.78 | G144: 346.02 | H144: 337.23 | I144: 324.47 | J144: 367.57 | K144: 380.33 | L144: 389.12 | M144: 371.55 | N144: 350 | O144: 95901000 | P144: 0.36%
A145: 135 | B145: Cement | C145: SHREECEM | D145: 2021-04-29 | E145: 30429.35 | F145: 30319.92 | G145: 29859.83 | H145: 29290.32 | I145: 28830.23 | J145: 30889.43 | K145: 31349.52 | L145: 31919.03 | M145: 30780 | N145: 29750.4 | O145: 147900 | P145: 9.51%
A146: 136 | B146: Capital_Goods | C146: SIEMENS | D146: 2021-04-29 | E146: 1836.25 | F146: 1840.98 | G146: 1807.97 | H146: 1779.68 | I146: 1746.67 | J146: 1869.27 | K146: 1902.28 | L146: 1930.57 | M146: 1874 | N146: 1812.7 | O146: 689150 | P146: 0.64%
A147: 137 | B147: Textile | C147: SRF | D147: 2021-04-29 | E147: 5683.75 | F147: 5699.95 | G147: 5604.85 | H147: 5525.95 | I147: 5430.85 | J147: 5778.85 | K147: 5873.95 | L147: 5952.85 | M147: 5795.05 | N147: 5621.05 | O147: 367250 | P147: -5.23%
A148: 138 | B148: Finance | C148: SRTRANSFIN | D148: 2021-04-29 | E148: 1424.95 | F148: 1453.58 | G148: 1366.67 | H148: 1308.38 | I148: 1221.47 | J148: 1511.87 | K148: 1598.78 | L148: 1657.07 | M148: 1540.5 | N148: 1395.3 | O148: 3429600 | P148: -9.99%
A149: 139 | B149: Pharma | C149: SUNPHARMA | D149: 2021-04-29 | E149: 612.35 | F149: 608.07 | G149: 599.93 | H149: 587.52 | I149: 579.38 | J149: 620.48 | K149: 628.62 | L149: 641.03 | M149: 616.2 | N149: 595.65 | O149: 41617800 | P149: 0.01%
A150: 140 | B150: Media | C150: SUNTV | D150: 2021-04-29 | E150: 472.45 | F150: 471.63 | G150: 462.82 | H150: 453.18 | I150: 444.37 | J150: 481.27 | K150: 490.08 | L150: 499.72 | M150: 480.45 | N150: 462 | O150: 12354000 | P150: 0.05%
A151: 141 | B151: Chemical | C151: TATACHEM | D151: 2021-04-29 | E151: 765.65 | F151: 769.95 | G151: 747.40 | H151: 729.15 | I151: 706.60 | J151: 788.20 | K151: 810.75 | L151: 829.00 | M151: 792.5 | N151: 751.7 | O151: 9974000 | P151: -1.64%
A152: 142 | B152: FMCG | C152: TATACONSUM | D152: 2021-04-29 | E152: 647.80 | F152: 649.03 | G152: 641.97 | H152: 636.13 | I152: 629.07 | J152: 654.87 | K152: 661.93 | L152: 667.77 | M152: 656.1 | N152: 643.2 | O152: 15715350 | P152: 0.03%
A153: 143 | B153: Automobile | C153: TATAMOTORS | D153: 2021-04-29 | E153: 306.95 | F153: 306.18 | G153: 298.92 | H153: 290.88 | I153: 283.62 | J153: 314.22 | K153: 321.48 | L153: 329.52 | M153: 313.45 | N153: 298.15 | O153: 92961300 | P153: -0.40%
A154: 144 | B154: Power | C154: TATAPOWER | D154: 2021-04-29 | E154: 103.95 | F154: 103.60 | G154: 101.15 | H154: 98.35 | I154: 95.90 | J154: 106.40 | K154: 108.85 | L154: 111.65 | M154: 106.05 | N154: 100.8 | O154: 131638500 | P154: 1.17%
A155: 145 | B155: Metals | C155: TATASTEEL | D155: 2021-04-29 | E155: 871.80 | F155: 864.17 | G155: 847.63 | H155: 823.47 | I155: 806.93 | J155: 888.33 | K155: 904.87 | L155: 929.03 | M155: 880.7 | N155: 840 | O155: 44516200 | P155: -3.36%
A156: 146 | B156: Technology | C156: TCS | D156: 2021-04-29 | E156: 3252.75 | F156: 3232.93 | G156: 3190.97 | H156: 3129.18 | I156: 3087.22 | J156: 3294.72 | K156: 3336.68 | L156: 3398.47 | M156: 3274.9 | N156: 3171.15 | O156: 9051900 | P156: 0.15%
A157: 147 | B157: Technology | C157: TECHM | D157: 2021-04-29 | E157: 1004.35 | F157: 1000.90 | G157: 988.05 | H157: 971.75 | I157: 958.90 | J157: 1017.20 | K157: 1030.05 | L157: 1046.35 | M157: 1013.75 | N157: 984.6 | O157: 13669200 | P157: 6.23%
A158: 148 | B158: FMCG | C158: TITAN | D158: 2021-04-29 | E158: 1539.95 | F158: 1537.08 | G158: 1508.22 | H158: 1476.48 | I158: 1447.62 | J158: 1568.82 | K158: 1597.68 | L158: 1629.42 | M158: 1565.95 | N158: 1505.35 | O158: 6304500 | P158: -0.30%
A159: 149 | B159: Pharma | C159: TORNTPHARM | D159: 2021-04-29 | E159: 2538.40 | F159: 2540.60 | G159: 2501.60 | H159: 2464.80 | I159: 2425.80 | J159: 2577.40 | K159: 2616.40 | L159: 2653.20 | M159: 2579.6 | N159: 2503.8 | O159: 910500 | P159: 1.03%
A160: 150 | B160: Power | C160: TORNTPOWER | D160: 2021-04-29 | E160: 418.65 | F160: 420.58 | G160: 413.17 | H160: 407.68 | I160: 400.27 | J160: 426.07 | K160: 433.48 | L160: 438.97 | M160: 428 | N160: 415.1 | O160: 2538000 | P160: -4.73%
A161: 151 | B161: Others | C161: TRENT | D161: 2021-04-29 | E161: 731.55 | F161: 735.03 | G161: 721.12 | H161: 710.68 | I161: 696.77 | J161: 745.47 | K161: 759.38 | L161: 769.82 | M161: 748.95 | N161: 724.6 | O161: 1025875 | P161: 1.07%
A162: 152 | B162: Automobile | C162: TVSMOTOR | D162: 2021-04-29 | E162: 583.60 | F162: 582.35 | G162: 572.70 | H162: 561.80 | I162: 552.15 | J162: 593.25 | K162: 602.90 | L162: 613.80 | M162: 592 | N162: 571.45 | O162: 3393600 | P162: -11.57%
A163: 153 | B163: FMCG | C163: UBL | D163: 2021-04-29 | E163: 1149.95 | F163: 1173.65 | G163: 1114.95 | H163: 1079.95 | I163: 1021.25 | J163: 1208.65 | K163: 1267.35 | L163: 1302.35 | M163: 1232.35 | N163: 1138.65 | O163: 1126300 | P163: 6.56%
A164: 154 | B164: Cement | C164: ULTRACEMCO | D164: 2021-04-29 | E164: 6823.00 | F164: 6873.23 | G164: 6719.87 | H164: 6616.73 | I164: 6463.37 | J164: 6976.37 | K164: 7129.73 | L164: 7232.87 | M164: 7026.6 | N164: 6770.1 | O164: 1726400 | P164: 1.33%
A165: 155 | B165: Chemical | C165: UPL | D165: 2021-04-29 | E165: 651.00 | F165: 651.68 | G165: 634.37 | H165: 617.73 | I165: 600.42 | J165: 668.32 | K165: 685.63 | L165: 702.27 | M165: 669 | N165: 635.05 | O165: 21162700 | P165: 3.90%
A166: 156 | B166: Metals | C166: VEDL | D166: 2021-04-29 | E166: 232.10 | F166: 231.63 | G166: 229.52 | H166: 226.93 | I166: 224.82 | J166: 234.22 | K166: 236.33 | L166: 238.92 | M166: 233.75 | N166: 229.05 | O166: 64145200 | P166: -1.28%
A167: 157 | B167: Capital_Goods | C167: VOLTAS | D167: 2021-04-29 | E167: 982.50 | F167: 988.60 | G167: 961.10 | H167: 939.70 | I167: 912.20 | J167: 1010.00 | K167: 1037.50 | L167: 1058.90 | M167: 1016.1 | N167: 967.2 | O167: 3801000 | P167: 7.37%
A168: 158 | B168: Technology | C168: WIPRO | D168: 2021-04-29 | E168: 428.25 | F168: 425.70 | G168: 420.80 | H168: 413.35 | I168: 408.45 | J168: 433.15 | K168: 438.05 | L168: 445.50 | M168: 430.6 | N168: 418.25 | O168: 35756800 | P168: 1.43%
A169: 159 | B169: Media | C169: ZEEL | D169: 2021-04-29 | E169: 203.40 | F169: 202.93 | G169: 196.47 | H169: 189.53 | I169: 183.07 | J169: 209.87 | K169: 216.33 | L169: 223.27 | M169: 209.4 | N169: 196 | O169: 52695000 | P169: 4.01%
A175: Pivot Point: This is trigger point for intra day buy/sell based on the price range of the previous day
A176: As per the tool,the trader should take BUY position just above Pivot and keep the stop loss of pivot point and the first target would be Resistance 1(R1)
A177: If R1 is crossed then R2 becomes the next target with stop loss of at R1
A178: Similarly if price goes below pivot point then the trader should sell and keep a stop loss of pivot point and the first target would be S1
A179: If S1 is crossed then S2 becomes the next target with stop loss of at S1
A181: Disclaimer:
A182: This document has been prepared by the Retail Research Desk of Asit C Mehta
A183: Investment Intermediates Ltd. and is meant for use of the recipient only
A184: and is not for circulation. This document is not to be reported or
A185: copied or made available to others. It should not be considered to be
A186: taken as an offer to sell or a solicitation to buy any security. The
A187: information contained herein is from sources believed reliable. We do
A188: not represent that it is accurate or complete and it should not be
A189: relied upon as such. We may from time to time have positions in and buy
A190: and sell securities referred to herein

Sheet Cash Intra
M5: Back to Main Page
A6: FOR INTRA DAY TRADING | K6: =Main!B10 -> 2021-04-06
A8: Sr.no | B8: Scrip | C8: CLOSE RATE | D8: Pivot Point | E8: Supports | H8: Resistances
C9: Point | E9: S1 | F9: S2 | G9: S3 | H9: R1 | I9: R2 | J9: R3 | K9: HIGH | L9: LOW | M9: Total Trade Quanity in Lakhs
A10: 1 | B10: Nifty 50 | C10: 14637.8 | D10: 14649.05 | E10: 14448.25 | F10: 14258.70 | G10: 14057.90 | H10: 14838.60 | I10: 15039.40 | J10: 15228.95 | K10: 14849.85 | L10: 14459.5
A11: 2 | B11: Nifty Bank | C11: 32678.85 | D11: 32902.25 | E11: 32106.75 | F11: 31534.65 | G11: 30739.15 | H11: 33474.35 | I11: 34269.85 | J11: 34841.95 | K11: 33697.75 | L11: 32330.15
A12: 3 | B12: Nifty CPSE | C12: 1785.35 | D12: 1778.02 | E12: 1756.28 | F12: 1727.22 | G12: 1705.48 | H12: 1807.08 | I12: 1828.82 | J12: 1857.88 | K12: 1799.75 | L12: 1748.95
A13: 4 | B13: Nifty Infra | C13: 4092.9 | D13: 4086.32 | E13: 4034.38 | F13: 3975.87 | G13: 3923.93 | H13: 4144.83 | I13: 4196.77 | J13: 4255.28 | K13: 4138.25 | L13: 4027.8
A14: 5 | B14: Nifty IT | C14: 26491.35 | D14: 26367.03 | E14: 26103.27 | F14: 25715.18 | G14: 25451.42 | H14: 26755.12 | I14: 27018.88 | J14: 27406.97 | K14: 26630.8 | L14: 25978.95
A15: 6 | B15: Nifty PSE | C15: 3113.5 | D15: 3109.33 | E15: 3064.82 | F15: 3016.13 | G15: 2971.62 | H15: 3158.02 | I15: 3202.53 | J15: 3251.22 | K15: 3153.85 | L15: 3060.65
A16: 7 | B16: Nifty Midcap 50 | C16: 6767.7 | D16: 6776.00 | E16: 6645.95 | F16: 6524.20 | G16: 6394.15 | H16: 6897.75 | I16: 7027.80 | J16: 7149.55 | K16: 6906.05 | L16: 6654.25
A17: 8 | B17: ACC | C17: 1894.4 | D17: 1901.17 | E17: 1865.33 | F17: 1836.27 | G17: 1800.43 | H17: 1930.23 | I17: 1966.07 | J17: 1995.13 | K17: 1937 | L17: 1872.1 | M17: 12.72161
A18: 9 | B18: AUBANK | C18: 1228.5 | D18: 1236.52 | E18: 1209.03 | F18: 1189.57 | G18: 1162.08 | H18: 1255.98 | I18: 1283.47 | J18: 1302.93 | K18: 1264 | L18: 1217.05 | M18: 8.72471
A19: 10 | B19: AARTIIND | C19: 1329.25 | D19: 1347.80 | E19: 1306.70 | F19: 1284.15 | G19: 1243.05 | H19: 1370.35 | I19: 1411.45 | J19: 1434.00 | K19: 1388.9 | L19: 1325.25 | M19: 4.05142
A20: 11 | B20: ABBOTINDIA | C20: 15160.15 | D20: 15087.55 | E20: 14985.10 | F20: 14810.05 | G20: 14707.60 | H20: 15262.60 | I20: 15365.05 | J20: 15540.10 | K20: 15190 | L20: 14912.5 | M20: 0.1023
A21: 12 | B21: ADANIENT | C21: 1138.25 | D21: 1129.03 | E21: 1108.07 | F21: 1077.88 | G21: 1056.92 | H21: 1159.22 | I21: 1180.18 | J21: 1210.37 | K21: 1150 | L21: 1098.85 | M21: 157.9572
A22: 13 | B22: ADANIGREEN | C22: 1164.2 | D22: 1166.42 | E22: 1122.83 | F22: 1081.47 | G22: 1037.88 | H22: 1207.78 | I22: 1251.37 | J22: 1292.73 | K22: 1210 | L22: 1125.05 | M22: 8.22644
A23: 14 | B23: ADANIPORTS | C23: 742.25 | D23: 734.08 | E23: 723.17 | F23: 704.08 | G23: 693.17 | H23: 753.17 | I23: 764.08 | J23: 783.17 | K23: 745 | L23: 715 | M23: 156.22924
A24: 15 | B24: ATGL | C24: 1164 | D24: 1127.33 | E24: 1057.67 | F24: 951.33 | G24: 881.67 | H24: 1233.67 | I24: 1303.33 | J24: 1409.67 | K24: 1197 | L24: 1021 | M24: 57.5217
A25: 16 | B25: ADANITRANS | C25: 1095.15 | D25: 1064.75 | E25: 1030.40 | F25: 965.65 | G25: 931.30 | H25: 1129.50 | I25: 1163.85 | J25: 1228.60 | K25: 1099.1 | L25: 1000 | M25: 32.67413
A26: 17 | B26: ABCAPITAL | C26: 120.15 | D26: 120.02 | E26: 117.23 | F26: 114.32 | G26: 111.53 | H26: 122.93 | I26: 125.72 | J26: 128.63 | K26: 122.8 | L26: 117.1 | M26: 27.69642
A27: 18 | B27: ABFRL | C27: 187.25 | D27: 190.58 | E27: 182.67 | F27: 178.08 | G27: 170.17 | H27: 195.17 | I27: 203.08 | J27: 207.67 | K27: 198.5 | L27: 186 | M27: 30.51902
A28: 19 | B28: AJANTPHARM | C28: 1742.3 | D28: 1737.87 | E28: 1705.83 | F28: 1669.37 | G28: 1637.33 | H28: 1774.33 | I28: 1806.37 | J28: 1842.83 | K28: 1769.9 | L28: 1701.4 | M28: 0.94647
A29: 20 | B29: APLLTD | C29: 974.15 | D29: 968.88 | E29: 950.77 | F29: 927.38 | G29: 909.27 | H29: 992.27 | I29: 1010.38 | J29: 1033.77 | K29: 987 | L29: 945.5 | M29: 2.70807
A30: 21 | B30: ALKEM | C30: 2707.45 | D30: 2716.52 | E30: 2661.03 | F30: 2614.62 | G30: 2559.13 | H30: 2762.93 | I30: 2818.42 | J30: 2864.83 | K30: 2772 | L30: 2670.1 | M30: 1.50201
A31: 22 | B31: AMARAJABAT | C31: 847.85 | D31: 850.57 | E31: 834.28 | F31: 820.72 | G31: 804.43 | H31: 864.13 | I31: 880.42 | J31: 893.98 | K31: 866.85 | L31: 837 | M31: 4.55666
A32: 23 | B32: AMBUJACEM | C32: 306.05 | D32: 307.50 | E32: 300.10 | F32: 294.15 | G32: 286.75 | H32: 313.45 | I32: 320.85 | J32: 326.80 | K32: 314.9 | L32: 301.55 | M32: 70.64466
A33: 24 | B33: APOLLOHOSP | C33: 2919.5 | D33: 2940.17 | E33: 2865.33 | F33: 2811.17 | G33: 2736.33 | H33: 2994.33 | I33: 3069.17 | J33: 3123.33 | K33: 3015 | L33: 2886 | M33: 12.41115
A34: 25 | B34: APOLLOTYRE | C34: 221.75 | D34: 225.72 | E34: 217.08 | F34: 212.42 | G34: 203.78 | H34: 230.38 | I34: 239.02 | J34: 243.68 | K34: 234.35 | L34: 221.05 | M34: 78.2625
A35: 26 | B35: ASHOKLEY | C35: 113.35 | D35: 113.92 | E35: 110.23 | F35: 107.12 | G35: 103.43 | H35: 117.03 | I35: 120.72 | J35: 123.83 | K35: 117.6 | L35: 110.8 | M35: 223.61908
A36: 27 | B36: ASIANPAINT | C36: 2510.65 | D36: 2517.72 | E36: 2477.43 | F36: 2444.22 | G36: 2403.93 | H36: 2550.93 | I36: 2591.22 | J36: 2624.43 | K36: 2558 | L36: 2484.5 | M36: 12.68939
A37: 28 | B37: AUROPHARMA | C37: 882.2 | D37: 882.28 | E37: 870.92 | F37: 859.63 | G37: 848.27 | H37: 893.57 | I37: 904.93 | J37: 916.22 | K37: 893.65 | L37: 871 | M37: 15.59124
A38: 29 | B38: DMART | C38: 2846.95 | D38: 2843.32 | E38: 2796.63 | F38: 2746.32 | G38: 2699.63 | H38: 2893.63 | I38: 2940.32 | J38: 2990.63 | K38: 2890 | L38: 2793 | M38: 4.60926
A39: 30 | B39: AXISBANK | C39: 685.25 | D39: 690.38 | E39: 672.32 | F39: 659.38 | G39: 641.32 | H39: 703.32 | I39: 721.38 | J39: 734.32 | K39: 708.45 | L39: 677.45 | M39: 162.39521
A40: 31 | B40: BAJAJ-AUTO | C40: 3598.5 | D40: 3638.18 | E40: 3536.37 | F40: 3474.23 | G40: 3372.42 | H40: 3700.32 | I40: 3802.13 | J40: 3864.27 | K40: 3740 | L40: 3576.05 | M40: 7.23573
A41: 32 | B41: BAJFINANCE | C41: 4962.5 | D41: 5047.37 | E41: 4835.73 | F41: 4708.97 | G41: 4497.33 | H41: 5174.13 | I41: 5385.77 | J41: 5512.53 | K41: 5259 | L41: 4920.6 | M41: 37.3968
A42: 33 | B42: BAJAJFINSV | C42: 9481.65 | D42: 9465.18 | E42: 9166.47 | F42: 8851.28 | G42: 8552.57 | H42: 9780.37 | I42: 10079.08 | J42: 10394.27 | K42: 9763.9 | L42: 9150 | M42: 6.12166
A43: 34 | B43: BAJAJHLDNG | C43: 3291 | D43: 3315.00 | E43: 3251.00 | F43: 3211.00 | G43: 3147.00 | H43: 3355.00 | I43: 3419.00 | J43: 3459.00 | K43: 3379 | L43: 3275 | M43: 0.61876
A44: 35 | B44: BALKRISIND | C44: 1650.8 | D44: 1651.80 | E44: 1624.55 | F44: 1598.30 | G44: 1571.05 | H44: 1678.05 | I44: 1705.30 | J44: 1731.55 | K44: 1679.05 | L44: 1625.55 | M44: 4.30886
A45: 36 | B45: BANDHANBNK | C45: 335.45 | D45: 337.53 | E45: 326.07 | F45: 316.68 | G45: 305.22 | H45: 346.92 | I45: 358.38 | J45: 367.77 | K45: 349 | L45: 328.15 | M45: 54.21081
A46: 37 | B46: BANKBARODA | C46: 72.7 | D46: 73.05 | E46: 70.45 | F46: 68.20 | G46: 65.60 | H46: 75.30 | I46: 77.90 | J46: 80.15 | K46: 75.65 | L46: 70.8 | M46: 373.43942
A47: 38 | B47: BANKINDIA | C47: 67.25 | D47: 67.83 | E47: 65.97 | F47: 64.68 | G47: 62.82 | H47: 69.12 | I47: 70.98 | J47: 72.27 | K47: 69.7 | L47: 66.55 | M47: 40.30619
A48: 39 | B48: BATAINDIA | C48: 1396.55 | D48: 1404.07 | E48: 1373.28 | F48: 1350.02 | G48: 1319.23 | H48: 1427.33 | I48: 1458.12 | J48: 1481.38 | K48: 1434.85 | L48: 1380.8 | M48: 7.43916
A49: 40 | B49: BERGEPAINT | C49: 746.75 | D49: 752.92 | E49: 736.83 | F49: 726.92 | G49: 710.83 | H49: 762.83 | I49: 778.92 | J49: 788.83 | K49: 769 | L49: 743 | M49: 8.56266
A50: 41 | B50: BEL | C50: 131.4 | D50: 129.47 | E50: 126.93 | F50: 122.47 | G50: 119.93 | H50: 133.93 | I50: 136.47 | J50: 140.93 | K50: 132 | L50: 125 | M50: 204.25592
A51: 42 | B51: BHARATFORG | C51: 608.65 | D51: 604.83 | E51: 592.67 | F51: 576.68 | G51: 564.52 | H51: 620.82 | I51: 632.98 | J51: 648.97 | K51: 617 | L51: 588.85 | M51: 12.9637
A52: 43 | B52: BHEL | C52: 49 | D52: 49.50 | E52: 47.90 | F52: 46.80 | G52: 45.20 | H52: 50.60 | I52: 52.20 | J52: 53.30 | K52: 51.1 | L52: 48.4 | M52: 493.48313
A53: 44 | B53: BPCL | C53: 428.05 | D53: 428.72 | E53: 420.43 | F53: 412.82 | G53: 404.53 | H53: 436.33 | I53: 444.62 | J53: 452.23 | K53: 437 | L53: 421.1 | M53: 57.55221
A54: 45 | B54: BHARTIARTL | C54: 528.25 | D54: 523.95 | E54: 518.90 | F54: 509.55 | G54: 504.50 | H54: 533.30 | I54: 538.35 | J54: 547.70 | K54: 529 | L54: 514.6 | M54: 92.03847
A55: 46 | B55: BIOCON | C55: 406.45 | D55: 406.18 | E55: 401.82 | F55: 397.18 | G55: 392.82 | H55: 410.82 | I55: 415.18 | J55: 419.82 | K55: 410.55 | L55: 401.55 | M55: 13.18706
A56: 47 | B56: BBTC | C56: 1181.95 | D56: 1170.20 | E56: 1147.90 | F56: 1113.85 | G56: 1091.55 | H56: 1204.25 | I56: 1226.55 | J56: 1260.60 | K56: 1192.5 | L56: 1136.15 | M56: 1.24937
A57: 48 | B57: BOSCHLTD | C57: 14035.65 | D57: 14009.85 | E57: 13840.80 | F57: 13645.95 | G57: 13476.90 | H57: 14204.70 | I57: 14373.75 | J57: 14568.60 | K57: 14178.9 | L57: 13815 | M57: 0.24374
A58: 49 | B58: BRITANNIA | C58: 3700.35 | D58: 3683.45 | E58: 3646.90 | F58: 3593.45 | G58: 3556.90 | H58: 3736.90 | I58: 3773.45 | J58: 3826.90 | K58: 3720 | L58: 3630 | M58: 8.07938
A59: 50 | B59: CESC | C59: 600.25 | D59: 601.83 | E59: 593.67 | F59: 587.08 | G59: 578.92 | H59: 608.42 | I59: 616.58 | J59: 623.17 | K59: 610 | L59: 595.25 | M59: 1.57143
A60: 51 | B60: CADILAHC | C60: 439.95 | D60: 441.13 | E60: 433.27 | F60: 426.58 | G60: 418.72 | H60: 447.82 | I60: 455.68 | J60: 462.37 | K60: 449 | L60: 434.45 | M60: 29.4004
A61: 52 | B61: CANBK | C61: 146.75 | D61: 149.20 | E61: 142.40 | F61: 138.05 | G61: 131.25 | H61: 153.55 | I61: 160.35 | J61: 164.70 | K61: 156 | L61: 144.85 | M61: 225.34118
A62: 53 | B62: CASTROLIND | C62: 125.35 | D62: 124.58 | E62: 123.27 | F62: 121.18 | G62: 119.87 | H62: 126.67 | I62: 127.98 | J62: 130.07 | K62: 125.9 | L62: 122.5 | M62: 7.65288
A63: 54 | B63: CHOLAFIN | C63: 544.35 | D63: 546.43 | E63: 531.92 | F63: 519.48 | G63: 504.97 | H63: 558.87 | I63: 573.38 | J63: 585.82 | K63: 560.95 | L63: 534 | M63: 34.89627
A64: 55 | B64: CIPLA | C64: 819.75 | D64: 817.62 | E64: 808.23 | F64: 796.72 | G64: 787.33 | H64: 829.13 | I64: 838.52 | J64: 850.03 | K64: 827 | L64: 806.1 | M64: 29.20638
A65: 56 | B65: CUB | C65: 156.3 | D65: 157.73 | E65: 153.67 | F65: 151.03 | G65: 146.97 | H65: 160.37 | I65: 164.43 | J65: 167.07 | K65: 161.8 | L65: 155.1 | M65: 17.85738
A66: 57 | B66: COALINDIA | C66: 129.8 | D66: 129.98 | E66: 127.87 | F66: 125.93 | G66: 123.82 | H66: 131.92 | I66: 134.03 | J66: 135.97 | K66: 132.1 | L66: 128.05 | M66: 90.12457
A67: 58 | B67: COFORGE | C67: 3036.6 | D67: 2993.83 | E67: 2927.77 | F67: 2818.93 | G67: 2752.87 | H67: 3102.67 | I67: 3168.73 | J67: 3277.57 | K67: 3059.9 | L67: 2885 | M67: 7.66853
A68: 59 | B68: COLPAL | C68: 1556.4 | D68: 1552.97 | E68: 1536.93 | F68: 1517.47 | G68: 1501.43 | H68: 1572.43 | I68: 1588.47 | J68: 1607.93 | K68: 1569 | L68: 1533.5 | M68: 1.90999
A69: 60 | B69: CONCOR | C69: 578.6 | D69: 586.83 | E69: 565.87 | F69: 553.13 | G69: 532.17 | H69: 599.57 | I69: 620.53 | J69: 633.27 | K69: 607.8 | L69: 574.1 | M69: 16.81325
A70: 61 | B70: COROMANDEL | C70: 738.9 | D70: 736.83 | E70: 720.07 | F70: 701.23 | G70: 684.47 | H70: 755.67 | I70: 772.43 | J70: 791.27 | K70: 753.6 | L70: 718 | M70: 4.8951
A71: 62 | B71: CROMPTON | C71: 373.3 | D71: 376.93 | E71: 360.62 | F71: 347.93 | G71: 331.62 | H71: 389.62 | I71: 405.93 | J71: 418.62 | K71: 393.25 | L71: 364.25 | M71: 22.20358
A72: 63 | B72: CUMMINSIND | C72: 882.05 | D72: 884.95 | E72: 865.90 | F72: 849.75 | G72: 830.70 | H72: 901.10 | I72: 920.15 | J72: 936.30 | K72: 904 | L72: 868.8 | M72: 8.58911
A73: 64 | B73: DLF | C73: 276.75 | D73: 279.30 | E73: 269.60 | F73: 262.45 | G73: 252.75 | H73: 286.45 | I73: 296.15 | J73: 303.30 | K73: 289 | L73: 272.15 | M73: 107.16857
A74: 65 | B74: DABUR | C74: 537 | D74: 537.40 | E74: 533.70 | F74: 530.40 | G74: 526.70 | H74: 540.70 | I74: 544.40 | J74: 547.70 | K74: 541.1 | L74: 534.1 | M74: 13.59678
A75: 66 | B75: DALBHARAT | C75: 1536.9 | D75: 1548.62 | E75: 1513.28 | F75: 1489.67 | G75: 1454.33 | H75: 1572.23 | I75: 1607.57 | J75: 1631.18 | K75: 1583.95 | L75: 1525 | M75: 0.75321
A76: 67 | B76: DHANI | C76: 163.7 | D76: 164.90 | E76: 155.15 | F76: 146.60 | G76: 136.85 | H76: 173.45 | I76: 183.20 | J76: 191.75 | K76: 174.65 | L76: 156.35 | M76: 36.67729
A77: 68 | B77: DIVISLAB | C77: 3611.05 | D77: 3617.90 | E77: 3554.80 | F77: 3498.55 | G77: 3435.45 | H77: 3674.15 | I77: 3737.25 | J77: 3793.50 | K77: 3681 | L77: 3561.65 | M77: 8.80667
A78: 69 | B78: LALPATHLAB | C78: 2898.3 | D78: 2847.77 | E78: 2770.53 | F78: 2642.77 | G78: 2565.53 | H78: 2975.53 | I78: 3052.77 | J78: 3180.53 | K78: 2925 | L78: 2720 | M78: 9.42719
A79: 70 | B79: DRREDDY | C79: 4556.6 | D79: 4521.50 | E79: 4459.00 | F79: 4361.40 | G79: 4298.90 | H79: 4619.10 | I79: 4681.60 | J79: 4779.20 | K79: 4584 | L79: 4423.9 | M79: 7.32258
A80: 71 | B80: EDELWEISS | C80: 69.55 | D80: 68.65 | E80: 67.55 | F80: 65.55 | G80: 64.45 | H80: 70.65 | I80: 71.75 | J80: 73.75 | K80: 69.75 | L80: 66.65 | M80: 52.89356
A81: 72 | B81: EICHERMOT | C81: 2517.2 | D81: 2542.40 | E81: 2481.80 | F81: 2446.40 | G81: 2385.80 | H81: 2577.80 | I81: 2638.40 | J81: 2673.80 | K81: 2603 | L81: 2507 | M81: 12.05767
A82: 73 | B82: EMAMILTD | C82: 498.45 | D82: 493.10 | E82: 482.70 | F82: 466.95 | G82: 456.55 | H82: 508.85 | I82: 519.25 | J82: 535.00 | K82: 503.5 | L82: 477.35 | M82: 3.33102
A83: 74 | B83: ENDURANCE | C83: 1386.1 | D83: 1408.03 | E83: 1358.07 | F83: 1330.03 | G83: 1280.07 | H83: 1436.07 | I83: 1486.03 | J83: 1514.07 | K83: 1458 | L83: 1380 | M83: 0.81914
A84: 75 | B84: ESCORTS | C84: 1235.35 | D84: 1246.77 | E84: 1217.58 | F84: 1199.82 | G84: 1170.63 | H84: 1264.53 | I84: 1293.72 | J84: 1311.48 | K84: 1275.95 | L84: 1229 | M84: 8.87686
A85: 76 | B85: EXIDEIND | C85: 182.65 | D85: 183.62 | E85: 180.03 | F85: 177.42 | G85: 173.83 | H85: 186.23 | I85: 189.82 | J85: 192.43 | K85: 187.2 | L85: 181 | M85: 28.97684
A86: 77 | B86: FEDERALBNK | C86: 76.4 | D86: 76.53 | E86: 74.22 | F86: 72.03 | G86: 69.72 | H86: 78.72 | I86: 81.03 | J86: 83.22 | K86: 78.85 | L86: 74.35 | M86: 214.09152
A87: 78 | B87: FORTIS | C87: 219.4 | D87: 215.98 | E87: 204.62 | F87: 189.83 | G87: 178.47 | H87: 230.77 | I87: 242.13 | J87: 256.92 | K87: 227.35 | L87: 201.2 | M87: 130.70896
A88: 79 | B88: FRETAIL | C88: 46.95 | D88: 46.80 | E88: 46.65 | F88: 46.35 | G88: 46.20 | H88: 47.10 | I88: 47.25 | J88: 47.55 | K88: 46.95 | L88: 46.5 | M88: 7.62792
A89: 80 | B89: GAIL | C89: 134.95 | D89: 136.32 | E89: 133.18 | F89: 131.42 | G89: 128.28 | H89: 138.08 | I89: 141.22 | J89: 142.98 | K89: 139.45 | L89: 134.55 | M89: 127.58646
A90: 81 | B90: GMRINFRA | C90: 24.05 | D90: 24.37 | E90: 23.43 | F90: 22.82 | G90: 21.88 | H90: 24.98 | I90: 25.92 | J90: 26.53 | K90: 25.3 | L90: 23.75 | M90: 228.7819
A91: 82 | B91: GICRE | C91: 203.2 | D91: 202.52 | E91: 198.98 | F91: 194.77 | G91: 191.23 | H91: 206.73 | I91: 210.27 | J91: 214.48 | K91: 206.05 | L91: 198.3 | M91: 5.73689
A92: 83 | B92: GLENMARK | C92: 479.05 | D92: 481.42 | E92: 470.83 | F92: 462.62 | G92: 452.03 | H92: 489.63 | I92: 500.22 | J92: 508.43 | K92: 492 | L92: 473.2 | M92: 16.35705
A93: 84 | B93: GODREJAGRO | C93: 507.3 | D93: 509.98 | E93: 497.42 | F93: 487.53 | G93: 474.97 | H93: 519.87 | I93: 532.43 | J93: 542.32 | K93: 522.55 | L93: 500.1 | M93: 0.94747
A94: 85 | B94: GODREJCP | C94: 722.35 | D94: 719.87 | E94: 706.73 | F94: 691.12 | G94: 677.98 | H94: 735.48 | I94: 748.62 | J94: 764.23 | K94: 733 | L94: 704.25 | M94: 15.93063
A95: 86 | B95: GODREJIND | C95: 540.8 | D95: 536.52 | E95: 524.28 | F95: 507.77 | G95: 495.53 | H95: 553.03 | I95: 565.27 | J95: 581.78 | K95: 548.75 | L95: 520 | M95: 1.62047
A96: 87 | B96: GODREJPROP | C96: 1352.1 | D96: 1355.07 | E96: 1314.13 | F96: 1276.17 | G96: 1235.23 | H96: 1393.03 | I96: 1433.97 | J96: 1471.93 | K96: 1396 | L96: 1317.1 | M96: 7.10251
A97: 88 | B97: GRASIM | C97: 1446.5 | D97: 1448.10 | E97: 1423.50 | F97: 1400.50 | G97: 1375.90 | H97: 1471.10 | I97: 1495.70 | J97: 1518.70 | K97: 1472.7 | L97: 1425.1 | M97: 13.96534
A98: 89 | B98: GUJGASLTD | C98: 548.6 | D98: 546.20 | E98: 537.40 | F98: 526.20 | G98: 517.40 | H98: 557.40 | I98: 566.20 | J98: 577.40 | K98: 555 | L98: 535 | M98: 9.35563
A99: 90 | B99: GSPL | C99: 269.75 | D99: 269.62 | E99: 264.23 | F99: 258.72 | G99: 253.33 | H99: 275.13 | I99: 280.52 | J99: 286.03 | K99: 275 | L99: 264.1 | M99: 2.55529
A100: 91 | B100: HCLTECH | C100: 1033.5 | D100: 1025.37 | E100: 1010.73 | F100: 987.97 | G100: 973.33 | H100: 1048.13 | I100: 1062.77 | J100: 1085.53 | K100: 1040 | L100: 1002.6 | M100: 94.52833
A101: 92 | B101: HDFCAMC | C101: 2902.35 | D101: 2900.35 | E101: 2853.00 | F101: 2803.65 | G101: 2756.30 | H101: 2949.70 | I101: 2997.05 | J101: 3046.40 | K101: 2947.7 | L101: 2851 | M101: 1.48725
A102: 93 | B102: HDFCBANK | C102: 1449.6 | D102: 1455.20 | E102: 1425.40 | F102: 1401.20 | G102: 1371.40 | H102: 1479.40 | I102: 1509.20 | J102: 1533.40 | K102: 1485 | L102: 1431 | M102: 80.03293
A103: 94 | B103: HDFCLIFE | C103: 682.15 | D103: 685.42 | E103: 672.83 | F103: 663.52 | G103: 650.93 | H103: 694.73 | I103: 707.32 | J103: 716.63 | K103: 698 | L103: 676.1 | M103: 20.74674
A104: 95 | B104: HAVELLS | C104: 1029.85 | D104: 1036.28 | E104: 1009.02 | F104: 988.18 | G104: 960.92 | H104: 1057.12 | I104: 1084.38 | J104: 1105.22 | K104: 1063.55 | L104: 1015.45 | M104: 10.17471
A105: 96 | B105: HEROMOTOCO | C105: 2886.9 | D105: 2908.82 | E105: 2844.68 | F105: 2802.47 | G105: 2738.33 | H105: 2951.03 | I105: 3015.17 | J105: 3057.38 | K105: 2972.95 | L105: 2866.6 | M105: 11.52927
A106: 97 | B106: HINDALCO | C106: 350.65 | D106: 347.18 | E106: 341.47 | F106: 332.28 | G106: 326.57 | H106: 356.37 | I106: 362.08 | J106: 371.27 | K106: 352.9 | L106: 338 | M106: 147.71653
A107: 98 | B107: HINDPETRO | C107: 235.25 | D107: 234.63 | E107: 230.12 | F107: 224.98 | G107: 220.47 | H107: 239.77 | I107: 244.28 | J107: 249.42 | K107: 239.15 | L107: 229.5 | M107: 48.29242
A108: 99 | B108: HINDUNILVR | C108: 2373.2 | D108: 2378.97 | E108: 2340.73 | F108: 2308.27 | G108: 2270.03 | H108: 2411.43 | I108: 2449.67 | J108: 2482.13 | K108: 2417.2 | L108: 2346.5 | M108: 25.45447
A109: 100 | B109: HINDZINC | C109: 297.25 | D109: 292.58 | E109: 282.17 | F109: 267.08 | G109: 256.67 | H109: 307.67 | I109: 318.08 | J109: 333.17 | K109: 303 | L109: 277.5 | M109: 39.45113
A110: 101 | B110: HUDCO | C110: 43.9 | D110: 44.23 | E110: 43.32 | F110: 42.73 | G110: 41.82 | H110: 44.82 | I110: 45.73 | J110: 46.32 | K110: 45.15 | L110: 43.65 | M110: 14.23574
A111: 102 | B111: HDFC | C111: 2445.85 | D111: 2463.28 | E111: 2395.57 | F111: 2345.28 | G111: 2277.57 | H111: 2513.57 | I111: 2581.28 | J111: 2631.57 | K111: 2531 | L111: 2413 | M111: 33.53567
A112: 103 | B112: ICICIBANK | C112: 571.25 | D112: 575.58 | E112: 559.17 | F112: 547.08 | G112: 530.67 | H112: 587.67 | I112: 604.08 | J112: 616.17 | K112: 592 | L112: 563.5 | M112: 232.60127
A113: 104 | B113: ICICIGI | C113: 1410.65 | D113: 1422.83 | E113: 1387.87 | F113: 1365.08 | G113: 1330.12 | H113: 1445.62 | I113: 1480.58 | J113: 1503.37 | K113: 1457.8 | L113: 1400.05 | M113: 7.31017
A114: 105 | B114: ICICIPRULI | C114: 436.7 | D114: 439.05 | E114: 431.15 | F114: 425.60 | G114: 417.70 | H114: 444.60 | I114: 452.50 | J114: 458.05 | K114: 446.95 | L114: 433.5 | M114: 25.24024
A115: 106 | B115: ISEC | C115: 391.85 | D115: 391.25 | E115: 386.60 | F115: 381.35 | G115: 376.70 | H115: 396.50 | I115: 401.15 | J115: 406.40 | K115: 395.9 | L115: 386 | M115: 4.54112
A116: 107 | B116: IDFCFIRSTB | C116: 54.3 | D116: 55.02 | E116: 53.03 | F116: 51.77 | G116: 49.78 | H116: 56.28 | I116: 58.27 | J116: 59.53 | K116: 57 | L116: 53.75 | M116: 483.64592
A117: 108 | B117: ITC | C117: 212.55 | D117: 214.35 | E117: 208.70 | F117: 204.85 | G117: 199.20 | H117: 218.20 | I117: 223.85 | J117: 227.70 | K117: 220 | L117: 210.5 | M117: 313.78045
A118: 109 | B118: IBULHSGFIN | C118: 193.4 | D118: 196.10 | E118: 187.40 | F118: 181.40 | G118: 172.70 | H118: 202.10 | I118: 210.80 | J118: 216.80 | K118: 204.8 | L118: 190.1 | M118: 157.41065
A119: 110 | B119: INDHOTEL | C119: 107.95 | D119: 108.08 | E119: 106.37 | F119: 104.78 | G119: 103.07 | H119: 109.67 | I119: 111.38 | J119: 112.97 | K119: 109.8 | L119: 106.5 | M119: 21.54197
A120: 111 | B120: IOC | C120: 90.75 | D120: 91.27 | E120: 89.53 | F120: 88.32 | G120: 86.58 | H120: 92.48 | I120: 94.22 | J120: 95.43 | K120: 93 | L120: 90.05 | M120: 171.82715
A121: 112 | B121: IRCTC | C121: 1702.65 | D121: 1706.00 | E121: 1674.05 | F121: 1645.45 | G121: 1613.50 | H121: 1734.60 | I121: 1766.55 | J121: 1795.15 | K121: 1737.95 | L121: 1677.4 | M121: 16.2283
A122: 113 | B122: IGL | C122: 504.75 | D122: 510.92 | E122: 496.08 | F122: 487.42 | G122: 472.58 | H122: 519.58 | I122: 534.42 | J122: 543.08 | K122: 525.75 | L122: 502.25 | M122: 20.59327
A123: 114 | B123: INDUSTOWER | C123: 251.8 | D123: 251.67 | E123: 245.53 | F123: 239.27 | G123: 233.13 | H123: 257.93 | I123: 264.07 | J123: 270.33 | K123: 257.8 | L123: 245.4 | M123: 12.43612
A124: 115 | B124: INDUSINDBK | C124: 937.35 | D124: 948.28 | E124: 907.62 | F124: 877.88 | G124: 837.22 | H124: 978.02 | I124: 1018.68 | J124: 1048.42 | K124: 988.95 | L124: 918.55 | M124: 112.23431
A125: 116 | B125: NAUKRI | C125: 4433.4 | D125: 4367.88 | E125: 4267.97 | F125: 4102.53 | G125: 4002.62 | H125: 4533.32 | I125: 4633.23 | J125: 4798.67 | K125: 4467.8 | L125: 4202.45 | M125: 12.59614
A126: 117 | B126: INFY | C126: 1409.9 | D126: 1407.30 | E126: 1389.60 | F126: 1369.30 | G126: 1351.60 | H126: 1427.60 | I126: 1445.30 | J126: 1465.60 | K126: 1425 | L126: 1387 | M126: 94.79572
A127: 118 | B127: INDIGO | C127: 1552.7 | D127: 1562.53 | E127: 1515.17 | F127: 1477.63 | G127: 1430.27 | H127: 1600.07 | I127: 1647.43 | J127: 1684.97 | K127: 1609.9 | L127: 1525 | M127: 17.14868
A128: 119 | B128: IPCALAB | C128: 1875.55 | D128: 1867.30 | E128: 1841.60 | F128: 1807.65 | G128: 1781.95 | H128: 1901.25 | I128: 1926.95 | J128: 1960.90 | K128: 1893 | L128: 1833.35 | M128: 1.03238
A129: 120 | B129: JSWENERGY | C129: 86.55 | D129: 87.32 | E129: 84.23 | F129: 81.92 | G129: 78.83 | H129: 89.63 | I129: 92.72 | J129: 95.03 | K129: 90.4 | L129: 85 | M129: 50.31925
A130: 121 | B130: JSWSTEEL | C130: 517.5 | D130: 514.23 | E130: 506.47 | F130: 495.43 | G130: 487.67 | H130: 525.27 | I130: 533.03 | J130: 544.07 | K130: 522 | L130: 503.2 | M130: 297.11225
A131: 122 | B131: JINDALSTEL | C131: 382.85 | D131: 376.03 | E131: 366.07 | F131: 349.28 | G131: 339.32 | H131: 392.82 | I131: 402.78 | J131: 419.57 | K131: 386 | L131: 359.25 | M131: 115.14234
A132: 123 | B132: JUBLFOOD | C132: 2837 | D132: 2870.27 | E132: 2774.28 | F132: 2711.57 | G132: 2615.58 | H132: 2932.98 | I132: 3028.97 | J132: 3091.68 | K132: 2966.25 | L132: 2807.55 | M132: 6.69772
A133: 124 | B133: KOTAKBANK | C133: 1759.2 | D133: 1764.40 | E133: 1729.20 | F133: 1699.20 | G133: 1664.00 | H133: 1794.40 | I133: 1829.60 | J133: 1859.60 | K133: 1799.6 | L133: 1734.4 | M133: 24.48241
A134: 125 | B134: L&TFH | C134: 95.3 | D134: 96.23 | E134: 93.07 | F134: 90.83 | G134: 87.67 | H134: 98.47 | I134: 101.63 | J134: 103.87 | K134: 99.4 | L134: 94 | M134: 110.8099
A135: 126 | B135: LTTS | C135: 2760 | D135: 2747.27 | E135: 2699.73 | F135: 2639.47 | G135: 2591.93 | H135: 2807.53 | I135: 2855.07 | J135: 2915.33 | K135: 2794.8 | L135: 2687 | M135: 3.76273
A136: 127 | B136: LICHSGFIN | C136: 418.45 | D136: 420.40 | E136: 410.00 | F136: 401.55 | G136: 391.15 | H136: 428.85 | I136: 439.25 | J136: 447.70 | K136: 430.8 | L136: 411.95 | M136: 29.94495
A137: 128 | B137: LTI | C137: 4269.5 | D137: 4215.12 | E137: 4133.43 | F137: 3997.37 | G137: 3915.68 | H137: 4351.18 | I137: 4432.87 | J137: 4568.93 | K137: 4296.8 | L137: 4079.05 | M137: 4.56022
A138: 129 | B138: LT | C138: 1403.8 | D138: 1408.07 | E138: 1377.13 | F138: 1350.47 | G138: 1319.53 | H138: 1434.73 | I138: 1465.67 | J138: 1492.33 | K138: 1439 | L138: 1381.4 | M138: 25.48649
A139: 130 | B139: LUPIN | C139: 1028.95 | D139: 1022.53 | E139: 1013.67 | F139: 998.38 | G139: 989.52 | H139: 1037.82 | I139: 1046.68 | J139: 1061.97 | K139: 1031.4 | L139: 1007.25 | M139: 7.54402
A140: 131 | B140: MRF | C140: 81520.9 | D140: 82017.53 | E140: 80765.97 | F140: 80011.03 | G140: 78759.47 | H140: 82772.47 | I140: 84024.03 | J140: 84778.97 | K140: 83269.1 | L140: 81262.6 | M140: 0.1906
A141: 132 | B141: MGL | C141: 1134.55 | D141: 1143.18 | E141: 1106.37 | F141: 1078.18 | G141: 1041.37 | H141: 1171.37 | I141: 1208.18 | J141: 1236.37 | K141: 1180 | L141: 1115 | M141: 5.55399
A142: 133 | B142: M&MFIN | C142: 195.5 | D142: 197.07 | E142: 190.43 | F142: 185.37 | G142: 178.73 | H142: 202.13 | I142: 208.77 | J142: 213.83 | K142: 203.7 | L142: 192 | M142: 64.95024
A143: 134 | B143: M&M | C143: 774.45 | D143: 784.17 | E143: 759.53 | F143: 744.62 | G143: 719.98 | H143: 799.08 | I143: 823.72 | J143: 838.63 | K143: 808.8 | L143: 769.25 | M143: 41.76802
A144: 135 | B144: MANAPPURAM | C144: 155.1 | D144: 153.78 | E144: 150.92 | F144: 146.73 | G144: 143.87 | H144: 157.97 | I144: 160.83 | J144: 165.02 | K144: 156.65 | L144: 149.6 | M144: 54.68611
A145: 136 | B145: MARICO | C145: 402.45 | D145: 406.15 | E145: 395.30 | F145: 388.15 | G145: 377.30 | H145: 413.30 | I145: 424.15 | J145: 431.30 | K145: 417 | L145: 399 | M145: 21.05709
A146: 137 | B146: MARUTI | C146: 6768.55 | D146: 6800.55 | E146: 6692.60 | F146: 6616.65 | G146: 6508.70 | H146: 6876.50 | I146: 6984.45 | J146: 7060.40 | K146: 6908.5 | L146: 6724.6 | M146: 6.68129
A147: 138 | B147: MFSL | C147: 870.05 | D147: 866.17 | E147: 855.33 | F147: 840.62 | G147: 829.78 | H147: 880.88 | I147: 891.72 | J147: 906.43 | K147: 877 | L147: 851.45 | M147: 7.48683
A148: 139 | B148: MINDTREE | C148: 2088.4 | D148: 2080.22 | E148: 2053.23 | F148: 2018.07 | G148: 1991.08 | H148: 2115.38 | I148: 2142.37 | J148: 2177.53 | K148: 2107.2 | L148: 2045.05 | M148: 10.94282
A149: 140 | B149: MOTHERSUMI | C149: 209.25 | D149: 206.98 | E149: 202.52 | F149: 195.78 | G149: 191.32 | H149: 213.72 | I149: 218.18 | J149: 224.92 | K149: 211.45 | L149: 200.25 | M149: 120.38458
A150: 141 | B150: MPHASIS | C150: 1755.1 | D150: 1748.90 | E150: 1719.35 | F150: 1683.60 | G150: 1654.05 | H150: 1784.65 | I150: 1814.20 | J150: 1849.95 | K150: 1778.45 | L150: 1713.15 | M150: 4.73624
A151: 142 | B151: MUTHOOTFIN | C151: 1184.2 | D151: 1188.53 | E151: 1160.67 | F151: 1137.13 | G151: 1109.27 | H151: 1212.07 | I151: 1239.93 | J151: 1263.47 | K151: 1216.4 | L151: 1165 | M151: 6.76793
A152: 143 | B152: NATCOPHARM | C152: 830.55 | D152: 835.38 | E152: 823.22 | F152: 815.88 | G152: 803.72 | H152: 842.72 | I152: 854.88 | J152: 862.22 | K152: 847.55 | L152: 828.05 | M152: 1.15917
A153: 144 | B153: NMDC | C153: 140.95 | D153: 140.18 | E153: 136.82 | F153: 132.68 | G153: 129.32 | H153: 144.32 | I153: 147.68 | J153: 151.82 | K153: 143.55 | L153: 136.05 | M153: 179.436
A154: 145 | B154: NTPC | C154: 106.3 | D154: 105.95 | E154: 104.10 | F154: 101.90 | G154: 100.05 | H154: 108.15 | I154: 110.00 | J154: 112.20 | K154: 107.8 | L154: 103.75 | M154: 156.66099
A155: 146 | B155: NATIONALUM | C155: 57.8 | D155: 57.65 | E155: 55.85 | F155: 53.90 | G155: 52.10 | H155: 59.60 | I155: 61.40 | J155: 63.35 | K155: 59.45 | L155: 55.7 | M155: 291.72972
A156: 147 | B156: NAVINFLUOR | C156: 2739.6 | D156: 2739.45 | E156: 2705.30 | F156: 2671.00 | G156: 2636.85 | H156: 2773.75 | I156: 2807.90 | J156: 2842.20 | K156: 2773.6 | L156: 2705.15 | M156: 1.36395
A157: 148 | B157: NESTLEIND | C157: 16880.55 | D157: 16918.15 | E157: 16686.30 | F157: 16492.05 | G157: 16260.20 | H157: 17112.40 | I157: 17344.25 | J157: 17538.50 | K157: 17150 | L157: 16723.9 | M157: 0.81557
A158: 149 | B158: NAM-INDIA | C158: 335.55 | D158: 336.28 | E158: 329.47 | F158: 323.38 | G158: 316.57 | H158: 342.37 | I158: 349.18 | J158: 355.27 | K158: 343.1 | L158: 330.2 | M158: 5.34245
A159: 150 | B159: OBEROIRLTY | C159: 572.6 | D159: 568.53 | E159: 557.07 | F159: 541.53 | G159: 530.07 | H159: 584.07 | I159: 595.53 | J159: 611.07 | K159: 580 | L159: 553 | M159: 1.10856
A160: 151 | B160: ONGC | C160: 103.45 | D160: 102.45 | E160: 100.40 | F160: 97.35 | G160: 95.30 | H160: 105.50 | I160: 107.55 | J160: 110.60 | K160: 104.5 | L160: 99.4 | M160: 248.78516
A161: 152 | B161: OIL | C161: 122.35 | D161: 122.33 | E161: 120.67 | F161: 118.98 | G161: 117.32 | H161: 124.02 | I161: 125.68 | J161: 127.37 | K161: 124 | L161: 120.65 | M161: 7.98931
A162: 153 | B162: OFSS | C162: 3196.1 | D162: 3202.85 | E162: 3165.70 | F162: 3135.30 | G162: 3098.15 | H162: 3233.25 | I162: 3270.40 | J162: 3300.80 | K162: 3240 | L162: 3172.45 | M162: 1.03398
A163: 154 | B163: PIIND | C163: 2211.45 | D163: 2224.20 | E163: 2192.85 | F163: 2174.25 | G163: 2142.90 | H163: 2242.80 | I163: 2274.15 | J163: 2292.75 | K163: 2255.55 | L163: 2205.6 | M163: 1.29132
A164: 155 | B164: PAGEIND | C164: 29679.15 | D164: 29790.05 | E164: 29200.10 | F164: 28721.05 | G164: 28131.10 | H164: 30269.10 | I164: 30859.05 | J164: 31338.10 | K164: 30380 | L164: 29311 | M164: 0.27164
A165: 156 | B165: PETRONET | C165: 227.4 | D165: 226.18 | E165: 223.87 | F165: 220.33 | G165: 218.02 | H165: 229.72 | I165: 232.03 | J165: 235.57 | K165: 228.5 | L165: 222.65 | M165: 32.22576
A166: 157 | B166: PFIZER | C166: 4601.85 | D166: 4595.13 | E166: 4560.27 | F166: 4518.68 | G166: 4483.82 | H166: 4636.72 | I166: 4671.58 | J166: 4713.17 | K166: 4630 | L166: 4553.55 | M166: 0.43024
A167: 158 | B167: PIDILITIND | C167: 1799.5 | D167: 1809.00 | E167: 1777.00 | F167: 1754.50 | G167: 1722.50 | H167: 1831.50 | I167: 1863.50 | J167: 1886.00 | K167: 1841 | L167: 1786.5 | M167: 3.63509
A168: 159 | B168: PEL | C168: 1744.05 | D168: 1743.68 | E168: 1690.37 | F168: 1636.68 | G168: 1583.37 | H168: 1797.37 | I168: 1850.68 | J168: 1904.37 | K168: 1797 | L168: 1690 | M168: 8.78698
A169: 160 | B169: POLYCAB | C169: 1373.1 | D169: 1369.80 | E169: 1344.60 | F169: 1316.10 | G169: 1290.90 | H169: 1398.30 | I169: 1423.50 | J169: 1452.00 | K169: 1395 | L169: 1341.3 | M169: 2.42102
A170: 161 | B170: PFC | C170: 111.45 | D170: 111.83 | E170: 109.32 | F170: 107.18 | G170: 104.67 | H170: 113.97 | I170: 116.48 | J170: 118.62 | K170: 114.35 | L170: 109.7 | M170: 104.98788
A171: 162 | B171: POWERGRID | C171: 214.15 | D171: 215.50 | E171: 212.00 | F171: 209.85 | G171: 206.35 | H171: 217.65 | I171: 221.15 | J171: 223.30 | K171: 219 | L171: 213.35 | M171: 81.47763
A172: 163 | B172: PRESTIGE | C172: 299.45 | D172: 299.80 | E172: 292.50 | F172: 285.55 | G172: 278.25 | H172: 306.75 | I172: 314.05 | J172: 321.00 | K172: 307.1 | L172: 292.85 | M172: 2.70617
A173: 164 | B173: PGHH | C173: 12533.65 | D173: 12454.07 | E173: 12330.83 | F173: 12128.02 | G173: 12004.78 | H173: 12656.88 | I173: 12780.12 | J173: 12982.93 | K173: 12577.3 | L173: 12251.25 | M173: 0.03634
A174: 165 | B174: PNB | C174: 36.95 | D174: 37.23 | E174: 35.92 | F174: 34.88 | G174: 33.57 | H174: 38.27 | I174: 39.58 | J174: 40.62 | K174: 38.55 | L174: 36.2 | M174: 1039.41329
A175: 166 | B175: RBLBANK | C175: 206.25 | D175: 208.08 | E175: 201.17 | F175: 196.08 | G175: 189.17 | H175: 213.17 | I175: 220.08 | J175: 225.17 | K175: 215 | L175: 203 | M175: 134.6213
A176: 167 | B176: RECLTD | C176: 130.2 | D176: 130.42 | E176: 127.98 | F176: 125.77 | G176: 123.33 | H176: 132.63 | I176: 135.07 | J176: 137.28 | K176: 132.85 | L176: 128.2 | M176: 46.80625
A177: 168 | B177: RAJESHEXPO | C177: 482.1 | D177: 483.18 | E177: 476.42 | F177: 470.73 | G177: 463.97 | H177: 488.87 | I177: 495.63 | J177: 501.32 | K177: 489.95 | L177: 477.5 | M177: 0.55754
A178: 169 | B178: RELIANCE | C178: 1992.6 | D178: 1993.23 | E178: 1961.47 | F178: 1930.33 | G178: 1898.57 | H178: 2024.37 | I178: 2056.13 | J178: 2087.27 | K178: 2025 | L178: 1962.1 | M178: 68.64856
A179: 170 | B179: SBICARD | C179: 941.35 | D179: 944.18 | E179: 909.37 | F179: 877.38 | G179: 842.57 | H179: 976.17 | I179: 1010.98 | J179: 1042.97 | K179: 979 | L179: 912.2 | M179: 21.67884
A180: 171 | B180: SBILIFE | C180: 872.55 | D180: 874.78 | E180: 862.57 | F180: 852.58 | G180: 840.37 | H180: 884.77 | I180: 896.98 | J180: 906.97 | K180: 887 | L180: 864.8 | M180: 10.91002
A181: 172 | B181: SRF | C181: 5652.2 | D181: 5667.40 | E181: 5564.80 | F181: 5477.40 | G181: 5374.80 | H181: 5754.80 | I181: 5857.40 | J181: 5944.80 | K181: 5770 | L181: 5580 | M181: 1.43188
A182: 173 | B182: SANOFI | C182: 7998.45 | D182: 8020.70 | E182: 7962.75 | F182: 7927.05 | G182: 7869.10 | H182: 8056.40 | I182: 8114.35 | J182: 8150.05 | K182: 8078.65 | L182: 7985 | M182: 0.44212
A183: 174 | B183: SHREECEM | C183: 30358.25 | D183: 30212.22 | E183: 29796.03 | F183: 29233.82 | G183: 28817.63 | H183: 30774.43 | I183: 31190.62 | J183: 31752.83 | K183: 30628.4 | L183: 29650 | M183: 1.24392
A184: 175 | B184: SRTRANSFIN | C184: 1420.15 | D184: 1429.67 | E184: 1381.03 | F184: 1341.92 | G184: 1293.28 | H184: 1468.78 | I184: 1517.42 | J184: 1556.53 | K184: 1478.3 | L184: 1390.55 | M184: 21.73089
A185: 176 | B185: SIEMENS | C185: 1824.4 | D185: 1831.20 | E185: 1799.40 | F185: 1774.40 | G185: 1742.60 | H185: 1856.20 | I185: 1888.00 | J185: 1913.00 | K185: 1863 | L185: 1806.2 | M185: 1.51339
A186: 177 | B186: SBIN | C186: 353.55 | D186: 357.27 | E186: 345.33 | F186: 337.12 | G186: 325.18 | H186: 365.48 | I186: 377.42 | J186: 385.63 | K186: 369.2 | L186: 349.05 | M186: 517.43981
A187: 178 | B187: SAIL | C187: 89.65 | D187: 87.73 | E187: 85.47 | F187: 81.28 | G187: 79.02 | H187: 91.92 | I187: 94.18 | J187: 98.37 | K187: 90 | L187: 83.55 | M187: 1499.12383
A188: 179 | B188: SUNPHARMA | C188: 608.8 | D188: 604.50 | E188: 597.05 | F188: 585.30 | G188: 577.85 | H188: 616.25 | I188: 623.70 | J188: 635.45 | K188: 611.95 | L188: 592.75 | M188: 53.53987
A189: 180 | B189: SUNTV | C189: 469.15 | D189: 469.47 | E189: 459.93 | F189: 450.72 | G189: 441.18 | H189: 478.68 | I189: 488.22 | J189: 497.43 | K189: 479 | L189: 460.25 | M189: 13.47258
A190: 181 | B190: SYNGENE | C190: 564.95 | D190: 560.80 | E190: 552.20 | F190: 539.45 | G190: 530.85 | H190: 573.55 | I190: 582.15 | J190: 594.90 | K190: 569.4 | L190: 548.05 | M190: 4.71277
A191: 182 | B191: TVSMOTOR | C191: 584.25 | D191: 581.93 | E191: 570.82 | F191: 557.38 | G191: 546.27 | H191: 595.37 | I191: 606.48 | J191: 619.92 | K191: 593.05 | L191: 568.5 | M191: 17.82479
A192: 183 | B192: TATACHEM | C192: 761.75 | D192: 766.08 | E192: 744.17 | F192: 726.58 | G192: 704.67 | H192: 783.67 | I192: 805.58 | J192: 823.17 | K192: 788 | L192: 748.5 | M192: 52.60782
A193: 184 | B193: TCS | C193: 3238.9 | D193: 3217.63 | E193: 3172.27 | F193: 3105.63 | G193: 3060.27 | H193: 3284.27 | I193: 3329.63 | J193: 3396.27 | K193: 3263 | L193: 3151 | M193: 53.17862
A194: 185 | B194: TATACONSUM | C194: 644.95 | D194: 645.37 | E194: 638.78 | F194: 632.62 | G194: 626.03 | H194: 651.53 | I194: 658.12 | J194: 664.28 | K194: 651.95 | L194: 639.2 | M194: 35.68896
A195: 186 | B195: TATAMOTORS | C195: 305.05 | D195: 304.65 | E195: 297.60 | F195: 290.15 | G195: 283.10 | H195: 312.10 | I195: 319.15 | J195: 326.60 | K195: 311.7 | L195: 297.2 | M195: 661.78755
A196: 187 | B196: TATAPOWER | C196: 103.35 | D196: 103.10 | E196: 100.70 | F196: 98.05 | G196: 95.65 | H196: 105.75 | I196: 108.15 | J196: 110.80 | K196: 105.5 | L196: 100.45 | M196: 483.40372
A197: 188 | B197: TATASTEEL | C197: 867.75 | D197: 860.92 | E197: 843.98 | F197: 820.22 | G197: 803.28 | H197: 884.68 | I197: 901.62 | J197: 925.38 | K197: 877.85 | L197: 837.15 | M197: 305.75986
A198: 189 | B198: TECHM | C198: 997.7 | D198: 994.37 | E198: 981.53 | F198: 965.37 | G198: 952.53 | H198: 1010.53 | I198: 1023.37 | J198: 1039.53 | K198: 1007.2 | L198: 978.2 | M198: 51.18272
A199: 190 | B199: RAMCOCEM | C199: 1009.9 | D199: 1006.48 | E199: 985.97 | F199: 962.03 | G199: 941.52 | H199: 1030.42 | I199: 1050.93 | J199: 1074.87 | K199: 1027 | L199: 982.55 | M199: 4.54203
A200: 191 | B200: TITAN | C200: 1535 | D200: 1531.33 | E200: 1503.67 | F200: 1472.33 | G200: 1444.67 | H200: 1562.67 | I200: 1590.33 | J200: 1621.67 | K200: 1559 | L200: 1500 | M200: 13.76233
A201: 192 | B201: TORNTPHARM | C201: 2521.55 | D201: 2524.87 | E201: 2489.73 | F201: 2457.92 | G201: 2422.78 | H201: 2556.68 | I201: 2591.82 | J201: 2623.63 | K201: 2560 | L201: 2493.05 | M201: 1.74977
A202: 193 | B202: TORNTPOWER | C202: 416.1 | D202: 418.72 | E202: 411.83 | F202: 407.57 | G202: 400.68 | H202: 422.98 | I202: 429.87 | J202: 434.13 | K202: 425.6 | L202: 414.45 | M202: 7.42898
A203: 194 | B203: TRENT | C203: 729.45 | D203: 733.20 | E203: 717.65 | F203: 705.85 | G203: 690.30 | H203: 745.00 | I203: 760.55 | J203: 772.35 | K203: 748.75 | L203: 721.4 | M203: 7.38836
A204: 195 | B204: UPL | C204: 646.25 | D204: 647.53 | E204: 630.32 | F204: 614.38 | G204: 597.17 | H204: 663.47 | I204: 680.68 | J204: 696.62 | K204: 664.75 | L204: 631.6 | M204: 90.77724
A205: 196 | B205: ULTRACEMCO | C205: 6795.8 | D205: 6841.60 | E205: 6689.20 | F205: 6582.60 | G205: 6430.20 | H205: 6948.20 | I205: 7100.60 | J205: 7207.20 | K205: 6994 | L205: 6735 | M205: 5.40954
... 29 more rows

Sheet MidCap Intra
L5: Back To Main Page
A6: FOR INTRA DAY TRADING | K6: =Main!B10 -> 2021-04-06
A9: Sr.no | B9: Scrip | C9: CLOSE RATE | D9: Pivot Point | E9: Supports | H9: Resistances
C10: Point | E10: S1 | F10: S2 | G10: S3 | H10: R1 | I10: R2 | J10: R3 | K10: HIGH | L10: LOW | M10: Total Trade Quanity in Lakhs
A11: 1 | B11: 3MINDIA | C11: 28178.55 | D11: 28622.95 | E11: 27365.90 | F11: 26553.25 | G11: 25296.20 | H11: 29435.60 | I11: 30692.65 | J11: 31505.30 | K11: 29880 | L11: 27810.3 | M11: 0.06292
A12: 2 | B12: ABB | C12: 1382.2 | D12: 1382.45 | E12: 1364.90 | F12: 1347.60 | G12: 1330.05 | H12: 1399.75 | I12: 1417.30 | J12: 1434.60 | K12: 1400 | L12: 1365.15 | M12: 0.888
A13: 3 | B13: POWERINDIA | C13: 1377.3 | D13: 1386.75 | E13: 1349.00 | F13: 1320.70 | G13: 1282.95 | H13: 1415.05 | I13: 1452.80 | J13: 1481.10 | K13: 1424.5 | L13: 1358.45 | M13: 0.14932
A14: 4 | B14: ACC | C14: 1894.4 | D14: 1901.17 | E14: 1865.33 | F14: 1836.27 | G14: 1800.43 | H14: 1930.23 | I14: 1966.07 | J14: 1995.13 | K14: 1937 | L14: 1872.1 | M14: 12.72161
A15: 5 | B15: AIAENG | C15: 1980.6 | D15: 2005.20 | E15: 1950.40 | F15: 1920.20 | G15: 1865.40 | H15: 2035.40 | I15: 2090.20 | J15: 2120.40 | K15: 2060 | L15: 1975 | M15: 0.25054
A16: 6 | B16: APLAPOLLO | C16: 1235.55 | D16: 1263.18 | E16: 1202.37 | F16: 1169.18 | G16: 1108.37 | H16: 1296.37 | I16: 1357.18 | J16: 1390.37 | K16: 1324 | L16: 1230 | M16: 3.45806
A17: 7 | B17: AUBANK | C17: 1228.5 | D17: 1236.52 | E17: 1209.03 | F17: 1189.57 | G17: 1162.08 | H17: 1255.98 | I17: 1283.47 | J17: 1302.93 | K17: 1264 | L17: 1217.05 | M17: 8.72471
A18: 8 | B18: AARTIDRUGS | C18: 698.95 | D18: 702.57 | E18: 689.98 | F18: 681.02 | G18: 668.43 | H18: 711.53 | I18: 724.12 | J18: 733.08 | K18: 715.15 | L18: 693.6 | M18: 3.66612
A19: 9 | B19: AARTIIND | C19: 1329.25 | D19: 1347.80 | E19: 1306.70 | F19: 1284.15 | G19: 1243.05 | H19: 1370.35 | I19: 1411.45 | J19: 1434.00 | K19: 1388.9 | L19: 1325.25 | M19: 4.05142
A20: 10 | B20: AAVAS | C20: 2361.75 | D20: 2375.63 | E20: 2311.27 | F20: 2260.78 | G20: 2196.42 | H20: 2426.12 | I20: 2490.48 | J20: 2540.97 | K20: 2440 | L20: 2325.15 | M20: 0.35391
A21: 11 | B21: ABBOTINDIA | C21: 15160.15 | D21: 15087.55 | E21: 14985.10 | F21: 14810.05 | G21: 14707.60 | H21: 15262.60 | I21: 15365.05 | J21: 15540.10 | K21: 15190 | L21: 14912.5 | M21: 0.1023
A22: 12 | B22: ADANIENT | C22: 1138.25 | D22: 1129.03 | E22: 1108.07 | F22: 1077.88 | G22: 1056.92 | H22: 1159.22 | I22: 1180.18 | J22: 1210.37 | K22: 1150 | L22: 1098.85 | M22: 157.9572
A23: 13 | B23: ADANIGREEN | C23: 1164.2 | D23: 1166.42 | E23: 1122.83 | F23: 1081.47 | G23: 1037.88 | H23: 1207.78 | I23: 1251.37 | J23: 1292.73 | K23: 1210 | L23: 1125.05 | M23: 8.22644
A24: 14 | B24: ADANIPORTS | C24: 742.25 | D24: 734.08 | E24: 723.17 | F24: 704.08 | G24: 693.17 | H24: 753.17 | I24: 764.08 | J24: 783.17 | K24: 745 | L24: 715 | M24: 156.22924
A25: 15 | B25: ATGL | C25: 1164 | D25: 1127.33 | E25: 1057.67 | F25: 951.33 | G25: 881.67 | H25: 1233.67 | I25: 1303.33 | J25: 1409.67 | K25: 1197 | L25: 1021 | M25: 57.5217
A26: 16 | B26: ADANITRANS | C26: 1095.15 | D26: 1064.75 | E26: 1030.40 | F26: 965.65 | G26: 931.30 | H26: 1129.50 | I26: 1163.85 | J26: 1228.60 | K26: 1099.1 | L26: 1000 | M26: 32.67413
A27: 17 | B27: ABCAPITAL | C27: 120.15 | D27: 120.02 | E27: 117.23 | F27: 114.32 | G27: 111.53 | H27: 122.93 | I27: 125.72 | J27: 128.63 | K27: 122.8 | L27: 117.1 | M27: 27.69642
A28: 18 | B28: ABFRL | C28: 187.25 | D28: 190.58 | E28: 182.67 | F28: 178.08 | G28: 170.17 | H28: 195.17 | I28: 203.08 | J28: 207.67 | K28: 198.5 | L28: 186 | M28: 30.51902
A29: 19 | B29: ADVENZYMES | C29: 363.9 | D29: 362.47 | E29: 349.93 | F29: 335.97 | G29: 323.43 | H29: 376.43 | I29: 388.97 | J29: 402.93 | K29: 375 | L29: 348.5 | M29: 5.50658
A30: 20 | B30: AEGISCHEM | C30: 288.1 | D30: 292.05 | E30: 282.85 | F30: 277.60 | G30: 268.40 | H30: 297.30 | I30: 306.50 | J30: 311.75 | K30: 301.25 | L30: 286.8 | M30: 2.19748
A31: 21 | B31: AFFLE | C31: 5429.8 | D31: 5451.57 | E31: 5303.23 | F31: 5176.67 | G31: 5028.33 | H31: 5578.13 | I31: 5726.47 | J31: 5853.03 | K31: 5599.9 | L31: 5325 | M31: 0.56857
A32: 22 | B32: AJANTPHARM | C32: 1742.3 | D32: 1737.87 | E32: 1705.83 | F32: 1669.37 | G32: 1637.33 | H32: 1774.33 | I32: 1806.37 | J32: 1842.83 | K32: 1769.9 | L32: 1701.4 | M32: 0.94647
A33: 23 | B33: AKZOINDIA | C33: 2371.75 | D33: 2372.73 | E33: 2341.02 | F33: 2310.28 | G33: 2278.57 | H33: 2403.47 | I33: 2435.18 | J33: 2465.92 | K33: 2404.45 | L33: 2342 | M33: 0.3682
A34: 24 | B34: ALEMBICLTD | C34: 105.9 | D34: 106.07 | E34: 103.33 | F34: 100.77 | G34: 98.03 | H34: 108.63 | I34: 111.37 | J34: 113.93 | K34: 108.8 | L34: 103.5 | M34: 12.15227
A35: 25 | B35: APLLTD | C35: 974.15 | D35: 968.88 | E35: 950.77 | F35: 927.38 | G35: 909.27 | H35: 992.27 | I35: 1010.38 | J35: 1033.77 | K35: 987 | L35: 945.5 | M35: 2.70807
A36: 26 | B36: ALKEM | C36: 2707.45 | D36: 2716.52 | E36: 2661.03 | F36: 2614.62 | G36: 2559.13 | H36: 2762.93 | I36: 2818.42 | J36: 2864.83 | K36: 2772 | L36: 2670.1 | M36: 1.50201
A37: 27 | B37: ALKYLAMINE | C37: 5662.6 | D37: 5663.75 | E37: 5568.85 | F37: 5475.10 | G37: 5380.20 | H37: 5757.50 | I37: 5852.40 | J37: 5946.15 | K37: 5758.65 | L37: 5570 | M37: 0.3074
A38: 28 | B38: ALOKINDS | C38: 21.5 | D38: 21.25 | E38: 20.90 | F38: 20.30 | G38: 19.95 | H38: 21.85 | I38: 22.20 | J38: 22.80 | K38: 21.6 | L38: 20.65 | M38: 135.44393
A39: 29 | B39: AMARAJABAT | C39: 847.85 | D39: 850.57 | E39: 834.28 | F39: 820.72 | G39: 804.43 | H39: 864.13 | I39: 880.42 | J39: 893.98 | K39: 866.85 | L39: 837 | M39: 4.55666
A40: 30 | B40: AMBER | C40: 3220.65 | D40: 3201.87 | E40: 3152.78 | F40: 3084.92 | G40: 3035.83 | H40: 3269.73 | I40: 3318.82 | J40: 3386.68 | K40: 3250.95 | L40: 3134 | M40: 0.68821
A41: 31 | B41: AMBUJACEM | C41: 306.05 | D41: 307.50 | E41: 300.10 | F41: 294.15 | G41: 286.75 | H41: 313.45 | I41: 320.85 | J41: 326.80 | K41: 314.9 | L41: 301.55 | M41: 70.64466
A42: 32 | B42: APOLLOHOSP | C42: 2919.5 | D42: 2940.17 | E42: 2865.33 | F42: 2811.17 | G42: 2736.33 | H42: 2994.33 | I42: 3069.17 | J42: 3123.33 | K42: 3015 | L42: 2886 | M42: 12.41115
A43: 33 | B43: APOLLOTYRE | C43: 221.75 | D43: 225.72 | E43: 217.08 | F43: 212.42 | G43: 203.78 | H43: 230.38 | I43: 239.02 | J43: 243.68 | K43: 234.35 | L43: 221.05 | M43: 78.2625
A44: 34 | B44: ASHOKLEY | C44: 113.35 | D44: 113.92 | E44: 110.23 | F44: 107.12 | G44: 103.43 | H44: 117.03 | I44: 120.72 | J44: 123.83 | K44: 117.6 | L44: 110.8 | M44: 223.61908
A45: 35 | B45: ASHOKA | C45: 96.25 | D45: 97.28 | E45: 93.97 | F45: 91.68 | G45: 88.37 | H45: 99.57 | I45: 102.88 | J45: 105.17 | K45: 100.6 | L45: 95 | M45: 9.56392
A46: 36 | B46: ASIANPAINT | C46: 2510.65 | D46: 2517.72 | E46: 2477.43 | F46: 2444.22 | G46: 2403.93 | H46: 2550.93 | I46: 2591.22 | J46: 2624.43 | K46: 2558 | L46: 2484.5 | M46: 12.68939
A47: 37 | B47: ASTERDM | C47: 137 | D47: 137.38 | E47: 134.87 | F47: 132.73 | G47: 130.22 | H47: 139.52 | I47: 142.03 | J47: 144.17 | K47: 139.9 | L47: 135.25 | M47: 1.199
A48: 38 | B48: ASTRAZEN | C48: 3303.5 | D48: 3333.17 | E48: 3218.13 | F48: 3132.77 | G48: 3017.73 | H48: 3418.53 | I48: 3533.57 | J48: 3618.93 | K48: 3448.2 | L48: 3247.8 | M48: 1.36094
A49: 39 | B49: ASTRAL | C49: 1636.6 | D49: 1647.58 | E49: 1615.17 | F49: 1593.73 | G49: 1561.32 | H49: 1669.02 | I49: 1701.43 | J49: 1722.87 | K49: 1680 | L49: 1626.15 | M49: 2.05016
A50: 40 | B50: ATUL | C50: 7510.95 | D50: 7461.30 | E50: 7375.65 | F50: 7240.35 | G50: 7154.70 | H50: 7596.60 | I50: 7682.25 | J50: 7817.55 | K50: 7546.95 | L50: 7326 | M50: 0.27903
A51: 41 | B51: AUROPHARMA | C51: 882.2 | D51: 882.28 | E51: 870.92 | F51: 859.63 | G51: 848.27 | H51: 893.57 | I51: 904.93 | J51: 916.22 | K51: 893.65 | L51: 871 | M51: 15.59124
A52: 42 | B52: AVANTIFEED | C52: 445.1 | D52: 437.17 | E52: 425.33 | F52: 405.57 | G52: 393.73 | H52: 456.93 | I52: 468.77 | J52: 488.53 | K52: 449 | L52: 417.4 | M52: 19.72854
A53: 43 | B53: DMART | C53: 2846.95 | D53: 2843.32 | E53: 2796.63 | F53: 2746.32 | G53: 2699.63 | H53: 2893.63 | I53: 2940.32 | J53: 2990.63 | K53: 2890 | L53: 2793 | M53: 4.60926
A54: 44 | B54: AXISBANK | C54: 685.25 | D54: 690.38 | E54: 672.32 | F54: 659.38 | G54: 641.32 | H54: 703.32 | I54: 721.38 | J54: 734.32 | K54: 708.45 | L54: 677.45 | M54: 162.39521
A55: 45 | B55: BASF | C55: 2034.95 | D55: 2055.33 | E55: 1994.77 | F55: 1954.58 | G55: 1894.02 | H55: 2095.52 | I55: 2156.08 | J55: 2196.27 | K55: 2115.9 | L55: 2015.15 | M55: 0.29139
A56: 46 | B56: BEML | C56: 1235.95 | D56: 1249.82 | E56: 1191.68 | F56: 1147.42 | G56: 1089.28 | H56: 1294.08 | I56: 1352.22 | J56: 1396.48 | K56: 1307.95 | L56: 1205.55 | M56: 7.86274
A57: 47 | B57: BSE | C57: 564 | D57: 568.77 | E57: 554.53 | F57: 545.07 | G57: 530.83 | H57: 578.23 | I57: 592.47 | J57: 601.93 | K57: 583 | L57: 559.3 | M57: 2.53508
A58: 48 | B58: BAJAJ-AUTO | C58: 3598.5 | D58: 3638.18 | E58: 3536.37 | F58: 3474.23 | G58: 3372.42 | H58: 3700.32 | I58: 3802.13 | J58: 3864.27 | K58: 3740 | L58: 3576.05 | M58: 7.23573
A59: 49 | B59: BAJAJCON | C59: 270.85 | D59: 270.22 | E59: 265.43 | F59: 260.02 | G59: 255.23 | H59: 275.63 | I59: 280.42 | J59: 285.83 | K59: 275 | L59: 264.8 | M59: 7.60696
A60: 50 | B60: BAJAJELEC | C60: 981 | D60: 977.47 | E60: 959.93 | F60: 938.87 | G60: 921.33 | H60: 998.53 | I60: 1016.07 | J60: 1037.13 | K60: 995 | L60: 956.4 | M60: 0.67949
A61: 51 | B61: BAJFINANCE | C61: 4962.5 | D61: 5047.37 | E61: 4835.73 | F61: 4708.97 | G61: 4497.33 | H61: 5174.13 | I61: 5385.77 | J61: 5512.53 | K61: 5259 | L61: 4920.6 | M61: 37.3968
A62: 52 | B62: BAJAJFINSV | C62: 9481.65 | D62: 9465.18 | E62: 9166.47 | F62: 8851.28 | G62: 8552.57 | H62: 9780.37 | I62: 10079.08 | J62: 10394.27 | K62: 9763.9 | L62: 9150 | M62: 6.12166
A63: 53 | B63: BAJAJHLDNG | C63: 3291 | D63: 3315.00 | E63: 3251.00 | F63: 3211.00 | G63: 3147.00 | H63: 3355.00 | I63: 3419.00 | J63: 3459.00 | K63: 3379 | L63: 3275 | M63: 0.61876
A64: 54 | B64: BALKRISIND | C64: 1650.8 | D64: 1651.80 | E64: 1624.55 | F64: 1598.30 | G64: 1571.05 | H64: 1678.05 | I64: 1705.30 | J64: 1731.55 | K64: 1679.05 | L64: 1625.55 | M64: 4.30886
A65: 55 | B65: BALMLAWRIE | C65: 129.3 | D65: 130.37 | E65: 126.33 | F65: 123.37 | G65: 119.33 | H65: 133.33 | I65: 137.37 | J65: 140.33 | K65: 134.4 | L65: 127.4 | M65: 5.6642
A66: 56 | B66: BALRAMCHIN | C66: 207.2 | D66: 206.03 | E66: 198.17 | F66: 189.13 | G66: 181.27 | H66: 215.07 | I66: 222.93 | J66: 231.97 | K66: 213.9 | L66: 197 | M66: 22.21273
A67: 57 | B67: BANDHANBNK | C67: 335.45 | D67: 337.53 | E67: 326.07 | F67: 316.68 | G67: 305.22 | H67: 346.92 | I67: 358.38 | J67: 367.77 | K67: 349 | L67: 328.15 | M67: 54.21081
A68: 58 | B68: BANKBARODA | C68: 72.7 | D68: 73.05 | E68: 70.45 | F68: 68.20 | G68: 65.60 | H68: 75.30 | I68: 77.90 | J68: 80.15 | K68: 75.65 | L68: 70.8 | M68: 373.43942
A69: 59 | B69: BANKINDIA | C69: 67.25 | D69: 67.83 | E69: 65.97 | F69: 64.68 | G69: 62.82 | H69: 69.12 | I69: 70.98 | J69: 72.27 | K69: 69.7 | L69: 66.55 | M69: 40.30619
A70: 60 | B70: MAHABANK | C70: 21.25 | D70: 21.33 | E70: 20.67 | F70: 20.08 | G70: 19.42 | H70: 21.92 | I70: 22.58 | J70: 23.17 | K70: 22 | L70: 20.75 | M70: 58.49594
A71: 61 | B71: BATAINDIA | C71: 1396.55 | D71: 1404.07 | E71: 1373.28 | F71: 1350.02 | G71: 1319.23 | H71: 1427.33 | I71: 1458.12 | J71: 1481.38 | K71: 1434.85 | L71: 1380.8 | M71: 7.43916
A72: 62 | B72: BAYERCROP | C72: 5253.25 | D72: 5234.05 | E72: 5169.20 | F72: 5085.15 | G72: 5020.30 | H72: 5318.10 | I72: 5382.95 | J72: 5467.00 | K72: 5298.9 | L72: 5150 | M72: 0.11386
A73: 63 | B73: BERGEPAINT | C73: 746.75 | D73: 752.92 | E73: 736.83 | F73: 726.92 | G73: 710.83 | H73: 762.83 | I73: 778.92 | J73: 788.83 | K73: 769 | L73: 743 | M73: 8.56266
A74: 64 | B74: BDL | C74: 339.1 | D74: 338.70 | E74: 332.50 | F74: 325.90 | G74: 319.70 | H74: 345.30 | I74: 351.50 | J74: 358.10 | K74: 344.9 | L74: 332.1 | M74: 1.28191
A75: 65 | B75: BEL | C75: 131.4 | D75: 129.47 | E75: 126.93 | F75: 122.47 | G75: 119.93 | H75: 133.93 | I75: 136.47 | J75: 140.93 | K75: 132 | L75: 125 | M75: 204.25592
A76: 66 | B76: BHARATFORG | C76: 608.65 | D76: 604.83 | E76: 592.67 | F76: 576.68 | G76: 564.52 | H76: 620.82 | I76: 632.98 | J76: 648.97 | K76: 617 | L76: 588.85 | M76: 12.9637
A77: 67 | B77: BHEL | C77: 49 | D77: 49.50 | E77: 47.90 | F77: 46.80 | G77: 45.20 | H77: 50.60 | I77: 52.20 | J77: 53.30 | K77: 51.1 | L77: 48.4 | M77: 493.48313
A78: 68 | B78: BPCL | C78: 428.05 | D78: 428.72 | E78: 420.43 | F78: 412.82 | G78: 404.53 | H78: 436.33 | I78: 444.62 | J78: 452.23 | K78: 437 | L78: 421.1 | M78: 57.55221
A79: 69 | B79: BHARATRAS | C79: 9388.1 | D79: 9410.70 | E79: 9327.40 | F79: 9266.70 | G79: 9183.40 | H79: 9471.40 | I79: 9554.70 | J79: 9615.40 | K79: 9494 | L79: 9350 | M79: 0.01692
A80: 70 | B80: BHARTIARTL | C80: 528.25 | D80: 523.95 | E80: 518.90 | F80: 509.55 | G80: 504.50 | H80: 533.30 | I80: 538.35 | J80: 547.70 | K80: 529 | L80: 514.6 | M80: 92.03847
A81: 71 | B81: BIOCON | C81: 406.45 | D81: 406.18 | E81: 401.82 | F81: 397.18 | G81: 392.82 | H81: 410.82 | I81: 415.18 | J81: 419.82 | K81: 410.55 | L81: 401.55 | M81: 13.18706
A82: 72 | B82: BIRLACORPN | C82: 963.65 | D82: 968.63 | E82: 940.12 | F82: 916.58 | G82: 888.07 | H82: 992.17 | I82: 1020.68 | J82: 1044.22 | K82: 997.15 | L82: 945.1 | M82: 2.91033
A83: 73 | B83: BSOFT | C83: 269.85 | D83: 266.73 | E83: 259.62 | F83: 249.38 | G83: 242.27 | H83: 276.97 | I83: 284.08 | J83: 294.32 | K83: 273.85 | L83: 256.5 | M83: 33.15204
A84: 74 | B84: BLISSGVS | C84: 100.1 | D84: 100.87 | E84: 98.73 | F84: 97.37 | G84: 95.23 | H84: 102.23 | I84: 104.37 | J84: 105.73 | K84: 103 | L84: 99.5 | M84: 2.28373
A85: 75 | B85: BLUEDART | C85: 5373 | D85: 5424.70 | E85: 5250.40 | F85: 5127.80 | G85: 4953.50 | H85: 5547.30 | I85: 5721.60 | J85: 5844.20 | K85: 5599 | L85: 5302.1 | M85: 0.16102
A86: 76 | B86: BLUESTARCO | C86: 924.4 | D86: 928.67 | E86: 907.33 | F86: 890.27 | G86: 868.93 | H86: 945.73 | I86: 967.07 | J86: 984.13 | K86: 950 | L86: 911.6 | M86: 2.71926
A87: 77 | B87: BBTC | C87: 1181.95 | D87: 1170.20 | E87: 1147.90 | F87: 1113.85 | G87: 1091.55 | H87: 1204.25 | I87: 1226.55 | J87: 1260.60 | K87: 1192.5 | L87: 1136.15 | M87: 1.24937
A88: 78 | B88: BOMDYEING | C88: 71.15 | D88: 71.45 | E88: 69.75 | F88: 68.35 | G88: 66.65 | H88: 72.85 | I88: 74.55 | J88: 75.95 | K88: 73.15 | L88: 70.05 | M88: 14.61925
A89: 79 | B89: BOSCHLTD | C89: 14035.65 | D89: 14009.85 | E89: 13840.80 | F89: 13645.95 | G89: 13476.90 | H89: 14204.70 | I89: 14373.75 | J89: 14568.60 | K89: 14178.9 | L89: 13815 | M89: 0.24374
A90: 80 | B90: BRIGADE | C90: 259.95 | D90: 260.90 | E90: 254.05 | F90: 248.15 | G90: 241.30 | H90: 266.80 | I90: 273.65 | J90: 279.55 | K90: 267.75 | L90: 255 | M90: 6.32474
A91: 81 | B91: BRITANNIA | C91: 3700.35 | D91: 3683.45 | E91: 3646.90 | F91: 3593.45 | G91: 3556.90 | H91: 3736.90 | I91: 3773.45 | J91: 3826.90 | K91: 3720 | L91: 3630 | M91: 8.07938
A92: 82 | B92: CARERATING | C92: 424.4 | D92: 423.85 | E92: 415.70 | F92: 407.00 | G92: 398.85 | H92: 432.55 | I92: 440.70 | J92: 449.40 | K92: 432 | L92: 415.15 | M92: 0.87545
A93: 83 | B93: CCL | C93: 228.8 | D93: 229.70 | E93: 225.45 | F93: 222.10 | G93: 217.85 | H93: 233.05 | I93: 237.30 | J93: 240.65 | K93: 233.95 | L93: 226.35 | M93: 3.20574
A94: 84 | B94: CESC | C94: 600.25 | D94: 601.83 | E94: 593.67 | F94: 587.08 | G94: 578.92 | H94: 608.42 | I94: 616.58 | J94: 623.17 | K94: 610 | L94: 595.25 | M94: 1.57143
A95: 85 | B95: CRISIL | C95: 1778.2 | D95: 1800.47 | E95: 1743.73 | F95: 1709.27 | G95: 1652.53 | H95: 1834.93 | I95: 1891.67 | J95: 1926.13 | K95: 1857.2 | L95: 1766 | M95: 0.42436
A96: 86 | B96: CSBBANK | C96: 238.75 | D96: 237.98 | E96: 234.37 | F96: 229.98 | G96: 226.37 | H96: 242.37 | I96: 245.98 | J96: 250.37 | K96: 241.6 | L96: 233.6 | M96: 4.4748
A97: 87 | B97: CADILAHC | C97: 439.95 | D97: 441.13 | E97: 433.27 | F97: 426.58 | G97: 418.72 | H97: 447.82 | I97: 455.68 | J97: 462.37 | K97: 449 | L97: 434.45 | M97: 29.4004
A98: 88 | B98: CANFINHOME | C98: 578.65 | D98: 586.82 | E98: 563.63 | F98: 548.62 | G98: 525.43 | H98: 601.83 | I98: 625.02 | J98: 640.03 | K98: 610 | L98: 571.8 | M98: 3.95667
A99: 89 | B99: CANBK | C99: 146.75 | D99: 149.20 | E99: 142.40 | F99: 138.05 | G99: 131.25 | H99: 153.55 | I99: 160.35 | J99: 164.70 | K99: 156 | L99: 144.85 | M99: 225.34118
A100: 90 | B100: CAPLIPOINT | C100: 454.95 | D100: 452.73 | E100: 438.87 | F100: 422.78 | G100: 408.92 | H100: 468.82 | I100: 482.68 | J100: 498.77 | K100: 466.6 | L100: 436.65 | M100: 3.44851
A101: 91 | B101: CGCL | C101: 381.6 | D101: 383.23 | E101: 370.52 | F101: 359.43 | G101: 346.72 | H101: 394.32 | I101: 407.03 | J101: 418.12 | K101: 395.95 | L101: 372.15 | M101: 1.04496
A102: 92 | B102: CARBORUNIV | C102: 493 | D102: 497.70 | E102: 483.40 | F102: 473.80 | G102: 459.50 | H102: 507.30 | I102: 521.60 | J102: 531.20 | K102: 512 | L102: 488.1 | M102: 1.01732
A103: 93 | B103: CASTROLIND | C103: 125.35 | D103: 124.58 | E103: 123.27 | F103: 121.18 | G103: 119.87 | H103: 126.67 | I103: 127.98 | J103: 130.07 | K103: 125.9 | L103: 122.5 | M103: 7.65288
A104: 94 | B104: CEATLTD | C104: 1548.3 | D104: 1564.43 | E104: 1508.87 | F104: 1469.43 | G104: 1413.87 | H104: 1603.87 | I104: 1659.43 | J104: 1698.87 | K104: 1620 | L104: 1525 | M104: 1.26508
A105: 95 | B105: CENTRALBK | C105: 16.3 | D105: 16.67 | E105: 15.88 | F105: 15.47 | G105: 14.68 | H105: 17.08 | I105: 17.87 | J105: 18.28 | K105: 17.45 | L105: 16.25 | M105: 129.81835
A106: 96 | B106: CDSL | C106: 652.5 | D106: 650.33 | E106: 641.17 | F106: 629.83 | G106: 620.67 | H106: 661.67 | I106: 670.83 | J106: 682.17 | K106: 659.5 | L106: 639 | M106: 7.51642
A107: 97 | B107: CENTURYPLY | C107: 319.4 | D107: 315.08 | E107: 304.62 | F107: 289.83 | G107: 279.37 | H107: 329.87 | I107: 340.33 | J107: 355.12 | K107: 325.55 | L107: 300.3 | M107: 2.668
A108: 98 | B108: CENTURYTEX | C108: 445.25 | D108: 449.03 | E108: 437.62 | F108: 429.98 | G108: 418.57 | H108: 456.67 | I108: 468.08 | J108: 475.72 | K108: 460.45 | L108: 441.4 | M108: 3.61997
A109: 99 | B109: CERA | C109: 3768.85 | D109: 3869.72 | E109: 3631.23 | F109: 3493.62 | G109: 3255.13 | H109: 4007.33 | I109: 4245.82 | J109: 4383.43 | K109: 4108.2 | L109: 3732.1 | M109: 0.1401
A110: 100 | B110: CHALET | C110: 149.95 | D110: 149.58 | E110: 146.47 | F110: 142.98 | G110: 139.87 | H110: 153.07 | I110: 156.18 | J110: 159.67 | K110: 152.7 | L110: 146.1 | M110: 2.82686
A111: 101 | B111: CHAMBLFERT | C111: 222.7 | D111: 224.23 | E111: 218.47 | F111: 214.23 | G111: 208.47 | H111: 228.47 | I111: 234.23 | J111: 238.47 | K111: 230 | L111: 220 | M111: 3.52367
A112: 102 | B112: CHENNPETRO | C112: 98.55 | D112: 99.63 | E112: 96.47 | F112: 94.38 | G112: 91.22 | H112: 101.72 | I112: 104.88 | J112: 106.97 | K112: 102.8 | L112: 97.55 | M112: 4.51679
A113: 103 | B113: CHOLAHLDNG | C113: 580.3 | D113: 581.78 | E113: 569.02 | F113: 557.73 | G113: 544.97 | H113: 593.07 | I113: 605.83 | J113: 617.12 | K113: 594.55 | L113: 570.5 | M113: 0.33035
A114: 104 | B114: CHOLAFIN | C114: 544.35 | D114: 546.43 | E114: 531.92 | F114: 519.48 | G114: 504.97 | H114: 558.87 | I114: 573.38 | J114: 585.82 | K114: 560.95 | L114: 534 | M114: 34.89627
A115: 105 | B115: CIPLA | C115: 819.75 | D115: 817.62 | E115: 808.23 | F115: 796.72 | G115: 787.33 | H115: 829.13 | I115: 838.52 | J115: 850.03 | K115: 827 | L115: 806.1 | M115: 29.20638
A116: 106 | B116: CUB | C116: 156.3 | D116: 157.73 | E116: 153.67 | F116: 151.03 | G116: 146.97 | H116: 160.37 | I116: 164.43 | J116: 167.07 | K116: 161.8 | L116: 155.1 | M116: 17.85738
A117: 107 | B117: COALINDIA | C117: 129.8 | D117: 129.98 | E117: 127.87 | F117: 125.93 | G117: 123.82 | H117: 131.92 | I117: 134.03 | J117: 135.97 | K117: 132.1 | L117: 128.05 | M117: 90.12457
A118: 108 | B118: COCHINSHIP | C118: 369.55 | D118: 370.62 | E118: 363.43 | F118: 357.32 | G118: 350.13 | H118: 376.73 | I118: 383.92 | J118: 390.03 | K118: 377.8 | L118: 364.5 | M118: 1.10902
A119: 109 | B119: COFORGE | C119: 3036.6 | D119: 2993.83 | E119: 2927.77 | F119: 2818.93 | G119: 2752.87 | H119: 3102.67 | I119: 3168.73 | J119: 3277.57 | K119: 3059.9 | L119: 2885 | M119: 7.66853
A120: 110 | B120: COLPAL | C120: 1556.4 | D120: 1552.97 | E120: 1536.93 | F120: 1517.47 | G120: 1501.43 | H120: 1572.43 | I120: 1588.47 | J120: 1607.93 | K120: 1569 | L120: 1533.5 | M120: 1.90999
A121: 111 | B121: CONCOR | C121: 578.6 | D121: 586.83 | E121: 565.87 | F121: 553.13 | G121: 532.17 | H121: 599.57 | I121: 620.53 | J121: 633.27 | K121: 607.8 | L121: 574.1 | M121: 16.81325
A122: 112 | B122: COROMANDEL | C122: 738.9 | D122: 736.83 | E122: 720.07 | F122: 701.23 | G122: 684.47 | H122: 755.67 | I122: 772.43 | J122: 791.27 | K122: 753.6 | L122: 718 | M122: 4.8951
A123: 113 | B123: CREDITACC | C123: 630.65 | D123: 651.88 | E123: 604.77 | F123: 578.88 | G123: 531.77 | H123: 677.77 | I123: 724.88 | J123: 750.77 | K123: 699 | L123: 626 | M123: 0.93601
A124: 114 | B124: CROMPTON | C124: 373.3 | D124: 376.93 | E124: 360.62 | F124: 347.93 | G124: 331.62 | H124: 389.62 | I124: 405.93 | J124: 418.62 | K124: 393.25 | L124: 364.25 | M124: 22.20358
A125: 115 | B125: CUMMINSIND | C125: 882.05 | D125: 884.95 | E125: 865.90 | F125: 849.75 | G125: 830.70 | H125: 901.10 | I125: 920.15 | J125: 936.30 | K125: 904 | L125: 868.8 | M125: 8.58911
A126: 116 | B126: CYIENT | C126: 667.3 | D126: 667.45 | E126: 654.90 | F126: 642.50 | G126: 629.95 | H126: 679.85 | I126: 692.40 | J126: 704.80 | K126: 680 | L126: 655.05 | M126: 2.41274
A127: 117 | B127: DBCORP | C127: 89.95 | D127: 89.98 | E127: 87.97 | F127: 85.98 | G127: 83.97 | H127: 91.97 | I127: 93.98 | J127: 95.97 | K127: 92 | L127: 88 | M127: 1.16936
A128: 118 | B128: DCBBANK | C128: 101.75 | D128: 101.83 | E128: 99.27 | F128: 96.78 | G128: 94.22 | H128: 104.32 | I128: 106.88 | J128: 109.37 | K128: 104.4 | L128: 99.35 | M128: 19.0523
A129: 119 | B129: DCMSHRIRAM | C129: 505.8 | D129: 506.92 | E129: 491.38 | F129: 476.97 | G129: 461.43 | H129: 521.33 | I129: 536.87 | J129: 551.28 | K129: 522.45 | L129: 492.5 | M129: 0.47557
A130: 120 | B130: DLF | C130: 276.75 | D130: 279.30 | E130: 269.60 | F130: 262.45 | G130: 252.75 | H130: 286.45 | I130: 296.15 | J130: 303.30 | K130: 289 | L130: 272.15 | M130: 107.16857
A131: 121 | B131: DABUR | C131: 537 | D131: 537.40 | E131: 533.70 | F131: 530.40 | G131: 526.70 | H131: 540.70 | I131: 544.40 | J131: 547.70 | K131: 541.1 | L131: 534.1 | M131: 13.59678
A132: 122 | B132: DALBHARAT | C132: 1536.9 | D132: 1548.62 | E132: 1513.28 | F132: 1489.67 | G132: 1454.33 | H132: 1572.23 | I132: 1607.57 | J132: 1631.18 | K132: 1583.95 | L132: 1525 | M132: 0.75321
A133: 123 | B133: DEEPAKNTR | C133: 1617.15 | D133: 1629.05 | E133: 1590.10 | F133: 1563.05 | G133: 1524.10 | H133: 1656.10 | I133: 1695.05 | J133: 1722.10 | K133: 1668 | L133: 1602 | M133: 6.97617
A134: 124 | B134: DELTACORP | C134: 159.3 | D134: 161.05 | E134: 155.05 | F134: 150.80 | G134: 144.80 | H134: 165.30 | I134: 171.30 | J134: 175.55 | K134: 167.05 | L134: 156.8 | M134: 27.94393
A135: 125 | B135: DHANI | C135: 163.7 | D135: 164.90 | E135: 155.15 | F135: 146.60 | G135: 136.85 | H135: 173.45 | I135: 183.20 | J135: 191.75 | K135: 174.65 | L135: 156.35 | M135: 36.67729
A136: 126 | B136: DHANUKA | C136: 733.05 | D136: 721.50 | E136: 707.00 | F136: 680.95 | G136: 666.45 | H136: 747.55 | I136: 762.05 | J136: 788.10 | K136: 736 | L136: 695.45 | M136: 0.62019
A137: 127 | B137: DBL | C137: 573.9 | D137: 578.87 | E137: 563.03 | F137: 552.17 | G137: 536.33 | H137: 589.73 | I137: 605.57 | J137: 616.43 | K137: 594.7 | L137: 568 | M137: 1.6955
A138: 128 | B138: DISHTV | C138: 10.05 | D138: 10.07 | E138: 9.78 | F138: 9.52 | G138: 9.23 | H138: 10.33 | I138: 10.62 | J138: 10.88 | K138: 10.35 | L138: 9.8 | M138: 49.28248
A139: 129 | B139: DCAL | C139: 117.2 | D139: 115.37 | E139: 111.43 | F139: 105.67 | G139: 101.73 | H139: 121.13 | I139: 125.07 | J139: 130.83 | K139: 119.3 | L139: 109.6 | M139: 7.29498
A140: 130 | B140: DIVISLAB | C140: 3611.05 | D140: 3617.90 | E140: 3554.80 | F140: 3498.55 | G140: 3435.45 | H140: 3674.15 | I140: 3737.25 | J140: 3793.50 | K140: 3681 | L140: 3561.65 | M140: 8.80667
A141: 131 | B141: DIXON | C141: 3496.9 | D141: 3524.48 | E141: 3437.97 | F141: 3379.03 | G141: 3292.52 | H141: 3583.42 | I141: 3669.93 | J141: 3728.87 | K141: 3611 | L141: 3465.55 | M141: 3.97173
A142: 132 | B142: LALPATHLAB | C142: 2898.3 | D142: 2847.77 | E142: 2770.53 | F142: 2642.77 | G142: 2565.53 | H142: 2975.53 | I142: 3052.77 | J142: 3180.53 | K142: 2925 | L142: 2720 | M142: 9.42719
A143: 133 | B143: DRREDDY | C143: 4556.6 | D143: 4521.50 | E143: 4459.00 | F143: 4361.40 | G143: 4298.90 | H143: 4619.10 | I143: 4681.60 | J143: 4779.20 | K143: 4584 | L143: 4423.9 | M143: 7.32258
A144: 134 | B144: EIDPARRY | C144: 314.3 | D144: 313.92 | E144: 302.88 | F144: 291.47 | G144: 280.43 | H144: 325.33 | I144: 336.37 | J144: 347.78 | K144: 324.95 | L144: 302.5 | M144: 3.78813
A145: 135 | B145: EIHOTEL | C145: 92.55 | D145: 92.85 | E145: 91.20 | F145: 89.85 | G145: 88.20 | H145: 94.20 | I145: 95.85 | J145: 97.20 | K145: 94.5 | L145: 91.5 | M145: 17.04142
A146: 136 | B146: EPL | C146: 225.05 | D146: 229.37 | E146: 220.03 | F146: 215.02 | G146: 205.68 | H146: 234.38 | I146: 243.72 | J146: 248.73 | K146: 238.7 | L146: 224.35 | M146: 3.61988
A147: 137 | B147: ESABINDIA | C147: 1791 | D147: 1798.67 | E147: 1767.33 | F147: 1743.67 | G147: 1712.33 | H147: 1822.33 | I147: 1853.67 | J147: 1877.33 | K147: 1830 | L147: 1775 | M147: 0.03637
A148: 138 | B148: EDELWEISS | C148: 69.55 | D148: 68.65 | E148: 67.55 | F148: 65.55 | G148: 64.45 | H148: 70.65 | I148: 71.75 | J148: 73.75 | K148: 69.75 | L148: 66.65 | M148: 52.89356
A149: 139 | B149: EICHERMOT | C149: 2517.2 | D149: 2542.40 | E149: 2481.80 | F149: 2446.40 | G149: 2385.80 | H149: 2577.80 | I149: 2638.40 | J149: 2673.80 | K149: 2603 | L149: 2507 | M149: 12.05767
A150: 140 | B150: ELGIEQUIP | C150: 194.55 | D150: 196.87 | E150: 190.73 | F150: 186.92 | G150: 180.78 | H150: 200.68 | I150: 206.82 | J150: 210.63 | K150: 203 | L150: 193.05 | M150: 0.93863
A151: 141 | B151: EMAMILTD | C151: 498.45 | D151: 493.10 | E151: 482.70 | F151: 466.95 | G151: 456.55 | H151: 508.85 | I151: 519.25 | J151: 535.00 | K151: 503.5 | L151: 477.35 | M151: 3.33102
A152: 142 | B152: ENDURANCE | C152: 1386.1 | D152: 1408.03 | E152: 1358.07 | F152: 1330.03 | G152: 1280.07 | H152: 1436.07 | I152: 1486.03 | J152: 1514.07 | K152: 1458 | L152: 1380 | M152: 0.81914
A153: 143 | B153: ENGINERSIN | C153: 75.8 | D153: 76.25 | E153: 74.65 | F153: 73.50 | G153: 71.90 | H153: 77.40 | I153: 79.00 | J153: 80.15 | K153: 77.85 | L153: 75.1 | M153: 15.55123
A154: 144 | B154: EQUITAS | C154: 84.65 | D154: 85.12 | E154: 82.53 | F154: 80.42 | G154: 77.83 | H154: 87.23 | I154: 89.82 | J154: 91.93 | K154: 87.7 | L154: 83 | M154: 10.41295
A155: 145 | B155: ERIS | C155: 593.05 | D155: 592.43 | E155: 582.57 | F155: 572.08 | G155: 562.22 | H155: 602.92 | I155: 612.78 | J155: 623.27 | K155: 602.3 | L155: 581.95 | M155: 0.58294
A156: 146 | B156: ESCORTS | C156: 1235.35 | D156: 1246.77 | E156: 1217.58 | F156: 1199.82 | G156: 1170.63 | H156: 1264.53 | I156: 1293.72 | J156: 1311.48 | K156: 1275.95 | L156: 1229 | M156: 8.87686
A157: 147 | B157: EXIDEIND | C157: 182.65 | D157: 183.62 | E157: 180.03 | F157: 177.42 | G157: 173.83 | H157: 186.23 | I157: 189.82 | J157: 192.43 | K157: 187.2 | L157: 181 | M157: 28.97684
A158: 148 | B158: FDC | C158: 284.4 | D158: 285.50 | E158: 281.40 | F158: 278.40 | G158: 274.30 | H158: 288.50 | I158: 292.60 | J158: 295.60 | K158: 289.6 | L158: 282.5 | M158: 1.7891
A159: 149 | B159: FEDERALBNK | C159: 76.4 | D159: 76.53 | E159: 74.22 | F159: 72.03 | G159: 69.72 | H159: 78.72 | I159: 81.03 | J159: 83.22 | K159: 78.85 | L159: 74.35 | M159: 214.09152
A160: 150 | B160: FINEORG | C160: 2281 | D160: 2288.07 | E160: 2262.18 | F160: 2243.37 | G160: 2217.48 | H160: 2306.88 | I160: 2332.77 | J160: 2351.58 | K160: 2313.95 | L160: 2269.25 | M160: 0.18425
A161: 151 | B161: FINCABLES | C161: 379.15 | D161: 381.63 | E161: 373.32 | F161: 367.48 | G161: 359.17 | H161: 387.47 | I161: 395.78 | J161: 401.62 | K161: 389.95 | L161: 375.8 | M161: 0.56709
A162: 152 | B162: FINPIPE | C162: 665.5 | D162: 664.08 | E162: 656.17 | F162: 646.83 | G162: 638.92 | H162: 673.42 | I162: 681.33 | J162: 690.67 | K162: 672 | L162: 654.75 | M162: 2.33298
A163: 153 | B163: FSL | C163: 119.4 | D163: 119.40 | E163: 116.35 | F163: 113.30 | G163: 110.25 | H163: 122.45 | I163: 125.50 | J163: 128.55 | K163: 122.45 | L163: 116.35 | M163: 70.81822
A164: 154 | B164: FORTIS | C164: 219.4 | D164: 215.98 | E164: 204.62 | F164: 189.83 | G164: 178.47 | H164: 230.77 | I164: 242.13 | J164: 256.92 | K164: 227.35 | L164: 201.2 | M164: 130.70896
A165: 155 | B165: FCONSUMER | C165: 7.25 | D165: 7.10 | E165: 6.95 | F165: 6.65 | G165: 6.50 | H165: 7.40 | I165: 7.55 | J165: 7.85 | K165: 7.25 | L165: 6.8 | M165: 176.23226
A166: 156 | B166: FRETAIL | C166: 46.95 | D166: 46.80 | E166: 46.65 | F166: 46.35 | G166: 46.20 | H166: 47.10 | I166: 47.25 | J166: 47.55 | K166: 46.95 | L166: 46.5 | M166: 7.62792
A167: 157 | B167: GAIL | C167: 134.95 | D167: 136.32 | E167: 133.18 | F167: 131.42 | G167: 128.28 | H167: 138.08 | I167: 141.22 | J167: 142.98 | K167: 139.45 | L167: 134.55 | M167: 127.58646
A168: 158 | B168: GEPIL | C168: 277.55 | D168: 279.58 | E168: 274.07 | F168: 270.58 | G168: 265.07 | H168: 283.07 | I168: 288.58 | J168: 292.07 | K168: 285.1 | L168: 276.1 | M168: 0.47132
A169: 159 | B169: GHCL | C169: 237.4 | D169: 234.13 | E169: 229.97 | F169: 222.53 | G169: 218.37 | H169: 241.57 | I169: 245.73 | J169: 253.17 | K169: 238.3 | L169: 226.7 | M169: 2.54571
A170: 160 | B170: GMMPFAUDLR | C170: 4287.95 | D170: 4335.00 | E170: 4227.95 | F170: 4167.95 | G170: 4060.90 | H170: 4395.00 | I170: 4502.05 | J170: 4562.05 | K170: 4442.05 | L170: 4275 | M170: 0.50747
A171: 161 | B171: GMRINFRA | C171: 24.05 | D171: 24.37 | E171: 23.43 | F171: 22.82 | G171: 21.88 | H171: 24.98 | I171: 25.92 | J171: 26.53 | K171: 25.3 | L171: 23.75 | M171: 228.7819
A172: 162 | B172: GALAXYSURF | C172: 2461.3 | D172: 2492.35 | E172: 2409.95 | F172: 2358.60 | G172: 2276.20 | H172: 2543.70 | I172: 2626.10 | J172: 2677.45 | K172: 2574.75 | L172: 2441 | M172: 0.22587
A173: 163 | B173: GRSE | C173: 184.9 | D173: 186.63 | E173: 182.27 | F173: 179.63 | G173: 175.27 | H173: 189.27 | I173: 193.63 | J173: 196.27 | K173: 191 | L173: 184 | M173: 1.19897
A174: 164 | B174: GARFIBRES | C174: 2586.6 | D174: 2576.67 | E174: 2514.93 | F174: 2443.27 | G174: 2381.53 | H174: 2648.33 | I174: 2710.07 | J174: 2781.73 | K174: 2638.4 | L174: 2505 | M174: 0.10326
A175: 165 | B175: GICRE | C175: 203.2 | D175: 202.52 | E175: 198.98 | F175: 194.77 | G175: 191.23 | H175: 206.73 | I175: 210.27 | J175: 214.48 | K175: 206.05 | L175: 198.3 | M175: 5.73689
A176: 166 | B176: GILLETTE | C176: 5599.1 | D176: 5621.37 | E176: 5562.73 | F176: 5526.37 | G176: 5467.73 | H176: 5657.73 | I176: 5716.37 | J176: 5752.73 | K176: 5680 | L176: 5585 | M176: 0.04539
A177: 167 | B177: GLAXO | C177: 1406.1 | D177: 1415.03 | E177: 1390.37 | F177: 1374.63 | G177: 1349.97 | H177: 1430.77 | I177: 1455.43 | J177: 1471.17 | K177: 1439.7 | L177: 1399.3 | M177: 0.95479
A178: 168 | B178: GLENMARK | C178: 479.05 | D178: 481.42 | E178: 470.83 | F178: 462.62 | G178: 452.03 | H178: 489.63 | I178: 500.22 | J178: 508.43 | K178: 492 | L178: 473.2 | M178: 16.35705
A179: 169 | B179: GODFRYPHLP | C179: 915 | D179: 911.47 | E179: 895.03 | F179: 875.07 | G179: 858.63 | H179: 931.43 | I179: 947.87 | J179: 967.83 | K179: 927.9 | L179: 891.5 | M179: 0.33347
A180: 170 | B180: GODREJAGRO | C180: 507.3 | D180: 509.98 | E180: 497.42 | F180: 487.53 | G180: 474.97 | H180: 519.87 | I180: 532.43 | J180: 542.32 | K180: 522.55 | L180: 500.1 | M180: 0.94747
A181: 171 | B181: GODREJCP | C181: 722.35 | D181: 719.87 | E181: 706.73 | F181: 691.12 | G181: 677.98 | H181: 735.48 | I181: 748.62 | J181: 764.23 | K181: 733 | L181: 704.25 | M181: 15.93063
A182: 172 | B182: GODREJIND | C182: 540.8 | D182: 536.52 | E182: 524.28 | F182: 507.77 | G182: 495.53 | H182: 553.03 | I182: 565.27 | J182: 581.78 | K182: 548.75 | L182: 520 | M182: 1.62047
A183: 173 | B183: GODREJPROP | C183: 1352.1 | D183: 1355.07 | E183: 1314.13 | F183: 1276.17 | G183: 1235.23 | H183: 1393.03 | I183: 1433.97 | J183: 1471.93 | K183: 1396 | L183: 1317.1 | M183: 7.10251
A184: 174 | B184: GRANULES | C184: 310.2 | D184: 310.95 | E184: 305.30 | F184: 300.40 | G184: 294.75 | H184: 315.85 | I184: 321.50 | J184: 326.40 | K184: 316.6 | L184: 306.05 | M184: 16.3881
A185: 175 | B185: GRAPHITE | C185: 539.1 | D185: 543.67 | E185: 530.43 | F185: 521.77 | G185: 508.53 | H185: 552.33 | I185: 565.57 | J185: 574.23 | K185: 556.9 | L185: 535 | M185: 20.00801
A186: 176 | B186: GRASIM | C186: 1446.5 | D186: 1448.10 | E186: 1423.50 | F186: 1400.50 | G186: 1375.90 | H186: 1471.10 | I186: 1495.70 | J186: 1518.70 | K186: 1472.7 | L186: 1425.1 | M186: 13.96534
A187: 177 | B187: GESHIP | C187: 302.05 | D187: 304.73 | E187: 293.47 | F187: 284.88 | G187: 273.62 | H187: 313.32 | I187: 324.58 | J187: 333.17 | K187: 316 | L187: 296.15 | M187: 1.13
A188: 178 | B188: GREAVESCOT | C188: 128.1 | D188: 129.42 | E188: 123.23 | F188: 118.37 | G188: 112.18 | H188: 134.28 | I188: 140.47 | J188: 145.33 | K188: 135.6 | L188: 124.55 | M188: 15.07117
A189: 179 | B189: GRINDWELL | C189: 921.25 | D189: 924.77 | E189: 910.43 | F189: 899.62 | G189: 885.28 | H189: 935.58 | I189: 949.92 | J189: 960.73 | K189: 939.1 | L189: 913.95 | M189: 0.1415
A190: 180 | B190: GUJALKALI | C190: 341.45 | D190: 344.65 | E190: 335.40 | F190: 329.35 | G190: 320.10 | H190: 350.70 | I190: 359.95 | J190: 366.00 | K190: 353.9 | L190: 338.6 | M190: 0.77491
A191: 181 | B191: GAEL | C191: 129.15 | D191: 129.13 | E191: 122.07 | F191: 114.98 | G191: 107.92 | H191: 136.22 | I191: 143.28 | J191: 150.37 | K191: 136.2 | L191: 122.05 | M191: 6.81441
A192: 182 | B192: FLUOROCHEM | C192: 608.35 | D192: 607.62 | E192: 596.23 | F192: 584.12 | G192: 572.73 | H192: 619.73 | I192: 631.12 | J192: 643.23 | K192: 619 | L192: 595.5 | M192: 0.29846
A193: 183 | B193: GUJGASLTD | C193: 548.6 | D193: 546.20 | E193: 537.40 | F193: 526.20 | G193: 517.40 | H193: 557.40 | I193: 566.20 | J193: 577.40 | K193: 555 | L193: 535 | M193: 9.35563
A194: 184 | B194: GMDCLTD | C194: 56.65 | D194: 57.45 | E194: 55.30 | F194: 53.95 | G194: 51.80 | H194: 58.80 | I194: 60.95 | J194: 62.30 | K194: 59.6 | L194: 56.1 | M194: 12.9252
A195: 185 | B195: GNFC | C195: 307.15 | D195: 304.77 | E195: 298.53 | F195: 289.92 | G195: 283.68 | H195: 313.38 | I195: 319.62 | J195: 328.23 | K195: 311 | L195: 296.15 | M195: 11.28803
A196: 186 | B196: GPPL | C196: 97.5 | D196: 97.97 | E196: 96.03 | F196: 94.57 | G196: 92.63 | H196: 99.43 | I196: 101.37 | J196: 102.83 | K196: 99.9 | L196: 96.5 | M196: 2.47782
A197: 187 | B197: GSFC | C197: 86 | D197: 86.83 | E197: 84.17 | F197: 82.33 | G197: 79.67 | H197: 88.67 | I197: 91.33 | J197: 93.17 | K197: 89.5 | L197: 85 | M197: 17.35435
A198: 188 | B198: GSPL | C198: 269.75 | D198: 269.62 | E198: 264.23 | F198: 258.72 | G198: 253.33 | H198: 275.13 | I198: 280.52 | J198: 286.03 | K198: 275 | L198: 264.1 | M198: 2.55529
A199: 189 | B199: GULFOILLUB | C199: 723.6 | D199: 729.83 | E199: 713.57 | F199: 703.53 | G199: 687.27 | H199: 739.87 | I199: 756.13 | J199: 766.17 | K199: 746.1 | L199: 719.8 | M199: 0.08268
A200: 190 | B200: HEG | C200: 1537.9 | D200: 1551.32 | E200: 1507.63 | F200: 1477.37 | G200: 1433.68 | H200: 1581.58 | I200: 1625.27 | J200: 1655.53 | K200: 1595 | L200: 1521.05 | M200: 5.87003
A201: 191 | B201: HCLTECH | C201: 1033.5 | D201: 1025.37 | E201: 1010.73 | F201: 987.97 | G201: 973.33 | H201: 1048.13 | I201: 1062.77 | J201: 1085.53 | K201: 1040 | L201: 1002.6 | M201: 94.52833
A202: 192 | B202: HDFCAMC | C202: 2902.35 | D202: 2900.35 | E202: 2853.00 | F202: 2803.65 | G202: 2756.30 | H202: 2949.70 | I202: 2997.05 | J202: 3046.40 | K202: 2947.7 | L202: 2851 | M202: 1.48725
A203: 193 | B203: HDFCBANK | C203: 1449.6 | D203: 1455.20 | E203: 1425.40 | F203: 1401.20 | G203: 1371.40 | H203: 1479.40 | I203: 1509.20 | J203: 1533.40 | K203: 1485 | L203: 1431 | M203: 80.03293
A204: 194 | B204: HDFCLIFE | C204: 682.15 | D204: 685.42 | E204: 672.83 | F204: 663.52 | G204: 650.93 | H204: 694.73 | I204: 707.32 | J204: 716.63 | K204: 698 | L204: 676.1 | M204: 20.74674
A205: 195 | B205: HFCL | C205: 25.65 | D205: 25.88 | E205: 25.22 | F205: 24.78 | G205: 24.12 | H205: 26.32 | I205: 26.98 | J205: 27.42 | K205: 26.55 | L205: 25.45 | M205: 33.95356
A206: 196 | B206: HATHWAY | C206: 24.05 | D206: 24.30 | E206: 23.15 | F206: 22.25 | G206: 21.10 | H206: 25.20 | I206: 26.35 | J206: 27.25 | K206: 25.45 | L206: 23.4 | M206: 12.89011
... 321 more rows

Sheet Bulk Deals
E6: Back To Main Page
A7: Subject : | B7: BULK DEAL | D7: =Main!B10 -> 2021-04-06
A9: Date | B9: Scrip code | C9: Scrip Name | D9: Client Name | E9: Buy / Sell | F9: Quantity Traded | G9: Trade Price / Wt.Avg.trade price | H9: Exchange
A10: 2021-04-05 | B10: 540190 | C10: FRANKLININD | D10: NIKUNJ SURESHCHANDRA SHAH | E10: SELL | F10: 19,050 | G10: 13.68 | H10: BSE
A11: 2021-04-05 | B11: 542666 | C11: GKP | D11: HIRA HARESH VORA | E11: SELL | F11: 48,000 | G11: 26.5 | H11: BSE
A12: 2021-04-05 | B12: 542666 | C12: GKP | D12: VIHIT INVESTMENT | E12: BUY | F12: 96,000 | G12: 26.03 | H12: BSE
A13: 2021-04-05 | B13: 531337 | C13: JUMPNET | D13: ESAAR INDIA LIMITED | E13: SELL | F13: 1,000,000 | G13: 9.36 | H13: BSE
A14: 2021-04-05 | B14: 531337 | C14: JUMPNET | D14: OLGA TRADING PRIVATE LIMITED | E14: BUY | F14: 1,000,000 | G14: 9.36 | H14: BSE
A15: 2021-04-05 | B15: 531337 | C15: JUMPNET | D15: OLGA TRADING PRIVATE LIMITED | E15: SELL | F15: 961 | G15: 9.36 | H15: BSE
A16: 2021-04-05 | B16: 540360 | C16: LLFICL | D16: JYOTSANA ASHOKKUMAR SHAH | E16: SELL | F16: 28,000 | G16: 70.56 | H16: BSE
A17: 2021-04-05 | B17: 519455 | C17: NARBADA | D17: DEVENDER KUMAR | E17: BUY | F17: 100,000 | G17: 25.7 | H17: BSE
A18: 2021-04-05 | B18: 519455 | C18: NARBADA | D18: AARTI | E18: SELL | F18: 100,000 | G18: 25.7 | H18: BSE
A19: 2021-04-05 | B19: 543282 | C19: NIKSTECH | D19: SHERWOOD SECURITIES PVT LTD | E19: BUY | F19: 13,200 | G19: 204.88 | H19: BSE
A20: 2021-04-05 | B20: 543282 | C20: NIKSTECH | D20: SHERWOOD SECURITIES PVT LTD | E20: SELL | F20: 2,400 | G20: 213.49 | H20: BSE
A21: 2021-04-05 | B21: 540198 | C21: OSIAJEE | D21: ACVC FOREX PRIVATE LIMITED | E21: BUY | F21: 49,216 | G21: 22.94 | H21: BSE
A22: 2021-04-05 | B22: 540198 | C22: OSIAJEE | D22: ACVC FOREX PRIVATE LIMITED | E22: SELL | F22: 56,603 | G22: 22.93 | H22: BSE
A23: 2021-04-05 | B23: 540198 | C23: OSIAJEE | D23: POONAM SANJEEV MISHRA | E23: SELL | F23: 38,800 | G23: 22.34 | H23: BSE
A24: 2021-04-05 | B24: 539291 | C24: OZONEWORLD | D24: DARSHANGI MANISH PATEL | E24: BUY | F24: 20,959 | G24: 72.26 | H24: BSE
A25: 2021-04-05 | B25: 539291 | C25: OZONEWORLD | D25: DARSHANGI MANISH PATEL | E25: SELL | F25: 11,617 | G25: 71.8 | H25: BSE
A26: 2021-04-05 | B26: 540027 | C26: PTIL | D26: ESAAR INDIA LIMITED | E26: BUY | F26: 72,301 | G26: 299.37 | H26: BSE
A27: 2021-04-05 | B27: 539561 | C27: REMLIFE | D27: NIRAJ LAHERCHAND MODI | E27: BUY | F27: 20,301 | G27: 40.09 | H27: BSE
A28: 2021-04-05 | B28: 540821 | C28: SADHNA | D28: GAURAV GUPTA | E28: BUY | F28: 75,000 | G28: 10.11 | H28: BSE
A29: 2021-04-05 | B29: 540821 | C29: SADHNA | D29: ANGAD DEEP SINGH | E29: SELL | F29: 75,000 | G29: 10.1 | H29: BSE
A30: 2021-04-05 | B30: EASEMYTRIP | C30: Easy Trip Planners Ltd | D30: ALGOQUANT FINANCIALS LLP | E30: BUY | F30: 544,388 | G30: 203.05 | H30: NSE
A31: 2021-04-05 | B31: HAPPSTMNDS | C31: Happiest Minds Techno Ltd | D31: GRAVITON RESEARCH CAPITAL LLP | E31: BUY | F31: 769,051 | G31: 630.65 | H31: NSE
A32: 2021-04-05 | B32: HISARMETAL | C32: Hisar Metal Ind. Limited | D32: B.W.TRADERS | E32: BUY | F32: 38,679 | G32: 123.98 | H32: NSE
A33: 2021-04-05 | B33: JUMPNET | C33: Jump Networks Limited | D33: ARVIND SHANTILAL SHAH | E33: BUY | F33: 600,000 | G33: 9.1 | H33: NSE
A34: 2021-04-05 | B34: JUMPNET | C34: Jump Networks Limited | D34: OLGA TRADING PRIVATE LIMITED | E34: BUY | F34: 950,961 | G34: 9.12 | H34: NSE
A35: 2021-04-05 | B35: KEERTI | C35: Keerti Know & Skill Ltd. | D35: OLGA TRADING PRIVATE LIMITED | E35: BUY | F35: 169,897 | G35: 24.19 | H35: NSE
A36: 2021-04-05 | B36: NATHBIOGEN | C36: Nath Bio-Genes (I) Ltd | D36: AUTHUM INVESTMENT & INFRASTRUCTURE LIMITED | E36: BUY | F36: 92,697 | G36: 354.98 | H36: NSE
A37: 2021-04-05 | B37: PVR | C37: PVR Limited | D37: XTX MARKETS LLP | E37: BUY | F37: 331,380 | G37: 1164.34 | H37: NSE
A38: 2021-04-05 | B38: RMDRIP | C38: R M Drip & Sprink Sys Ltd | D38: HARSHIT SHAH | E38: BUY | F38: 112,000 | G38: 20.4 | H38: NSE
A39: 2021-04-05 | B39: VIKASECO | C39: Vikas EcoTech Limited | D39: OLGA TRADING PRIVATE LIMITED | E39: BUY | F39: 200 | G39: 2.4 | H39: NSE
A40: 2021-04-05 | B40: EASEMYTRIP | C40: Easy Trip Planners Ltd | D40: ALGOQUANT FINANCIALS LLP | E40: SELL | F40: 418,214 | G40: 199.39 | H40: NSE
A41: 2021-04-05 | B41: FELIX | C41: Felix Industries Ltd. | D41: HEMLATABEN AJITBHAI VASA | E41: SELL | F41: 32,000 | G41: 43.68 | H41: NSE
A42: 2021-04-05 | B42: HAPPSTMNDS | C42: Happiest Minds Techno Ltd | D42: GRAVITON RESEARCH CAPITAL LLP | E42: SELL | F42: 769,051 | G42: 631.36 | H42: NSE
A43: 2021-04-05 | B43: HISARMETAL | C43: Hisar Metal Ind. Limited | D43: B.W.TRADERS | E43: SELL | F43: 38,679 | G43: 122.83 | H43: NSE
A44: 2021-04-05 | B44: JUMPNET | C44: Jump Networks Limited | D44: ESAAR INDIA LIMITED | E44: SELL | F44: 900,000 | G44: 9.06 | H44: NSE
A45: 2021-04-05 | B45: KEERTI | C45: Keerti Know & Skill Ltd. | D45: OLGA TRADING PRIVATE LIMITED | E45: SELL | F45: 150,636 | G45: 24.41 | H45: NSE
A46: 2021-04-05 | B46: NATHBIOGEN | C46: Nath Bio-Genes (I) Ltd | D46: AUTHUM INVESTMENT & INFRASTRUCTURE LIMITED | E46: SELL | F46: 117,697 | G46: 340.43 | H46: NSE
A47: 2021-04-05 | B47: PVR | C47: PVR Limited | D47: XTX MARKETS LLP | E47: SELL | F47: 336,861 | G47: 1164.83 | H47: NSE
A48: 2021-04-05 | B48: RMDRIP | C48: R M Drip & Sprink Sys Ltd | D48: RUPAL SHRIKANT SHAH | E48: SELL | F48: 112,000 | G48: 20.4 | H48: NSE
A49: 2021-04-05 | B49: VIKASECO | C49: Vikas EcoTech Limited | D49: OLGA TRADING PRIVATE LIMITED | E49: SELL | F49: 1,532,168 | G49: 2.26 | H49: NSE

Sheet Call Tracker (Equity & F&O)
M5: Back To Main Page
A6: Retail Research Technical Calls & Fundamental Performance Report for the month of April-2021
M7: =Main!B10 -> 2021-04-06
B8: Positional Call
A9: Sr.no | B9: Date | D9: Company | E9: Rec | F9: Rec Price | G9: Stop Loss*** | H9: Call Closed At | I9: Target | J9: Remark | K9: Profit / Loss per Share | L9: All charges | M9: Net Gain / Loss % | N9: Status | O9: Closed Date
A10: 1 | B10: 2021-02-26 | D10: IOC | E10: Buy<> | F10: 95.5 | G10: 88.5 | H10: 100 | I10: 107-112 | J10: Part Profit of Rs.4.50/- | K10: =H10-F10 -> 4.5 | L10: =(F10*-0.8)/100 -> -0.76 | M10: =(K10+L10)/F10 -> 3.91% | N10: Successful | O10: 2021-03-02 | R10: N
A11: 2 | B11: 2021-03-18 | D11: IRCTC | E11: Buy | F11: 1785 | G11: 1670 | H11: =(1872.5+1775)/2 -> 1,823.75 | I11: 2000 | J11: Profit of Rs.38.75/- | K11: =H11-F11 -> 38.75 | L11: =(F11*-0.8)/100 -> -14.28 | M11: 1.37% | N11: Successful | O11: 2021-04-01 | R11: H
A12: 3 | B12: 2021-03-19 | D12: HDFCAMC | E12: Buy | F12: 2840-2860 | G12: 2650 | I12: 3050-3250 | J12: Open | R12: N
A13: 4 | B13: 2021-03-19 | D13: SRF | E13: Buy | F13: 5275 | G13: 4950 | H13: 5,725.00 | I13: 5700-5800 | J13: Profit of Rs.450/- | K13: =H13-F13 -> 450 | L13: =(F13*-0.8)/100 -> -42.20 | M13: =(K13+L13)/F13 -> 7.73% | N13: Successful | O13: 2021-04-01 | R13: N
A14: 5 | B14: 2021-03-22 | D14: RELIANCE | E14: Buy | F14: 2040-2060 | G14: 1940 | I14: 2300-2400 | J14: Open | R14: H
A15: 6 | B15: 2021-03-22 | D15: IGL | E15: Buy | F15: 507 | G15: 478 | H15: 527.5 | I15: 545-564 | J15: Part Profit of Rs.20.50/- | K15: =H15-F15 -> 20.5 | L15: =(F15*-0.8)/100 -> -4.06 | M15: =(K15+L15)/F15 -> 3.24% | N15: Successful | O15: 2021-04-01 | R15: H
A16: 7 | B16: 2021-03-26 | D16: PIDILITIND | E16: Buy | F16: 1780-1790 | G16: 1675 | I16: 2000-2050 | J16: Open | R16: N
A17: 8 | B17: 2021-03-30 | D17: SUDARSCHEM | E17: Buy | F17: 513-519 | G17: 477 | I17: 560-580 | J17: Open | R17: H
A18: 9 | B18: 2021-04-01 | D18: ESCORTS | E18: Buy | F18: 1265-1275 | G18: 1195 | I18: 1400-1450 | J18: Open | R18: N
A19: 10 | B19: 2021-04-05 | D19: HDFCBANK | E19: Buy | F19: 1465-1475 | G19: 1370 | I19: 1600-1700 | J19: Open | R19: H
A20: 11 | B20: 2021-04-05 | D20: EXIDEIND | E20: Buy | F20: 181-183 | G20: 174 | I20: 195-200 | J20: Open | R20: H
A26: CLBS = Closing Basis ***
A27: Dividend adjusted <> | F27: Reinitiated $
A28: Part book {} | F28: Revised stoploss #
B30: Momentum Call
A31: Sr.no | B31: Date | D31: Company | E31: Rec | F31: Rec Price | G31: Stop Loss | H31: Call Closed At | I31: Target | J31: Remark | K31: Profit / Loss per Share/Lot | L31: All charges | M31: Net Gain / Loss % | N31: Status | O31: Closed Date
A32: 1 | B32: 2021-03-22 | D32: HDFCLIFE | E32: Buy | F32: 687-690 | G32: 668 | I32: 715-725 | J32: Open | R32: H
A33: 2 | B33: 2021-03-30 | D33: DHANUKA | E33: Buy | F33: 681 | G33: 660 | H33: 702.5 | I33: 710-720 | J33: Profit of Rs.21.5/- | K33: =H33-F33 -> 21.5 | L33: =(F33*-0.7)/100 -> -4.77 | M33: =(K33+L33)/F33 -> 2.46% | N33: Successful | O33: 2021-04-01 | R33: H
A34: 3 | B34: 2021-03-31 | D34: DIVISLAB | E34: Buy | F34: 3685 | G34: 3490 | H34: 3775 | I34: 3750-3800 | J34: Profit of Rs.90/- | K34: =H34-F34 -> 90 | L34: =(F34*-0.7)/100 -> -25.80 | M34: =(K34+L34)/F34 -> 1.74% | N34: Successful | O34: 2021-04-05 | R34: H
A35: 4 | B35: 2021-03-31 | D35: CSBBANK | E35: Buy | F35: 234-235 | G35: 228 | I35: 245-250 | J35: Open | R35: H
A36: 5 | B36: 2021-04-05 | D36: KOTAKBANK | E36: Buy | F36: 1680-1685 | G36: 1630 | I36: 1780 | J36: Open | R36: H
A37: 6 | B37: 2021-04-05 | D37: CUMMINSIND | E37: Buy | F37: 884-886 | G37: 855 | I37: 930-940 | J37: Open | R37: H
A38: 7 | B38: 2021-04-05 | D38: GUJGASLTD | E38: Buy | F38: 547-549 | G38: 530 | I38: 585-590 | J38: Open | R38: H
A40: CLBS = Closing Basis *** | H40: *
A41: Dividend adjusted <> | F41: Reinitiated $
F42: Revised stoploss #
A44: Master Trade High Risk
A45: Sr.no | B45: Date | D45: Company | E45: Rec | F45: Rec Price | G45: Stop Loss | H45: Call Closed At | I45: Target | J45: Remark | K45: Profit / Loss per share | L45: All charges | M45: Gain / Loss per Lot | N45: Lot | O45: Status | P45: Closed Date
A46: 1 | B46: 2021-04-01 | D46: PIIND APRIL FUT | E46: Buy | F46: 2247-2253 | G46: 2198 | I46: 2350-2370 | J46: Open | R46: H
A47: 2 | B47: 2021-04-01 | D47: BHARTIARTL APRIL FUT | E47: Buy | F47: 524.5 | G47: 517 | H47: 527 | I47: 535-540 | J47: Profit of Rs.2.5/- | K47: =H47-F47 -> 2.5 | L47: =(H47*N47)*0.035% -> 341.42 | M47: =(K47*N47)-L47 -> 4286.1 | N47: 1851 | O47: Successful | P47: 2021-04-05 | R47: H
A52: Master Trade Medium Risk
A53: Sr.no | B53: Date | D53: Company | E53: Rec | F53: Rec Price | G53: Stop Loss | H53: Call Closed At | I53: Target | J53: Remark | K53: Profit/ Loss per lot | L53: All charges | M53: Gain / Loss per Lot | N53: Lot | O53: Status | P53: Closed Date
A54: 1 | B54: 2021-04-01 | D54: NIFTY 14600 PE 08-APR | E54: Buy | F54: 94 | G54: 58 | H54: 58 | I54: 150-170 | J54: Loss of Rs.36/- | K54: =H54-F54 -> -36 | L54: 100 | M54: =(K54*N54)-L54 -> -2800.0 | N54: 75 | O54: Unsuccessful | P54: 2021-04-01 | R54: H
A55: 2 | B55: 2021-04-01 | D55: BANKNIFTY 32900 PE 08-APR | E55: Buy | F55: 295 | G55: 95 | H55: 395 | I55: 600 | J55: Profit of Rs.100/- | K55: =H55-F55 -> 100 | L55: 100 | M55: =(K55*N55)-L55 -> 2400.0 | N55: 25 | O55: Successful | P55: 2021-04-05 | R55: H
A56: 3 | B56: 2021-04-05 | D56: NIFTY 14800 CE 08-APR | E56: Buy | F56: 60-65 | G56: 30 | I56: 140 | J56: Open
A65: Techno -Funda (positional)
A66: Sr.no | B66: Date | D66: Company | E66: Rec | F66: Rec Price | G66: Stop Loss*** | H66: Call Closed At | I66: Target | J66: Remark | K66: Profit / Loss per Share/Lot | L66: All charges | M66: Net Gain / Loss % | N66: Status | O66: Closed Date
A67: 1 | B67: 2021-01-07 | D67: SIS | E67: Buy<> | F67: 422 | G67: 385 | H67: 455 | I67: 500-520 | J67: Part profit of Rs.33/- | K67: =H67-F67 -> 33 | L67: =(F67*-0.8)/100 -> -3.38 | M67: =(K67+L67)/F67 -> 7.02% | N67: Successful | O67: 2021-02-16 | R67: H
A68: 2 | B68: 2021-02-11 | D68: MCX | E68: Buy | F68: 1515 | G68: 1390 | H68: 1595 | I68: 1800-1850 | J68: Part profit of Rs.80/- | K68: =H68-F68 -> 80 | L68: =(F68*-0.8)/100 -> -12.12 | M68: =(K68+L68)/F68 -> 4.48% | N68: Successful | O68: 2021-03-16 | R68: H
A69: 3 | B69: 2021-03-19 | D69: GMMPFAUDLR | E69: Buy | F69: 4070 | G69: 3750 | H69: 4530 | I69: 4800 | J69: Profit of Rs.460/- | K69: =H69-F69 -> 460 | L69: =(F69*-0.8)/100 -> -32.56 | M69: =(K69+L69)/F69 -> 10.50% | N69: Successful | O69: 2021-04-01 | R69: H
A72: CLBS = Closing Basis *** | F72: Reinitiated $
A73: Dividend adjusted <> | F73: Revised stoploss #
B75: Intrday Call
A76: Sr.no | B76: Date | D76: Company | E76: Rec | F76: Rec Price | G76: Stop Loss | H76: Call Closed At | I76: Target | J76: Remark | K76: Profit / Loss per Share/Lot | L76: Gain / Loss per Lot | M76: Lot | N76: All charges | O76: Net Gain / Loss % | P76: Status | Q76: Closed Date
B89: Investment Idea
A90: Sr.no | B90: Date | D90: Company | E90: Rec | F90: Rec Price | G90: Point of Review | H90: Close Rate | I90: Target | J90: Remark | K90: Profit / Loss per Share | L90: Gain / Loss % | M90: Status | N90: Closed Date
A91: 1 | B91: 2013-11-01 | D91: L&T Finance Holding | E91: Accu | F91: 82.00 | G91: - | H91: 100 | I91: 100.00 | J91: Target Achieved | K91: =H91-F91 -> 18.00 | L91: =K91/F91 -> 21.95% | M91: Successful | N91: 2016-10-14
A92: 2 | B92: 2014-06-04 | D92: Finolex Inds | E92: Buy | F92: 257.00 | G92: - | H92: 300 | I92: 300.00 | J92: Target Achieved | K92: 43.00 | L92: 16.73% | M92: Successful | N92: 2014-07-02
A93: 3 | B93: 2014-07-08 | D93: JK Cement | E93: Buy | F93: 393.00 | G93: - | H93: 468 | I93: 468.00 | J93: Target Achieved | K93: 75.00 | L93: 19.08% | M93: Successful | N93: 2014-08-12
A94: 4 | B94: 2014-08-06 | D94: Finolex Cables | E94: Buy | F94: 205.00 | G94: - | H94: 275 | I94: 250.00 | J94: Target Achieved | K94: 70.00 | L94: 34.15% | M94: Successful | N94: 2014-11-19
A95: 5 | B95: 2014-09-04 | D95: Exide Inds | E95: Buy | F95: 162.00 | G95: - | H95: 190 | I95: 190.00 | J95: Target Achieved | K95: 28.00 | L95: 17.28% | M95: Successful | N95: 2015-01-02
A96: 6 | B96: 2014-09-04 | D96: Deepak Nitrite | E96: Buy | F96: 75.00 | G96: - | H96: 91.5 | I96: 95-100 | J96: Profit of Rs.16.50/- | K96: 16.50 | L96: 22.00% | M96: Successful | N96: 2014-11-11
A97: 7 | B97: 2014-10-01 | D97: Mercks | E97: Buy | F97: 850.00 | G97: - | H97: 982.5 | I97: 1050.00 | J97: Profit of Rs.132.50/- | K97: 132.50 | L97: 15.59% | M97: Successful | N97: 2015-02-04
A98: 8 | B98: 2014-10-01 | D98: Grindwell Norton | E98: Buy | F98: 475.00 | G98: - | H98: 515 | I98: 600.00 | J98: Profit of Rs.40/- | K98: 40.00 | L98: 8.42% | M98: Successful | N98: 2014-10-27
A99: 9 | B99: 2014-10-01 | D99: Snowman Logistics | E99: Buy | F99: 86.00 | G99: - | H99: 99 | I99: 140.00 | J99: Profit of Rs.13.00/- | K99: 13.00 | L99: 15.12% | M99: Successful | N99: 2014-10-27
A100: 10 | B100: 2014-10-14 | D100: Birla Corp | E100: Buy | F100: 496.60 | G100: - | H100: 621 | I100: 580.00 | J100: Target Achieved | K100: 124.40 | L100: 25.05% | M100: Successful | N100: 2016-08-23
A101: 11 | B101: 2014-10-14 | D101: Ultratech Cem | E101: Buy | F101: 2481.90 | G101: - | H101: 2840 | I101: 2870.00 | J101: Profit of Rs.358.10/- | K101: 358.10 | L101: 14.43% | M101: Successful | N101: 2015-01-13
A102: 12 | B102: 2014-10-16 | D102: Sintex Inds | E102: Buy | F102: 84.50 | G102: - | H102: 93 | I102: 110.00 | J102: Profit of Rs.8.50/- | K102: 8.50 | L102: 10.06% | M102: Successful | N102: 2014-10-27
A103: 13 | B103: 2014-10-16 | D103: HSIL | E103: Buy | F103: 401.00 | G103: - | H103: 428 | I103: 450.00 | J103: Profit of Rs.27.00/- | K103: 27.00 | L103: 6.73% | M103: Successful | N103: 2015-01-16
A104: 14 | B104: 2014-10-16 | D104: Eveready Inds | E104: Buy | F104: 101.00 | G104: - | H104: 112 | I104: 120.00 | J104: Profit of Rs.11.00/- | K104: 11.00 | L104: 10.89% | M104: Successful | N104: 2014-10-27
A105: 15 | B105: 2014-11-11 | D105: Pennar Inds | E105: Buy | F105: 59.00 | G105: - | H105: 76 | I105: 76.00 | J105: Target Achieved | K105: 17.00 | L105: 28.81% | M105: Successful | N105: 2017-10-24
A106: 16 | B106: 2014-11-11 | D106: Snowman Logistics | E106: Buy | F106: 99.00 | G106: - | H106: 120 | I106: 120.00 | J106: Profit of Rs.21/- | K106: 21.00 | L106: 21.21% | M106: Successful | N106: 2014-11-17
A107: 17 | B107: 2014-11-13 | D107: Dharamsi Morarji Chem | E107: Buy | F107: 22.00 | G107: - | H107: 33.55 | I107: 32.00 | J107: Profit of Rs 11.55/- | K107: 11.55 | L107: 52.50% | M107: Successful | N107: 2015-07-03
A108: 18 | B108: 2014-12-03 | D108: Tatachem | E108: Buy | F108: 440.00 | G108: - | H108: 520 | I108: 520.00 | J108: Profit of Rs 80.00/- | K108: 80.00 | L108: 18.18% | M108: Successful | N108: 2015-07-23
A109: 19 | B109: 2014-12-03 | D109: Advanta | E109: Buy | F109: 360.00 | G109: - | H109: 427 | I109: 425.00 | J109: Profit of Rs.67.00/- | K109: 67.00 | L109: 18.61% | M109: Successful | N109: 2015-02-23
A110: 20 | B110: 2015-01-08 | D110: GDL | E110: Buy | F110: 360.00 | G110: - | H110: 455 | I110: 420.00 | J110: Profit of Rs.95.00/- | K110: 95.00 | L110: 26.39% | M110: Successful | N110: 2015-01-20
A111: 21 | B111: 2015-01-08 | D111: NRB Bearing | E111: Buy | F111: 130.00 | H111: 175.5 | I111: 165.00 | J111: Profit of Rs 45.50/- | K111: 45.50 | L111: 35.00% | M111: Successful | N111: 2017-12-19
A112: 22 | B112: 2015-02-05 | D112: GSFC | E112: Accu | F112: 98.00 | H112: 120 | I112: 120.00 | J112: Target Achieved | K112: 22.00 | L112: 22.45% | M112: Successful | N112: 2017-01-18
A113: 23 | B113: 2015-02-05 | D113: Sundrmfast | E113: Accu | F113: 196.00 | H113: 262 | I113: 255.00 | J113: Target Achieved | K113: 66.00 | L113: 33.67% | M113: Successful | N113: 2016-08-17
A114: 24 | B114: 2015-03-04 | D114: GPPL | E114: Accu | F114: 235 | H114: 77.00 | I114: 280-285 | J114: Loss of Rs.158/- | K114: -158.00 | L114: -67.23% | M114: Unsuccessful | N114: 2019-02-26
A115: 25 | B115: 2015-03-04 | D115: ORIENTCEM | E115: Accu | F115: 185.00 | H115: 224 | I115: 220-225 | J115: Target Achieved | K115: 39.00 | L115: 21.08% | M115: Successful | N115: 2016-10-04
A116: 26 | B116: 2015-03-27 | D116: PFS | E116: Accu | F116: 49.5 | H116: 15.85 | I116: 67.00 | J116: Loss of Rs.33.65/- | K116: -33.65 | L116: -68% | M116: Unsuccessful | N116: 2019-06-11
A117: 27 | B117: 2015-03-30 | D117: Walchandnagar Ind Ltd | E117: Accu | F117: 183.50 | H117: 219 | I117: 218.00 | J117: Profit of Rs.35.50/- | K117: 35.50 | L117: 19.35% | M117: Successful | N117: 2015-04-09
A118: 28 | B118: 2015-04-20 | D118: Kalpataru Power Transmission Ltd | E118: Accu | F118: =(227+237)/2 -> 232.00 | H118: 298 | I118: 298.00 | J118: Target Achieved | K118: 66.00 | L118: 28.45% | M118: Successful | N118: 2017-03-29
A119: 29 | B119: 2015-05-04 | D119: Mastek Ltd | E119: Buy | F119: 385.00 | H119: =212.5+331 -> 543.5 | I119: 510.00 | J119: Profit of Rs 158.50/- | K119: 158.50 | L119: 41.17% | M119: Successful | N119: 2015-08-19
A120: 30 | B120: 2015-05-04 | D120: Suprajit Eng | E120: Buy | F120: 115.50 | H120: 146 | I120: 142.00 | J120: Profit of Rs 30.50/- | K120: 30.50 | L120: 26.41% | M120: Successful | N120: 2015-07-17
A121: 31 | B121: 2015-05-27 | D121: TCI | E121: Buy | F121: 237.50 | H121: 279.5 | I121: 278.00 | J121: Target Achieved | K121: 42.00 | L121: 17.68% | M121: Successful | N121: 2015-08-06
A122: 32 | B122: 2015-06-19 | D122: HSIL | E122: Accu | F122: 340.00 | H122: 448 | I122: 448.00 | J122: Target Achieved | K122: 108.00 | L122: 31.76% | M122: Successful | N122: 2017-10-10
A123: 33 | B123: 2015-07-06 | D123: Capital First | E123: Accu | F123: 390.00 | H123: 460 | I123: 460.00 | J123: Target Achieved | K123: =H123-F123 -> 70.00 | L123: =K123/F123 -> 17.95% | M123: Successful | N123: 2016-04-18
A124: 34 | B124: 2015-07-10 | D124: Dolphin OffShore | E124: Accu | F124: 122.5 | H124: 61.00 | I124: 172.00 | J124: Loss of Rs.61.50/- | K124: -61.50 | L124: -50.20% | M124: Unsuccessful | N124: 2018-08-21
A125: 35 | B125: 2015-08-03 | D125: Allcargo logistics | E125: Accu | F125: 297.50 | H125: 350 | I125: 360.00 | J125: Profit of Rs 52.50/- | K125: 52.50 | L125: 17.65% | M125: Successful | N125: 2015-08-16
A126: 36 | B126: 2015-08-03 | D126: Camline Fine | E126: Accu | F126: 115.50 | H126: 149 | I126: 140.00 | J126: Profit of Rs 33.50/- | K126: 33.50 | L126: 29.00% | M126: Successful | N126: 2017-01-05
A127: 37 | B127: 2015-09-04 | D127: TCI | E127: Accu | F127: 226.00 | H127: 292 | I127: 292.00 | J127: Target Achieved | K127: 66.00 | L127: 29.20% | M127: Successful | N127: 2015-10-09
A128: 38 | B128: 2015-09-07 | D128: Kalpataru Power Transmission Ltd | E128: Accu | F128: 232.50 | H128: 312.5 | I128: 310.00 | J128: Target Achieved | K128: 80.00 | L128: 34.41% | M128: Successful | N128: 2017-03-29
A129: 39 | B129: 2015-09-21 | D129: LLOYD ELECTRIC & ENG LTD | E129: Accu | F129: 196.50 | H129: 238 | I129: 238.00 | J129: Target Achieved | K129: 41.50 | L129: 21.12% | M129: Successful | N129: 2015-10-14
A130: 40 | B130: 2015-09-24 | D130: L&T Finance Holding | E130: Accu | F130: 65.00 | H130: 82 | I130: 82.00 | J130: Target Achieved | K130: 17.00 | L130: 26.15% | M130: Successful | N130: 2016-07-27
A131: 41 | B131: 2015-10-14 | D131: KEC International ltd | E131: Accu | F131: 144.00 | H131: 182.5 | I131: 181.00 | J131: Target Achieved | K131: 38.50 | L131: 26.74% | M131: Successful | N131: 2017-03-23
A132: 42 | B132: 2015-10-14 | D132: Gruh Finance | E132: Accu | F132: 264.00 | H132: 311 | I132: 311.00 | J132: Target Achieved | K132: 47.00 | L132: 17.80% | M132: Successful | N132: 2016-08-22
A133: 43 | B133: 2015-11-10 | D133: Pidilitind | E133: Buy | F133: 549.50 | H133: 630 | I133: 630.00 | J133: Target Achieved | K133: 80.50 | L133: 14.65% | M133: Successful | N133: 2016-02-19
A134: 44 | B134: 2015-12-04 | D134: Zensar Technology | E134: Accu | F134: 1027.50 | H134: 1315 | I134: 1250.00 | J134: Target Achieved | K134: 287.50 | L134: 27.98% | M134: Successful | N134: 2018-05-24
A135: 45 | B135: 2015-12-29 | D135: Vinati Organics Ltd | E135: Accu | F135: 465.00 | H135: 540 | I135: 540.00 | J135: Target Achieved | K135: 75.00 | L135: 16.13% | M135: Successful | N135: 2016-06-09
A136: 46 | B136: 2016-01-11 | D136: GSFC | E136: Buy | F136: 81.00 | H136: 110 | I136: 110.00 | J136: Target Achieved | K136: 29.00 | L136: 35.80% | M136: Successful | N136: 2017-01-10
A137: 47 | B137: 2016-01-13 | D137: SSWL | E137: Buy | F137: 417.50 | H137: 547 | I137: 535.00 | J137: Target Achieved | K137: 129.50 | L137: 31.02% | M137: Successful | N137: 2016-07-27
A138: 48 | B138: 2016-02-08 | D138: Persistent System Ltd | E138: Accu | F138: 650.00 | H138: 800 | I138: 800.00 | J138: Target Achieved | K138: 150.00 | L138: 23.08% | M138: Successful | N138: 2018-02-23
A139: 49 | B139: 2016-03-04 | D139: UPL | E139: Accu | F139: 437.50 | H139: 504.5 | I139: 522.00 | J139: Profit of Rs.67/- | K139: 67.00 | L139: 15.31% | M139: Successful | N139: 2016-04-20
A140: 50 | B140: 2016-03-09 | D140: Ashoka Buildcon Ltd | E140: Accu | F140: 189.50 | H140: 218 | I140: 218.00 | J140: Target Achieved | K140: 28.50 | L140: 15.04% | M140: Successful | N140: 2017-10-26
A141: 51 | B141: 2016-04-11 | D141: PTC INDIA FIN SERV LTD | E141: Accu | F141: 36.5 | H141: 15.85 | I141: 60.00 | J141: Loss of Rs.20.65/- | K141: -20.65 | L141: -56.58% | M141: Unsuccessful | N141: 2019-06-11
A142: 52 | B142: 2016-04-12 | D142: CAMLINFINE $ | E142: Accu | F142: 93.00 | H142: 149 | I142: 140.00 | J142: Profit of Rs 56/- | K142: 56.00 | L142: 60.22% | M142: Successful | N142: 2017-01-05
A143: 53 | B143: 2016-04-12 | D143: Greaves Cotton Ltd. | E143: Accu | F143: 130.00 | H143: 150 | I143: 150-155 | J143: Target Achieved | K143: 20.00 | L143: 15.38% | M143: Successful | N143: 2016-07-13
A144: 54 | B144: 2016-04-13 | D144: DHFL | E144: Accu | F144: 196.00 | H144: 299 | I144: 299.00 | J144: Target Achieved | K144: 103.00 | L144: 52.55% | M144: Successful | N144: 2016-09-07
A145: 55 | B145: 2016-04-13 | D145: Magma | E145: Accu | F145: 88.00 | H145: 103 | I145: 103.00 | J145: Target Achieved | K145: 15.00 | L145: 17.05% | M145: Successful | N145: 2016-06-09
A146: 56 | B146: 2016-05-02 | D146: KEC International ltd $ | E146: Accu | F146: 127.50 | H146: 148 | I146: 148-150 | J146: Target Achieved | K146: =H146-F146 -> 20.50 | L146: =K146/F146 -> 16.08% | M146: Successful | N146: 2016-07-13
A147: 57 | B147: 2016-05-03 | D147: Mindtree | E147: Accu | F147: 675.00 | H147: 815 | I147: 790-800 | J147: Target Achieved | K147: =H147-F147 -> 140.00 | L147: =K147/F147 -> 20.74% | M147: Successful | N147: 2018-02-23
A148: 58 | B148: 2016-06-01 | D148: Atulauto | E148: Accu | F148: 500 | H148: 232.50 | I148: 565-570 | J148: Loss of Rs.267.50 /- | K148: =H148-F148 -> -267.50 | L148: =K148/F148 -> -53.50% | M148: Unsuccessful | N148: 2019-09-27
A149: 59 | B149: 2016-06-06 | D149: TRITURBINE | E149: Accu | F149: 110.00 | H149: 126.5 | I149: 125.00 | J149: Profit of Rs.16.50/- | K149: =H149-F149 -> 16.50 | L149: =K149/F149 -> 15.00% | M149: Successful | N149: 2016-07-01
A150: 60 | B150: 2016-06-17 | D150: Pennar Industries Ltd | E150: Accu | F150: 44.00 | H150: 69.5 | I150: 69.50 | J150: Profit of Rs.25.50/- | K150: =H150-F150 -> 25.50 | L150: =K150/F150 -> 57.95% | M150: Successful | N150: 2017-08-30
A151: 61 | B151: 2016-06-28 | D151: EVEREADY | E151: Accu | F151: 262.50 | H151: 340 | I151: 333.00 | J151: Profit of Rs.77.50/- | K151: 77.50 | L151: 29.52% | M151: Successful | N151: 2017-10-09
A152: 62 | B152: 2016-06-28 | D152: FIEMIND | E152: Accu | F152: 840.00 | H152: 1230 | I152: 1230.00 | J152: Target Achieved | K152: 390.00 | L152: 46.43% | M152: Successful | N152: 2016-10-06
A153: 63 | B153: 2016-07-05 | D153: Bajaj Corp Ltd | E153: Accu | F153: 395 | H153: =(468.5+342.5)/2 -> 405.50 | I153: 510.00 | J153: Profit of Rs.10.50/- | K153: =H153-F153 -> 10.50 | L153: =K153/F153 -> 3% | M153: Neutral | N153: 2019-05-21
A154: 64 | B154: 2016-08-02 | D154: GPPL $ | E154: Buy | F154: =169.5-12.8 -> 156.7 | H154: 77.00 | I154: 198-200 | J154: Loss of Rs.79.7/- | K154: -79.70 | L154: -50.86% | M154: Unsuccessful | N154: 2019-02-26
A155: 65 | B155: 2016-08-04 | D155: WONDERLA HOLIDAYS LTD | E155: Accu | F155: 400 | H155: 305.00 | I155: 475.00 | J155: Loss of Rs.95/- | K155: -95.00 | L155: -23.75% | M155: Unsuccessful | N155: 2019-05-21
A156: 66 | B156: 2016-08-11 | D156: CAMLINFINE | E156: Accu | F156: 86.50 | H156: 130 | I156: 130.00 | J156: Profit of Rs.43.50/- | K156: 43.50 | L156: 50.29% | M156: Successful | N156: 2017-12-22
A157: 67 | B157: 2016-08-18 | D157: GRANULES | E157: Accu | F157: 133.5 | H157: 126.50 | I157: 178.00 | J157: Exit | K157: -7.00 | L157: -5.24% | M157: Unsuccessful | N157: 2016-09-02
A158: 68 | B158: 2016-08-31 | D158: VA TECH WABAG | E158: Accu | F158: 560.00 | H158: 725 | I158: 725.00 | J158: Target Achieved | K158: 165.00 | L158: 29.46% | M158: Successful | N158: 2016-03-27
A159: 69 | B159: 2016-09-01 | D159: SKIPPER LIMITED | E159: Accu | F159: 160.50 | H159: 210 | I159: 210.00 | J159: Target Achieved | K159: 49.50 | L159: 30.84% | M159: Successful | N159: 2017-05-16
A160: 70 | B160: 2016-10-03 | D160: IFBIND | E160: Accu | F160: 430.00 | H160: 596 | I160: 575.00 | J160: Profit of Rs.166/- | K160: 166.00 | L160: 38.60% | M160: Successful | N160: 2017-02-03
A161: 71 | B161: 2016-10-14 | D161: ASIANTILES | E161: Accu | F161: 280.00 | H161: 345 | I161: 345.00 | J161: Target Achieved | K161: =H161-F161 -> 65.00 | L161: =K161/F161 -> 23.21% | M161: Successful | N161: 2017-03-20
A162: 72 | B162: 2016-10-14 | D162: DEEPIND | E162: Accu | F162: 245.00 | H162: 325.5 | I162: 330.00 | J162: Profit of Rs.80.5/- | K162: 80.50 | L162: =K162/F162 -> 32.86% | M162: Successful | N162: 2017-02-03
A163: 73 | B163: 2016-10-17 | D163: DCBBANK | E163: Accu | F163: 125.00 | H163: 160 | I163: 160.00 | J163: Target Achieved | K163: 35.00 | L163: 28.00% | M163: Successful | N163: 2017-03-09
A164: 74 | B164: 2016-10-17 | D164: ORIENTREF | E164: Accu | F164: 114.00 | H164: 145 | I164: 145.00 | J164: Target Achieved | K164: 31.00 | L164: =K164/F164 -> 27.19% | M164: Successful | N164: 2017-05-04
A165: 75 | B165: 2016-10-17 | D165: GANECOS | E165: Accu | F165: 212.00 | H165: 280 | I165: 276.00 | J165: Profit of Rs.68/- | K165: 68.00 | L165: =K165/F165 -> 32.08% | M165: Successful | N165: 2017-05-03
A166: 76 | B166: 2016-11-04 | D166: NBCC | E166: Accu | F166: 155.00 | H166: 210 | I166: 210.00 | J166: Profit of Rs.55/- | K166: 55.00 | L166: =K166/F166 -> 35.48% | M166: Successful | N166: 2017-07-28
A167: 77 | B167: 2016-12-06 | D167: PRECAM | E167: Accu | F167: 150.5 | H167: 72.50 | I167: 174.00 | J167: Loss of Rs.78/- | K167: -78.00 | L167: -51.83% | M167: Unsuccessful | N167: 2018-08-21
A168: 78 | B168: 2016-12-08 | D168: INFRATEL | E168: Accu | F168: 380.00 | H168: 478 | I168: 468.00 | J168: Target Achieved | K168: =H168-F168 -> 98.00 | L168: =K168/F168 -> 25.79% | M168: Successful | N168: 2017-10-17
A169: 79 | B169: 2016-12-30 | D169: GODREJPROP | E169: Accu | F169: 305.00 | H169: 375 | I169: 375.00 | J169: Target Achieved | K169: =H169-F169 -> 70.00 | L169: =K169/F169 -> 22.95% | M169: Successful | N169: 2017-02-02
A170: 80 | B170: 2017-01-04 | D170: DEEPAKNTR | E170: Accu | F170: 99.50 | H170: 158 | I170: 158.00 | J170: Target Achieved | K170: =H170-F170 -> 58.50 | L170: =K170/F170 -> 58.79% | M170: Successful | N170: 2017-06-12
A171: 81 | B171: 2017-01-04 | D171: DEEPAKNTR | E171: Accu | F171: 99.50 | H171: 158 | I171: 158.00 | J171: Target Achieved | K171: 58.50 | L171: 58.79% | M171: Successful | N171: 2017-06-12
A172: 82 | B172: 2017-02-20 | D172: RECLTD | E172: Accu | F172: 140.50 | H172: 220 | I172: 220.00 | J172: Target Achieved | K172: =H172-F172 -> 79.50 | L172: =K172/F172 -> 56.58% | M172: Successful | N172: 2017-05-09
A173: 83 | B173: 2017-02-20 | D173: SUBROS | E173: Accu | F173: 202.50 | H173: 234 | I173: 234.00 | J173: Target Achieved | K173: 31.50 | L173: 15.56% | M173: Successful | N173: 2017-04-11
A174: 84 | B174: 2017-03-24 | D174: VRLLOG | E174: Accu | F174: 300.50 | H174: 417.5 | I174: 420.00 | J174: Profit of Rs.117/- | K174: =H174-F174 -> 117.00 | L174: =K174/F174 -> 38.94% | M174: Successful | N174: 2017-12-01
A175: 85 | B175: 2017-03-24 | D175: FIEMIND | E175: Accu | F175: 850.00 | H175: 1042.5 | I175: 1023.00 | J175: Profit of Rs 192.50/- | K175: 192.50 | L175: 22.65% | M175: Successful | N175: 2017-04-05
A176: 86 | B176: 2017-04-05 | D176: RATNAMANI | E176: Accu | F176: 785.00 | H176: 930 | I176: 920.00 | J176: Profit of Rs.145/- | K176: =H176-F176 -> 145.00 | L176: =K176/F176 -> 18.47% | M176: Successful | N176: 2017-08-29
A177: 87 | B177: 2017-04-06 | D177: ZEEMEDIA | E177: Accu | F177: 40 | H177: 13.10 | I177: 60.00 | J177: Loss of Rs.26.9/- | K177: -26.90 | L177: -67.25% | M177: Unsuccessful | N177: 2018-02-07
A178: 88 | B178: 2017-04-12 | D178: DABUR | E178: Accu | F178: 289.50 | H178: 354 | I178: 360.00 | J178: Profit of Rs.64.5/- | K178: =H178-F178 -> 64.50 | L178: =K178/F178 -> 22.28% | M178: Successful | N178: 2017-11-01
A179: 89 | B179: 2017-04-20 | D179: KPRMILL | E179: Accu | F179: 700.00 | H179: 840 | I179: 840.00 | J179: Profit of Rs.140/- | K179: 140.00 | L179: 20.00% | M179: Successful | N179: 2017-06-07
A180: 90 | B180: 2017-06-01 | D180: ESSELPACK | E180: Accu | F180: 130.00 | H180: 144.25 | I180: 170.00 | J180: Profit of Rs.14.25/- | K180: 14.25 | L180: 10.96% | M180: Successful | N180: 2019-07-29
A181: 91 | B181: 2017-06-15 | D181: KEI | E181: Accu | F181: 214.50 | H181: 262 | I181: 262.00 | J181: Profit of Rs.47.5/- | K181: 47.50 | L181: 22.14% | M181: Successful | N181: 2017-08-30
A182: 92 | B182: 2017-07-17 | D182: MAYURUNIQ | E182: Accu | F182: 370.00 | H182: 447.5 | I182: 450.00 | J182: Target Achieved | K182: 77.50 | L182: 20.95% | M182: Successful | N182: 2017-10-27
A183: 93 | B183: 2017-07-27 | D183: RAMCOCEM | E183: Accu | F183: 657.50 | H183: 825 | I183: 820.00 | J183: Target Achieved | K183: 167.50 | L183: 25.48% | M183: Successful | N183: 2017-12-21
A184: 94 | B184: 2017-08-17 | D184: FINPIPE | E184: Accu | F184: 605.00 | H184: 750 | I184: 750.00 | J184: Profit of Rs.145/- | K184: 145.00 | L184: 23.97% | M184: Successful | N184: 2017-10-19
A185: 95 | B185: 2017-09-01 | D185: SHK | E185: Accu | F185: 255 | H185: 217.25 | I185: 320.00 | J185: Loss of Rs.37.75/- | K185: -37.75 | L185: -15% | M185: Unsuccessful | N185: 2019-07-15
A186: 96 | B186: 2017-09-19 | D186: SKIPPER | E186: Accu | F186: 215.00 | H186: 258 | I186: 258.00 | J186: Target Achieved | K186: 43.00 | L186: 20.00% | M186: Successful | N186: 2017-11-01
A187: 97 | B187: 2017-09-19 | D187: SKIPPER | E187: Accu | F187: 215.00 | H187: 258 | I187: 258.00 | J187: Target Achieved | K187: 43.00 | L187: 20.00% | M187: Successful | N187: 2017-11-01
A188: 98 | B188: 2017-09-20 | D188: CAMLINFINE$ | E188: Accu | F188: 75.00 | H188: 90 | I188: 90.00 | J188: Profit of Rs.15.00/- | K188: =H188-F188 -> 15.00 | L188: =K188/F188 -> 20.00% | M188: Successful | N188: 2017-10-11
A189: 99 | B189: 2017-10-03 | D189: GNA | E189: Accu | F189: 315.00 | H189: 392 | I189: 384.00 | J189: Profit of Rs.77/- | K189: 77.00 | L189: 24.44% | M189: Successful | N189: 2017-10-09
A190: 100 | B190: 2017-10-05 | D190: NOCIL | E190: Accu | F190: 145.00 | H190: 179 | I190: 180.00 | J190: Profit of Rs.34/- | K190: 34.00 | L190: 23.45% | M190: Successful | N190: 2017-10-17
A191: 101 | B191: 2017-10-06 | D191: CENTURYPLY | E191: Accu | F191: 256.00 | H191: 323 | I191: 320.00 | J191: Target Achieved | K191: 67.00 | L191: 26.17% | M191: Successful | N191: 2017-11-28
A192: 102 | B192: 2017-10-09 | D192: EIHOTEL | E192: Accu | F192: 137.50 | H192: 184 | I192: 183.00 | J192: Profit of Rs.46.5/- | K192: 46.50 | L192: 33.82% | M192: Successful | N192: 2018-01-08
A193: 103 | B193: 2017-10-10 | D193: NRBBEARING | E193: Accu | F193: 125.50 | H193: 158 | I193: 155.00 | J193: Profit of Rs.32.5/- | K193: 32.50 | L193: 25.90% | M193: Successful | N193: 2017-11-28
A194: 104 | B194: 2017-10-10 | D194: BOROSIL | E194: Accu | F194: 895.00 | H194: 1122.5 | I194: 1078.00 | J194: Profit of Rs.227.5/- | K194: 227.50 | L194: 25.42% | M194: Successful | N194: 2018-01-17
A195: 105 | B195: 2017-10-12 | D195: CYIENT | E195: Accu | F195: 525.00 | H195: 629 | I195: 629.00 | J195: Target Achieved | K195: 104.00 | L195: 19.81% | M195: Successful | N195: 2018-01-19
A196: 106 | B196: 2017-11-07 | D196: HATSUN | E196: Accu | F196: 740.00 | H196: 892.5 | I196: 900.00 | J196: Profit of Rs.152.5/- | K196: =H196-F196 -> 152.50 | L196: =K196/F196 -> 20.61% | M196: Successful | N196: 2017-11-13
A197: 107 | B197: 2017-12-04 | D197: SANGHIIND | E197: Accu | F197: 118.50 | H197: 143.5 | I197: 145.00 | J197: Profit of Rs.25/- | K197: =H197-F197 -> 25.00 | L197: =K197/F197 -> 21.10% | M197: Successful | N197: 2017-12-28
A198: 108 | B198: 2017-12-21 | D198: KAJARIACER | E198: Accu | F198: 715 | H198: 500.00 | I198: 872.00 | J198: Loss of Rs.215/- | K198: =H198-F198 -> -215.00 | L198: =K198/F198 -> -30.07% | M198: Unsuccessful | N198: 2019-07-24
A199: 109 | B199: 2017-12-29 | D199: GNA | E199: Accu | F199: 435.00 | H199: 542.5 | I199: 539.00 | J199: Target Achieved | K199: 107.50 | L199: 24.71% | M199: Successful | N199: 2018-04-16
A200: 110 | B200: 2017-12-29 | D200: ZENSARTECH | E200: Accu | F200: 885.00 | H200: 1090 | I200: 1084.00 | J200: Target Achieved | K200: 205.00 | L200: 23.16% | M200: Successful | N200: 2018-04-23
A201: 111 | B201: 2018-04-02 | D201: EVERESTIND | E201: Accu | F201: 478.50 | H201: 442 | I201: 613.00 | J201: Loss of Rs.36.50 /- | K201: =H201-F201 -> -36.50 | L201: =K201/F201 -> -7.63% | M201: Unsuccessful | N201: 2019-10-24
A202: 112 | B202: 2018-04-04 | D202: GPPL$ | E202: Accu | F202: =141.5-7.3 -> 134.2 | H202: 77.00 | I202: 180.00 | J202: Loss of Rs.57.2/- | K202: =H202-F202 -> -57.20 | L202: =K202/F202 -> -42.62% | M202: Unsuccessful | N202: 2019-02-26
A203: 113 | B203: 2018-04-19 | D203: MANPASAND | E203: Accu | F203: 430 | H203: 220.00 | I203: 537.00 | J203: Loss of Rs.210/- | K203: =H203-F203 -> -210.00 | L203: =K203/F203 -> -48.84% | M203: Unsuccessful | N203: 2018-06-01
A204: 114 | B204: 2018-04-30 | D204: HEIDELBERG | E204: Accu | F204: 153.50 | H204: 196.00 | I204: 196.00 | J204: Profit of Rs.42.50/- | K204: =H204-F204 -> 42.50 | L204: =K204/F204 -> 28% | M204: Successful | N204: 2019-05-20
A205: 115 | B205: 2018-07-25 | D205: ZEEMEDIA | E205: Accu | F205: 27.5 | H205: 13.10 | I205: 60.00 | J205: Loss of Rs.14.40/- | K205: -14.40 | L205: -52.36% | M205: Unsuccessful | N205: 2018-02-07
A206: 116 | B206: 2018-08-06 | D206: GABRIEL | E206: Accu | F206: 148.5 | H206: 102 | I206: 182.00 | J206: Loss of Rs.46.50/- | K206: =H206-F206 -> -46.50 | L206: =K206/F206 -> -31.31% | M206: Unsuccessful | N206: 2019-07-15
A207: 117 | B207: 2018-08-23 | D207: INDIANHUME | E207: Accu | F207: 285 | H207: 355 | I207: 364.00 | J207: Profit of Rs.70/- | K207: 70.00 | L207: 24.56% | M207: Successful | N207: 2018-12-21
A208: 118 | B208: 2018-08-29 | D208: GRINDWELL | E208: Accu | F208: 525 | H208: 585 | I208: 635.00 | J208: Profit of Rs.60- | K208: =H208-F208 -> 60.00 | L208: =K208/F208 -> 11.43% | M208: Successful | N208: 2019-07-16
A209: 119 | B209: 2018-10-22 | D209: FINPIPE | E209: Accu | F209: 475 | H209: 574 | I209: 570.00 | J209: Target Achieved | K209: 99.00 | L209: 20.84% | M209: Successful | N209: 2018-10-30
A210: 120 | B210: 2018-10-24 | D210: GULFOILLUB | E210: Accu | F210: 707.5 | H210: 872 | I210: 872.00 | J210: Target Achieved | K210: 164.50 | L210: 23.25% | M210: Successful | N210: 2019-01-17
A211: 121 | B211: 2018-10-25 | D211: DBCORP | E211: Accu | F211: 162 | H211: 204 | I211: 209.00 | J211: Profit of Rs.42/- | K211: 42.00 | L211: 25.93% | M211: Successful | N211: 2019-03-15
A212: 122 | B212: 2018-10-26 | D212: RITES | E212: Accu | F212: 240 | H212: 297 | I212: 297.00 | J212: Target Achieved | K212: 57.00 | L212: 23.75% | M212: Successful | N212: 2018-11-13
A213: 123 | B213: 2018-12-05 | D213: BRIGADE | E213: Accu | F213: 202.5 | H213: 255 | I213: 252.00 | J213: Target Achieved | K213: 52.50 | L213: 25.93% | M213: Successful | N213: 2019-03-18 | R213: V
A214: 124 | B214: 2018-12-31 | D214: JKCEMENT | E214: Accu | F214: 710 | H214: 866 | I214: 866.00 | J214: Target Achieved | K214: 156.00 | L214: 21.97% | M214: Successful | N214: 2019-03-29 | R214: V
A215: 125 | B215: 2019-02-26 | D215: MARICO | E215: Accu | F215: 337.25 | H215: 398.5 | I215: 411.00 | J215: Profit of Rs.61.25/- | K215: 61.25 | L215: 18.16% | M215: Successful | N215: 2019-10-22 | R215: V
A216: 126 | B216: 2019-04-04 | D216: ITDCEM | E216: Accu | F216: 130 | H216: 65 | I216: 158.00 | J216: Loss of Rs.65 /- | K216: -65.00 | L216: -50.00% | M216: Unsuccessful | N216: 2019-09-18 | R216: K
A217: 127 | B217: 2017-10-09 | D217: RECLTD | E217: Accu | F217: 141.5 | H217: 183.50 | I217: 210.00 | J217: Part Profit of Rs.42/- | K217: 42.00 | L217: 30% | M217: Successful | N217: 2017-11-03 | R217: K
A218: 128 | B218: 2017-12-05 | D218: ALLCARGO | E218: Accu | F218: 172.00 | H218: 155.25 | I218: 230.00 | J218: Loss of Rs.16.75/- | K218: =H218-F218 -> -16.75 | L218: =K218/F218 -> -9.74% | M218: Unsuccessful | N218: 2019-11-18 | R218: K
A219: 129 | B219: 2018-10-25 | D219: GODREJCP | E219: Accu | F219: 698.50 | H219: 850.00 | I219: 890.00 | J219: Part Profit of Rs.151.50/- | K219: 151.50 | L219: 22% | M219: Successful | N219: 2018-12-19 | R219: V
A220: 130 | B220: 2017-05-22 | D220: GREAVESCOT | E220: Accu | F220: 127.6 | H220: 138.00 | I220: 190.00 | J220: Profit of Rs.10.40 | K220: 10.40 | L220: 8% | M220: Successful | N220: 2019-11-05 | R220: K
A221: 131 | B221: 2018-02-27 | D221: MOLDTKPAC | E221: Accu | F221: 317 | H221: 382.50 | I221: 398.00 | J221: Profit of Rs.65.5 | K221: =H221-F221 -> 65.50 | L221: =K221/F221 -> 21% | M221: Successful | N221: 2021-02-11 | R221: K
A222: 132 | B222: 2018-03-05 | D222: LICHSGFIN | E222: Accu | F222: =510-14.4 -> 495.60 | H222: 350 | I222: 672.00 | J222: Loss of Rs.145.60/- | K222: =H222-F222 -> -145.60 | L222: =K222/F222 -> -29.38% | M222: Unsuccessful | N222: 2020-02-26 | R222: V
A223: 133 | B223: 2018-05-17 | D223: PHILIPCARB | E223: Accu | F223: 230.30 | H223: 102.5 | I223: 348.00 | J223: Loss of Rs.127.80/- | K223: =H223-F223 -> -127.80 | L223: =K223/F223 -> -55.49% | M223: Unsuccessful | N223: 2020-03-06 | R223: V
A224: 134 | B224: 2018-06-07 | D224: KEC | E224: Accu | F224: =342.5-5.1 -> 337.4 | H224: 412.50 | I224: 439.00 | J224: Profit of Rs.75.10 | K224: 75.10 | L224: 22% | M224: Successful | N224: 2021-02-03 | R224: K
A225: 135 | B225: 2018-07-04 | D225: ASHOKLEY | E225: Accu | F225: =127.5-5.53 -> 121.97 | I225: 170.00 | J225: Open | M225: Open | R225: V
A226: 136 | B226: 2018-07-13 | D226: FCONSUMER | E226: Accu | F226: 46.50 | H226: 17 | I226: 59.00 | J226: Loss of Rs.29.50/- | K226: =H226-F226 -> -29.50 | L226: =K226/F226 -> -63.44% | M226: Unsuccessful | N226: 2020-02-26 | R226: V
A227: 137 | B227: 2018-10-23 | D227: JKPAPER | E227: Accu | F227: 156.50 | I227: 191.00 | J227: Open | M227: Open | R227: V
A228: 138 | B228: 2018-12-05 | D228: CCL | E228: Accu | F228: 259.50 | I228: 321.00 | J228: Open | M228: Open | R228: V
A229: 139 | B229: 2018-12-05 | D229: VARROC | E229: Accu | F229: 715 | H229: 445 | I229: 840.00 | J229: Loss of Rs.270/- | K229: =H229-F229 -> -270.00 | L229: =K229/F229 -> -37.76% | M229: Unsuccessful | N229: 2019-12-01 | R229: V
A230: 140 | B230: 2019-01-04 | D230: MGL | E230: Accu | F230: 875 | H230: 1165 | I230: 1185.00 | J230: Profit of Rs.290/- | K230: 290.00 | L230: 33.14% | M230: Successful | N230: 2020-01-17 | R230: V
A231: 141 | B231: 2019-04-04 | D231: COCHINSHIP | E231: Accu | F231: =387-14.63 -> 372.37 | H231: 490 | I231: 490.00 | J231: Target Achieved | K231: 117.63 | L231: 31.59% | M231: Successful | N231: 2020-01-20 | R231: V
A232: 142 | B232: 2019-04-23 | D232: MAHINDCIE | E232: Buy | F232: 220 | H232: 127.5 | I232: 284.00 | J232: Loss of Rs.92.50/- | K232: -92.50 | L232: -42.05% | M232: Unsuccessful | N232: 2020-03-06 | R232: V
A233: 143 | B233: 2019-06-06 | D233: RADICO | E233: Buy | F233: 332.8 | H233: 405 | I233: 419.00 | J233: Profit of Rs.72.20/- | K233: =H233-F233 -> 72.20 | L233: =K233/F233 -> 21.69% | M233: Successful | N233: 2020-01-30 | R233: K
A234: 144 | B234: 2019-06-25 | D234: M&MFIN | E234: Accu | F234: 386 | H234: 395.00 | I234: 452.00 | J234: Profit of Rs.9/- | K234: =H234-F234 -> 9.00 | L234: =K234/F234 -> 2% | M234: Neutral | N234: 2020-02-07 | R234: K
A235: 145 | B235: 2019-08-30 | D235: INDHOTEL | E235: Accu | F235: 135-140 | I235: 190.00 | J235: Open | M235: Open | R235: V
A236: 146 | B236: 2019-09-23 | D236: KNRCON | E236: Accu | F236: 235 | H236: 295 | I236: 296.00 | J236: Profit of Rs.60/- | K236: =H236-F236 -> 60.00 | L236: =K236/F236 -> 25.53% | M236: Successful | N236: 2020-01-14 | R236: K
A237: 147 | B237: 2019-10-14 | D237: KEC$ | E237: Accu | F237: 277.5 | H237: 333 | I237: 333.00 | J237: Profit of Rs.55.50/- | K237: =H237-F237 -> 55.50 | L237: =K237/F237 -> 20.00% | M237: Successful | N237: 2020-01-16 | R237: V
A238: 148 | B238: 2019-10-14 | D238: MGL$ | E238: Accu | F238: 930 | H238: 1165 | I238: 1200.00 | J238: Profit of Rs.235/- | K238: =H238-F238 -> 235.00 | L238: =K238/F238 -> 25.27% | M238: Successful | N238: 2020-01-17 | R238: K
A239: 149 | B239: 2019-10-15 | D239: JKPAPER$ | E239: Accu | F239: 111.00 | I239: 141.00 | J239: Open | M239: Open | R239: K
... 15 more rows
